Workbook

Sheet Sheet1
A1: 物件番号 | B1: データ種類 | C1: 物件種別 | D1: 物件種目 | E1: 会員名 | F1: 代表電話番号 | G1: 問合せ担当者（1） | H1: 問合せ電話番号（1） | I1: Eメールアドレス（1） | J1: 図面 | K1: 登録年月日 | L1: 変更年月日 | M1: 取引条件の有効期限 | N1: 新築中古区分 | O1: 都道府県名 | P1: 所在地名1 | Q1: 所在地名2 | R1: 所在地名3 | S1: 建物名 | T1: 部屋番号 | U1: その他所在地表示 | V1: 棟番号 | W1: 沿線略称（1） | X1: 駅名（1） | Y1: 徒歩（分）1（1） | Z1: 徒歩（m）2（1） | AA1: バス（1） | AB1: バス路線名（1） | AC1: バス停名称（1） | AD1: 停歩（分）（1） | AE1: 停歩（m）（1） | AF1: 車（km）（1） | AG1: その他交通手段 | AH1: 交通（分）1 | AI1: 交通（m）2 | AJ1: 現況 | AK1: 現況予定年月 | AL1: 引渡時期 | AM1: 引渡年月（西暦） | AN1: 引渡旬 | AO1: 入居年月（西暦） | AP1: 入居日 | AQ1: 取引態様 | AR1: 報酬形態 | AS1: 手数料割合率 | AT1: 手数料 | AU1: 価格 | AV1: 価格消費税 | AW1: 坪単価 | AX1: ㎡単価 | AY1: 想定利回り（％） | AZ1: 面積計測方式 | BA1: 土地面積 | BB1: 土地共有持分面積 | BC1: 土地共有持分（分子） | BD1: 土地共有持分（分母） | BE1: 建物面積1 | BF1: 専有面積 | BG1: 私道負担有無 | BH1: 私道面積 | BI1: バルコニー（テラス）面積 | BJ1: 専用庭面積 | BK1: セットバック区分 | BL1: 後退距離（m） | BM1: セットバック面積（㎡） | BN1: 開発面積／総面積 | BO1: 販売総面積 | BP1: 販売区画数 | BQ1: 工事完了年月（西暦） | BR1: 建築面積 | BS1: 延べ面積 | BT1: 敷地延長の有無 | BU1: 敷地延長（30%以上表示） | BV1: 借地料 | BW1: 借地期間 | BX1: 借地期限（西暦） | BY1: 施設費用項目（1） | BZ1: 施設費用（1） | CA1: 国土法届出 | CB1: 登記簿地目 | CC1: 現況地目 | CD1: 都市計画 | CE1: 用途地域（1） | CF1: 用途地域（2） | CG1: 最適用途 | CH1: 建ぺい率 | CI1: 容積率 | CJ1: 土地×容積率 | CK1: 容積率÷30平米 | CL1: 四捨五入（部屋数） | CM1: 一部屋賃料(月々) | CN1: 合計賃料(年間) | CO1: 建物坪換算(坪) | CP1: 建物価格(万円) | CQ1: 建物土地合計価格(万円) | CR1: 利回り | CS1: 土地面積×建ぺい | CT1: 左記に÷30m2で切り捨て | CU1: 3階建と仮定した延面積 | CV1: 容積と比較した述べ床面積 | CW1: 注意！ | CX1: 定借保証金 | CY1: 定借敷金 | CZ1: 地勢 | DA1: 建築条件 | DB1: オーナーチェンジ | DC1: 管理組合有無 | DD1: 管理形態 | DE1: 管理会社名 | DF1: 管理人状況 | DG1: 管理費 | DH1: 管理費消費税 | DI1: 修繕積立金 | DJ1: その他月額費名称1 | DK1: その他月額費用金額1 | DL1: 施主 | DM1: 施工会社名 | DN1: 分譲会社名 | DO1: 一括下請負人 | DP1: 接道状況 | DQ1: 接道種別1 | DR1: 接道接面1 | DS1: 接道位置指定1 | DT1: 接道方向1 | DU1: 接道幅員1 | DV1: 接道種別2 | DW1: 接道接面2 | DX1: 接道位置指定2 | DY1: 接道方向2 | DZ1: 接道幅員2 | EA1: 接道種別3 | EB1: 接道接面3 | EC1: 接道位置指定3 | ED1: 接道方向3 | EE1: 接道幅員3 | EF1: 接道種別4 | EG1: 接道接面4 | EH1: 接道位置指定4 | EI1: 接道方向4 | EJ1: 接道幅員4 | EK1: 接道舗装 | EL1: 間取タイプ（1） | EM1: 間取部屋数（1） | EN1: 部屋位置 | EO1: 納戸数 | EP1: 室所在階1（1） | EQ1: 室タイプ1（1） | ER1: 室広さ1（1） | ES1: 室数1（1） | ET1: 室所在階2（1） | EU1: 室タイプ2（1） | EV1: 室広さ2（1） | EW1: 室数2（1） | EX1: 室所在階3（1） | EY1: 室タイプ3（1） | EZ1: 室広さ3（1） | FA1: 室数3（1） | FB1: 室所在階4（1） | FC1: 室タイプ4（1） | FD1: 室広さ4（1） | FE1: 室数4（1） | FF1: 室所在階5（1） | FG1: 室タイプ5（1） | FH1: 室広さ5（1） | FI1: 室数5（1） | FJ1: 室所在階6（1） | FK1: 室タイプ6（1） | FL1: 室広さ6（1） | FM1: 室数6（1） | FN1: 室所在階7（1） | FO1: 室タイプ7（1） | FP1: 室広さ7（1） | FQ1: 室数7（1） | FR1: 間取りその他（1） | FS1: 駐車場在否 | FT1: 駐車場月額 | FU1: 駐車場月額消費税 | FV1: 駐車場敷金（額） | FW1: 駐車場敷金（ヶ月） | FX1: 駐車場礼金（額） | FY1: 駐車場礼金（ヶ月） | FZ1: 建物構造 | GA1: 建物工法 | GB1: 建物形式 | GC1: 地上階層 | GD1: 地下階層 | GE1: 所在階 | GF1: 築年月（西暦） | GG1: 総戸数 | GH1: 棟総戸数 | GI1: 連棟戸数 | GJ1: バルコニー方向（1） | GK1: 増改築年月1 | GL1: 増改築履歴1 | GM1: 増改築年月2 | GN1: 増改築履歴2 | GO1: 増改築年月3 | GP1: 増改築履歴3 | GQ1: 周辺環境1（フリー） | GR1: 距離1 | GS1: 時間1 | GT1: 周辺アクセス１ | GU1: 備考1 | GV1: 備考2 | GW1: 自社管理欄 | GX1: 再建築不可フラグ
A2: 100100341654 | B2: 1 | C2: 1 | D2: 1 | E2: （株）シー・ザ・シー | F2: 03-5623-2466 | J2: 2 | K2: 2019-07-31 | L2: 2019-08-02 | O2: 東京都 | P2: 練馬区 | Q2: 関町北２丁目 | R2: 2019-09-13 | W2: 西武新宿線 | X2: 武蔵関 | Y2: 5 | Z2: 400 | AJ2: 2 | AL2: 2 | AQ2: 5 | AR2: 1 | AU2: 98000000 | AW2: 1793000 | AX2: 543000 | AZ2: 1 | BA2: 180.71 | CB2: 1 | CD2: 1 | CE2: 11 | CG2: 1 | CH2: 50 | CI2: 150 | CJ2: =IF(ISBLANK(CI2),100,CI2)/100*BA2 -> 271.065 | CK2: =CJ2/30 -> 9.0355 | CL2: =ROUND(CK2,0) -> 9 | CM2: 5 | CN2: =CM2*12*CL2 -> 540 | CO2: =CJ2/3.3 -> 82.14090909 | CP2: =CO2*40 -> 3285.636364 | CQ2: =CP2+(AU2/10000) -> 13085.63636 | CR2: =CN2/CQ2 -> 0.04126662128 | CS2: =IF(ISBLANK(CH2),60,CH2)/100*BA2 -> 90.355 | CT2: =ROUNDDOWN((CS2/30),0) -> 3 | CU2: =CT2*30*3 -> 270 | CV2: =CJ2-CU2 -> 1.065 | CW2: =IF(CV2>0, "!","") -> ! | DQ2: 1 | DT2: 1 | DU2: 8.2
A3: 100100341664 | B3: 1 | C3: 1 | D3: 1 | E3: （株）ベストホーム | F3: 0428-21-2100 | J3: 2 | K3: 2019-07-31 | L3: 2019-08-03 | O3: 東京都 | P3: 青梅市 | Q3: 新町１丁目 | R3: ４３－１３、他 | W3: 青梅線 | X3: 河辺 | Y3: 20 | Z3: 1600 | AA3: 3 | AC3: 野上町３丁目 | AD3: 4 | AE3: 320 | AJ3: 1 | AL3: 1 | AQ3: 3 | AR3: 1 | AU3: 150000000 | AW3: 523000 | AX3: 159000 | AZ3: 1 | BA3: 949.06 | CB3: 1 | CD3: 1 | CE3: 12 | CG3: 19 | CH3: 60 | CI3: 200 | CJ3: =IF(ISBLANK(CI3),100,CI3)/100*BA3 -> 1898.12 | CK3: =CJ3/30 -> 63.27066667 | CL3: =ROUND(CK3,0) -> 63 | CM3: 5 | CN3: =CM3*12*CL3 -> 3780 | CO3: =CJ3/3.3 -> 575.1878788 | CP3: =CO3*40 -> 23007.51515 | CQ3: =CP3+(AU3/10000) -> 38007.51515 | CR3: =CN3/CQ3 -> 0.09945401547 | CS3: =IF(ISBLANK(CH3),60,CH3)/100*BA3 -> 569.436 | CT3: =ROUNDDOWN((CS3/30),0) -> 18 | CU3: =CT3*30*3 -> 1620 | CV3: =CJ3-CU3 -> 278.12 | CW3: =IF(CV3>0, "!","") -> ! | CZ3: 1 | DQ3: 1 | DR3: 32 | DT3: 1 | DU3: 16
A4: 100100345917 | B4: 1 | C4: 1 | D4: 1 | E4: プロフィットマネジメントゼニス（株） | F4: 03-5832-9271 | G4: 張、田中 | H4: 03-5791-4380 | I4: k-tanaka@pmz.co.jp | J4: 2 | K4: 2019-07-31 | O4: 東京都 | P4: 八王子市 | Q4: 館町 | W4: 中央線 | X4: 高尾 | Y4: 14 | AJ4: 1 | AL4: 1 | AQ4: 1 | AS4: 3 | AU4: 200000000 | AW4: 221000 | AX4: 67000 | AZ4: 1 | BA4: 2993.21 | CB4: 1 | CD4: 1 | CE4: 11 | CF4: 2 | CG4: 2 | CH4: 60 | CI4: 200 | CJ4: 5986.42 | CK4: 199.5473333 | CL4: 200 | CM4: 5 | CN4: 12000 | CO4: 1814.066667 | CP4: 72562.66667 | CQ4: 92562.66667 | CR4: 0.1296419003 | CS4: 1795.926 | CT4: 59 | CU4: 5310 | CV4: 676.42 | CW4: !
A5: 100100346055 | B5: 1 | C5: 1 | D5: 1 | E5: （株）エスケーホーム | F5: 03-5339-1566 | J5: 2 | K5: 2019-07-31 | L5: 2019-07-31 | O5: 東京都 | P5: 台東区 | Q5: 谷中３丁目 | R5: 2019-09-10 | W5: 千代田線 | X5: 千駄木 | Y5: 4 | AL5: 2 | AQ5: 1 | AU5: 129900000 | AW5: 3534000 | AX5: 1069000 | BA5: 121.52 | CJ5: 121.52 | CK5: 4.050666667 | CL5: 4 | CM5: 5 | CN5: 240 | CO5: 36.82424242 | CS5: 72.912 | CT5: 2 | CU5: 180 | CV5: -58.48 | HN5: 開発申請、最低敷地面積：８０㎡
A6: 100100346098 | B6: 1 | C6: 1 | D6: 1 | E6: （株）リアルウィンズ | F6: 042-388-8286 | G6: 金子 暁洋 | H6: 042-388-8286 | J6: 2 | K6: 2019-07-31 | O6: 東京都 | P6: 武蔵野市 | Q6: 中町２丁目 | W6: 中央線 | X6: 吉祥寺 | Y6: 15 | AJ6: 1 | AL6: 1 | AQ6: 1 | AR6: 4 | AS6: 3 | AU6: 66800000 | AW6: 2383000 | AX6: 721000 | AZ6: 2 | BA6: 92.67 | CB6: 1 | CD6: 1 | CE6: 1 | CH6: 50 | CI6: 100 | CJ6: 92.67 | CK6: 3.089 | CL6: 3 | CM6: 5 | CN6: 180 | CO6: 28.08181818 | CP6: 1123.272727 | CQ6: 7803.272727 | CR6: 0.02306724451 | CS6: 46.335 | CT6: 1 | CU6: 90 | CV6: 2.67 | CW6: ! | DA6: 2 | DP6: 1 | DQ6: 1 | DR6: 6.8 | DT6: 2 | DU6: 4.5
A7: 100100346109 | B7: 1 | C7: 1 | D7: 1 | E7: （株）リアルウィンズ | F7: 042-388-8286 | G7: 金子 暁洋 | H7: 042-388-8286 | J7: 2 | K7: 2019-07-31 | O7: 東京都 | P7: 武蔵野市 | Q7: 中町２丁目 | W7: 総武中央線 | X7: 三鷹 | Y7: 8 | AJ7: 1 | AL7: 1 | AQ7: 1 | AR7: 4 | AS7: 3 | AU7: 66800000 | AW7: 2383000 | AX7: 721000 | AZ7: 2 | BA7: 92.67 | CB7: 1 | CD7: 1 | CE7: 1 | CH7: 50 | CI7: 100 | CJ7: 92.67 | CK7: 3.089 | CL7: 3 | CM7: 5 | CN7: 180 | CO7: 28.08181818 | CP7: 1123.272727 | CQ7: 7803.272727 | CR7: 0.02306724451 | CS7: 46.335 | CT7: 1 | CU7: 90 | CV7: 2.67 | CW7: ! | DA7: 2 | DP7: 1 | DQ7: 1 | DR7: 6.8 | DT7: 2 | DU7: 4.5
A8: 100100346177 | B8: 1 | C8: 1 | D8: 1 | E8: （株）ＡＱＵＡ ＲＥＳＯＲＴ | F8: 042-646-0017 | J8: 2 | K8: 2019-07-31 | O8: 東京都 | P8: 八王子市 | Q8: 小比企町 | R8: ２３０５番３付近 | W8: 京王高尾線 | X8: 山田 | Y8: 16 | AJ8: 1 | AL8: 1 | AQ8: 1 | AU8: 21800000 | AW8: 555000 | AX8: 168000 | AZ8: 1 | BA8: 130 | CD8: 1 | CE8: 1 | CH8: 40 | CI8: 80 | CJ8: 104 | CK8: 3.466666667 | CL8: 3 | CM8: 5 | CN8: 180 | CO8: 31.51515152 | CP8: 1260.606061 | CQ8: 3440.606061 | CR8: 0.05231636428 | CS8: 52 | CT8: 1 | CU8: 90 | CV8: 14 | CW8: !
A9: 100100346514 | B9: 1 | C9: 1 | D9: 1 | E9: （株）サンアーク | F9: 03-3227-0871 | G9: 谷本 | I9: info@sun-ark.com | J9: 2 | K9: 2019-07-31 | O9: 東京都 | P9: 練馬区 | Q9: 土支田３丁目 | W9: 大江戸線 | X9: 光が丘 | Y9: 20 | AJ9: 2 | AL9: 4 | AM9: 201907 | AN9: 1 | AQ9: 4 | AU9: 29800000 | AW9: 1003000 | AX9: 304000 | BA9: 98.31 | CB9: 1 | CD9: 1 | CE9: 1 | CG9: 1 | CH9: 50 | CJ9: 98.31 | CK9: 3.277 | CL9: 3 | CM9: 5 | CN9: 180 | CO9: 29.79090909 | CP9: 1191.636364 | CQ9: 4171.636364 | CR9: 0.04314853556 | CS9: 49.155 | CT9: 1 | CU9: 90 | CV9: 8.31 | CW9: ! | DP9: 1 | DQ9: 2
A10: 100100346656 | B10: 1 | C10: 1 | D10: 1 | E10: （株）クレフ・コーポレーション | F10: 0422-56-0111 | G10: 倉田 | H10: 0422-56-0111 | J10: 2 | K10: 2019-07-31 | L10: 2019-08-03 | O10: 東京都 | P10: 三鷹市 | Q10: 上連雀５丁目 | W10: 総武中央線 | X10: 三鷹 | Y10: 15 | Z10: 1200 | AL10: 2 | AQ10: 4 | AR10: 1 | AU10: 47500000 | AW10: 1513000 | AX10: 458000 | AZ10: 2 | BA10: 103.83 | CB10: 1 | CD10: 1 | CE10: 2 | CG10: 1 | CH10: 60 | CI10: 200 | CJ10: 207.66 | CK10: 6.922 | CL10: 7 | CM10: 5 | CN10: 420 | CO10: 62.92727273 | CP10: 2517.090909 | CQ10: 7267.090909 | CR10: 0.05779479096 | CS10: 62.298 | CT10: 2 | CU10: 180 | CV10: 27.66 | CW10: ! | CZ10: 1 | DP10: 5 | DQ10: 1 | DR10: 3.8 | DT10: 6 | DU10: 9.7 | DV10: 1 | DW10: 16.8 | DY10: 7 | DZ10: 5
A11: 100100348532 | B11: 1 | C11: 1 | D11: 1 | E11: ピュア不動産（株） | F11: 03-6276-1396 | G11: 清家 | H11: 090-4379-9777 | I11: touyouhudousan@gmail.com | J11: 2 | K11: 2019-07-31 | O11: 東京都 | P11: 町田市 | Q11: 大蔵町 | R11: 2160 | W11: 小田急線 | X11: 鶴川 | Y11: 12 | AJ11: 2 | AL11: 1 | AQ11: 1 | AR11: 4 | AS11: 3 | AU11: 45000000 | AW11: 451000 | AX11: 137000 | AZ11: 1 | BA11: 330.57 | BG11: 2 | BK11: 1 | BL11: 0.7 | BM11: 14.07 | CB11: 1 | CD11: 1 | CE11: 1 | CH11: 40 | CI11: 80 | CJ11: 264.456 | CK11: 8.8152 | CL11: 9 | CM11: 5 | CN11: 540 | CO11: 80.13818182 | CP11: 3205.527273 | CQ11: 7705.527273 | CR11: 0.07007956508 | CS11: 132.228 | CT11: 4 | CU11: 360 | CV11: -95.544 | CZ11: 2 | DA11: 2 | DP11: 1 | DQ11: 1 | DR11: 17.1 | DT11: 4 | DU11: 2.4 | EK11: 1
A12: 100100348834 | B12: 1 | C12: 1 | D12: 1 | E12: （株）ＴＧトラスト | F12: 042-444-8444 | G12: 郷原 | H12: 080-6898-9671 | I12: gouhara@tg-trust.com | J12: 2 | K12: 2019-07-31 | L12: 2019-07-31 | O12: 東京都 | P12: 三鷹市 | Q12: 大沢１丁目 | W12: 京王線 | X12: 西調布 | Y12: 25 | AJ12: 1 | AL12: 2 | AQ12: 5 | AR12: 1 | AU12: 37300000 | AW12: 1100000 | AX12: 333000 | AZ12: 2 | BA12: 112.11 | CB12: 4 | CD12: 1 | CE12: 1 | CH12: 40 | CI12: 80 | CJ12: 89.688 | CK12: 2.9896 | CL12: 3 | CM12: 5 | CN12: 180 | CO12: 27.17818182 | CP12: 1087.127273 | CQ12: 4817.127273 | CR12: 0.03736666893 | CS12: 44.844 | CT12: 1 | CU12: 90 | CV12: -0.312 | CZ12: 2 | DP12: 5 | DQ12: 1 | DT12: 1 | DU12: 4.5
A13: 100100348967 | B13: 1 | C13: 1 | D13: 1 | E13: ピュア不動産（株） | F13: 03-6276-1396 | G13: 清家 | H13: 090-4379-9777 | I13: touyouhudousan@gmail.com | J13: 2 | K13: 2019-07-31 | O13: 東京都 | P13: 墨田区 | Q13: 京島２丁目 | W13: 半蔵門線 | X13: 押上 | Y13: 8 | AJ13: 1 | AK13: 201910 | AL13: 3 | AM13: 201912 | AN13: 1 | AQ13: 1 | AR13: 4 | AS13: 3 | AU13: 119270000 | AW13: 987000 | AX13: 299000 | AZ13: 1 | BA13: 399.51 | CB13: 1 | CD13: 1 | CE13: 5 | CH13: 80 | CI13: 400 | CJ13: 1598.04 | CK13: 53.268 | CL13: 53 | CM13: 5 | CN13: 3180 | CO13: 484.2545455 | CP13: 19370.18182 | CQ13: 31297.18182 | CR13: 0.1016065925 | CS13: 319.608 | CT13: 10 | CU13: 900 | CV13: 698.04 | CW13: ! | CZ13: 1 | DA13: 2 | DP13: 1 | DQ13: 1 | DR13: 3.2 | DT13: 7 | DU13: 4 | EK13: 1
A14: 100100349342 | B14: 1 | C14: 1 | D14: 1 | E14: （株）ＴＧトラスト | F14: 042-444-8444 | G14: 郷原 | H14: 080-6898-9671 | I14: gouhara@tg-trust.com | J14: 2 | K14: 2019-07-31 | L14: 2019-07-31 | O14: 東京都 | P14: 三鷹市 | Q14: 大沢１丁目 | W14: 京王線 | X14: 西調布 | Y14: 25 | AJ14: 1 | AL14: 2 | AQ14: 5 | AR14: 1 | AU14: 35600000 | AW14: 1050000 | AX14: 318000 | AZ14: 2 | BA14: 112.1 | CB14: 4 | CD14: 1 | CE14: 1 | CH14: 40 | CI14: 80 | CJ14: 89.68 | CK14: 2.989333333 | CL14: 3 | CM14: 5 | CN14: 180 | CO14: 27.17575758 | CP14: 1087.030303 | CQ14: 4647.030303 | CR14: 0.03873441494 | CS14: 44.84 | CT14: 1 | CU14: 90 | CV14: -0.32 | CZ14: 2 | DP14: 1 | DQ14: 1 | DT14: 3 | DU14: 4.3
A15: 100100349767 | B15: 1 | C15: 1 | D15: 1 | E15: （株）ＴＧトラスト | F15: 042-444-8444 | G15: 郷原 | H15: 080-6898-9671 | I15: gouhara@tg-trust.com | J15: 2 | K15: 2019-07-31 | O15: 東京都 | P15: 三鷹市 | Q15: 大沢１丁目 | W15: 京王線 | X15: 西調布 | Y15: 25 | AJ15: 1 | AL15: 2 | AQ15: 5 | AR15: 1 | AU15: 72900000 | AW15: 1075000 | AX15: 326000 | AZ15: 2 | BA15: 224.21 | CB15: 4 | CD15: 1 | CE15: 1 | CH15: 40 | CI15: 80 | CJ15: 179.368 | CK15: 5.978933333 | CL15: 6 | CM15: 5 | CN15: 360 | CO15: 54.35393939 | CP15: 2174.157576 | CQ15: 9464.157576 | CR15: 0.03803825086 | CS15: 89.684 | CT15: 2 | CU15: 180 | CV15: -0.632 | CZ15: 2 | DA15: 1 | DP15: 5 | DQ15: 1 | DT15: 1 | DU15: 4.5 | DV15: 1 | DY15: 3 | DZ15: 4.3
A16: 100100350826 | B16: 1 | C16: 1 | D16: 1 | E16: みずほ不動産販売（株） 本店センター | F16: 03-5200-1623 | G16: 上林 | H16: 03-5200-1610 | J16: 2 | K16: 2019-07-31 | O16: 東京都 | P16: 世田谷区 | Q16: 等々力１丁目 | W16: 大井町線 | X16: 等々力 | Y16: 9 | AJ16: 2 | AL16: 2 | AQ16: 5 | AU16: 207500000 | AW16: 2236000 | AX16: 677000 | AZ16: 1 | BA16: 306.78 | CB16: 1 | CD16: 1 | CE16: 11 | CF16: 1 | CJ16: 306.78 | CK16: 10.226 | CL16: 10 | CM16: 5 | CN16: 600 | CO16: 92.96363636 | CP16: 3718.545455 | CQ16: 24468.54545 | CR16: 0.02452127778 | CS16: 184.068 | CT16: 6 | CU16: 540 | CV16: -233.22 | DQ16: 1 | DT16: 5 | DU16: 6
A17: 100100351024 | B17: 1 | C17: 1 | D17: 1 | E17: （株）ＰＲＥＳＩ－Ｘ | F17: 03-6265-4792 | J17: 2 | K17: 2019-07-31 | O17: 東京都 | P17: 世田谷区 | Q17: 池尻２丁目 | W17: 田園都市線 | X17: 池尻大橋 | Y17: 6 | AQ17: 2 | AU17: 80000000 | AW17: 2874000 | AX17: 870000 | AZ17: 2 | BA17: 92.03 | CD17: 1 | CE17: 12 | CH17: 60 | CI17: 200 | CJ17: 184.06 | CK17: 6.135333333 | CL17: 6 | CM17: 5 | CN17: 360 | CO17: 55.77575758 | CP17: 2231.030303 | CQ17: 10231.0303 | CR17: 0.03518707201 | CS17: 55.218 | CT17: 1 | CU17: 90 | CV17: 94.06 | CW17: !
A18: 100100351028 | B18: 1 | C18: 1 | D18: 1 | E18: （株）ＰＲＥＳＩ－Ｘ | F18: 03-6265-4792 | J18: 2 | K18: 2019-07-31 | L18: 2019-08-02 | O18: 東京都 | P18: 大田区 | Q18: 仲池上１丁目 | W18: 都営浅草線 | X18: 西馬込 | Y18: 9 | AJ18: 2 | AL18: 2 | AQ18: 2 | AU18: 143400000 | AW18: 1817000 | AX18: 550000 | BA18: 261 | CB18: 1 | CD18: 1 | CE18: 11 | CH18: 60 | CI18: 200 | CJ18: 522 | CK18: 17.4 | CL18: 17 | CM18: 5 | CN18: 1020 | CO18: 158.1818182 | CP18: 6327.272727 | CQ18: 20667.27273 | CR18: 0.0493533914 | CS18: 156.6 | CT18: 5 | CU18: 450 | CV18: 72 | CW18: !
A19: 100100351029 | B19: 1 | C19: 1 | D19: 1 | E19: （株）ＰＲＥＳＩ－Ｘ | F19: 03-6265-4792 | J19: 2 | K19: 2019-07-31 | O19: 東京都 | P19: 中野区 | Q19: 弥生町４丁目 | W19: 丸ノ内方南 | X19: 中野新橋 | Y19: 9 | AJ19: 1 | AQ19: 2 | AU19: 200000000 | AW19: 2497000 | AX19: 756000 | AZ19: 2 | BA19: 264.8 | CD19: 1 | CE19: 11 | CH19: 60 | CI19: 200 | CJ19: 529.6 | CK19: 17.65333333 | CL19: 18 | CM19: 5 | CN19: 1080 | CO19: 160.4848485 | CP19: 6419.393939 | CQ19: 26419.39394 | CR19: 0.04087906038 | CS19: 158.88 | CT19: 5 | CU19: 450 | CV19: 79.6 | CW19: !
A20: 100100351512 | B20: 1 | C20: 1 | D20: 1 | E20: （株）都市ホーム | F20: 03-3315-3431 | J20: 2 | K20: 2019-07-31 | O20: 東京都 | P20: 東村山市 | Q20: 多摩湖町２丁目 | W20: 多摩湖線 | X20: 武蔵大和 | Y20: 10 | AJ20: 2 | AL20: 1 | AQ20: 3 | AR20: 1 | AU20: 15000000 | AW20: 200000 | AX20: 61000 | BA20: 248.18 | BK20: 1 | BM20: 9 | CB20: 1 | CD20: 1 | CE20: 1 | CG20: 1 | CH20: 40 | CI20: 80 | CJ20: 198.544 | CK20: 6.618133333 | CL20: 7 | CM20: 5 | CN20: 420 | CO20: 60.16484848 | CP20: 2406.593939 | CQ20: 3906.593939 | CR20: 0.1075105339 | CS20: 99.272 | CT20: 3 | CU20: 270 | CV20: -71.456 | DA20: 2 | DP20: 1 | DQ20: 1 | DR20: 13.6 | DU20: 2.7 | EK20: 1
A21: 100100351569 | B21: 1 | C21: 1 | D21: 1 | E21: ベラテック販売（株） | F21: 03-3299-5511 | J21: 2 | K21: 2019-07-31 | O21: 東京都 | P21: 中野区 | Q21: 南台４丁目 | W21: 丸ノ内方南 | X21: 方南町 | Y21: 11 | AJ21: 1 | AQ21: 1 | AU21: 64800000 | AW21: 1845000 | AX21: 558000 | BA21: 116.13 | CB21: 1 | CE21: 11 | CH21: 60 | CI21: 200 | CJ21: 232.26 | CK21: 7.742 | CL21: 8 | CM21: 5 | CN21: 480 | CO21: 70.38181818 | CP21: 2815.272727 | CQ21: 9295.272727 | CR21: 0.05163915187 | CS21: 69.678 | CT21: 2 | CU21: 180 | CV21: 52.26 | CW21: ! | DP21: 1 | DQ21: 1 | DR21: 2.5 | DT21: 7 | DU21: 4
A22: 100100351822 | B22: 1 | C22: 1 | D22: 1 | E22: 三田ハウジング（株） | F22: 03-5375-2103 | G22: 坂田 | J22: 2 | K22: 2019-07-31 | L22: 2019-08-03 | O22: 東京都 | P22: 板橋区 | Q22: 本町 | W22: 都営三田線 | X22: 板橋本町 | Y22: 5 | AJ22: 2 | AL22: 4 | AM22: 202005 | AQ22: 4 | AR22: 1 | AU22: 120000000 | AW22: 2084000 | AX22: 631000 | BA22: 190.38 | CB22: 1 | CD22: 1 | CE22: 5 | CH22: 80 | CI22: 400 | CJ22: 761.52 | CK22: 25.384 | CL22: 25 | CM22: 5 | CN22: 1500 | CO22: 230.7636364 | CP22: 9230.545455 | CQ22: 21230.54545 | CR22: 0.07065291861 | CS22: 152.304 | CT22: 5 | CU22: 450 | CV22: 311.52 | CW22: !
A23: 100100351858 | B23: 1 | C23: 1 | D23: 1 | E23: エイティーエス（株） | F23: 03-3778-2634 | G23: 田中豊 | H23: 090-4729-9934 | I23: ats@kenchiku-support.com | J23: 2 | K23: 2019-07-31 | O23: 東京都 | P23: 大田区 | Q23: 山王３丁目 | W23: 京浜東北線 | X23: 大森 | Y23: 11 | AJ23: 1 | AL23: 1 | AQ23: 1 | AU23: 35500000 | AW23: 1068000 | AX23: 323000 | AZ23: 2 | BA23: 109.92 | BK23: 1 | BL23: 0.7 | BM23: 3.65 | CB23: 1 | CD23: 1 | CE23: 1 | CH23: 50 | CI23: 100 | CJ23: 109.92 | CK23: 3.664 | CL23: 4 | CM23: 5 | CN23: 240 | CO23: 33.30909091 | CP23: 1332.363636 | CQ23: 4882.363636 | CR23: 0.04915651882 | CS23: 54.96 | CT23: 1 | CU23: 90 | CV23: 19.92 | CW23: ! | CZ23: 5 | DA23: 2 | DP23: 1 | DQ23: 1 | DR23: 6.2 | DT23: 7 | DU23: 4 | EK23: 1
A24: 100100351866 | B24: 1 | C24: 1 | D24: 1 | E24: エイティーエス（株） | F24: 03-3778-2634 | G24: 田中豊 | H24: 090-4729-9934 | I24: ats@kenchiku-support.com | J24: 2 | K24: 2019-07-31 | O24: 東京都 | P24: 大田区 | Q24: 山王３丁目 | W24: 京浜東北線 | X24: 大森 | Y24: 11 | AJ24: 1 | AL24: 1 | AQ24: 1 | AU24: 45500000 | AW24: 1656000 | AX24: 501000 | AZ24: 2 | BA24: 90.83 | BK24: 1 | BL24: 0.7 | BM24: 4.16 | CB24: 1 | CD24: 1 | CE24: 1 | CH24: 50 | CI24: 100 | CJ24: 90.83 | CK24: 3.027666667 | CL24: 3 | CM24: 5 | CN24: 180 | CO24: 27.52424242 | CP24: 1100.969697 | CQ24: 5650.969697 | CR24: 0.03185294023 | CS24: 45.415 | CT24: 1 | CU24: 90 | CV24: 0.83 | CW24: ! | CZ24: 5 | DA24: 2 | DP24: 1 | DQ24: 1 | DR24: 6.3 | DT24: 7 | DU24: 4 | EK24: 1
A25: 100100352205 | B25: 1 | C25: 1 | D25: 1 | E25: （株）マーシャル設計開発 | F25: 042-310-9674 | H25: 090-8312-5651 | I25: imamura@marshall-ad.jp | J25: 2 | K25: 2019-07-31 | O25: 東京都 | P25: 三鷹市 | Q25: 井の頭１丁目 | W25: 井の頭線 | X25: 三鷹台 | Y25: 8 | AJ25: 1 | AL25: 2 | AQ25: 1 | AS25: 3 | AU25: 54800000 | AW25: 1350000 | AX25: 409000 | AZ25: 2 | BA25: 134.22 | BG25: 2 | BK25: 1 | BM25: 3.77 | CB25: 1 | CD25: 1 | CE25: 1 | CG25: 1 | CH25: 40 | CI25: 80 | CJ25: 107.376 | CK25: 3.5792 | CL25: 4 | CM25: 5 | CN25: 240 | CO25: 32.53818182 | CP25: 1301.527273 | CQ25: 6781.527273 | CR25: 0.03539025803 | CS25: 53.688 | CT25: 1 | CU25: 90 | CV25: 17.376 | CW25: ! | DA25: 2 | DP25: 2 | DQ25: 1 | EK25: 1 | GU25: ネット、紙媒体含め全て広告禁止
A26: 100100352208 | B26: 1 | C26: 1 | D26: 1 | E26: （株）マーシャル設計開発 | F26: 042-310-9674 | H26: 090-8312-5651 | I26: imamura@marshall-ad.jp | J26: 2 | K26: 2019-07-31 | L26: 2019-08-05 | O26: 東京都 | P26: 府中市 | Q26: 朝日町１丁目 | W26: 西武多摩川 | X26: 多磨 | Y26: 10 | AJ26: 1 | AL26: 2 | AQ26: 1 | AS26: 3 | AU26: 42800000 | AW26: 761000 | AX26: 231000 | AZ26: 1 | BA26: 186 | BG26: 2 | BK26: 0 | CB26: 9 | CD26: 1 | CE26: 1 | CG26: 1 | CH26: 40 | CI26: 80 | CJ26: 148.8 | CK26: 4.96 | CL26: 5 | CM26: 5 | CN26: 300 | CO26: 45.09090909 | CP26: 1803.636364 | CQ26: 6083.636364 | CR26: 0.04931261207 | CS26: 74.4 | CT26: 2 | CU26: 180 | CV26: -31.2 | CZ26: 1 | DA26: 2 | DP26: 1 | EK26: 1 | GU26: ＦＡＸ０４２－３１０－９６７５
A27: 100100352216 | B27: 1 | C27: 1 | D27: 1 | E27: （株）ファーストブラザーズ | F27: 03-6276-6631 | J27: 2 | K27: 2019-07-31 | L27: 2019-08-02 | O27: 東京都 | P27: 豊島区 | Q27: 西巣鴨１丁目 | W27: 山手線 | X27: 大塚 | Y27: 10 | AJ27: 2 | AL27: 2 | AQ27: 4 | AR27: 1 | AU27: 109350000 | AW27: 2950000 | AX27: 893000 | AZ27: 1 | BA27: 122.57 | BK27: 1 | CB27: 1 | CD27: 1 | CE27: 11 | CG27: 1 | CH27: 60 | CI27: 300 | CJ27: 367.71 | CK27: 12.257 | CL27: 12 | CM27: 5 | CN27: 720 | CO27: 111.4272727 | CP27: 4457.090909 | CQ27: 15392.09091 | CR27: 0.0467772705 | CS27: 73.542 | CT27: 2 | CU27: 180 | CV27: 187.71 | CW27: ! | CZ27: 1 | DA27: 2 | DP27: 2 | DQ27: 1 | EK27: 1
A28: 100100352999 | B28: 1 | C28: 1 | D28: 1 | E28: 三井不動産リアルティ（株）三井のリハウス石神井公園センター | F28: 03-3996-3131 | J28: 2 | K28: 2019-08-01 | L28: 2019-08-05 | O28: 東京都 | P28: 練馬区 | Q28: 石神井台２丁目 | W28: 西武新宿線 | X28: 上石神井 | Y28: 17 | AJ28: 2 | AL28: 2 | AQ28: 4 | AU28: 51800000 | AW28: 1008000 | AX28: 305000 | AZ28: 1 | BA28: 169.94 | CA28: 3 | CB28: 1 | CD28: 1 | CE28: 1 | CH28: 50 | CI28: 100 | CJ28: 169.94 | CK28: 5.664666667 | CL28: 6 | CM28: 5 | CN28: 360 | CO28: 51.4969697 | CP28: 2059.878788 | CQ28: 7239.878788 | CR28: 0.0497245894 | CS28: 84.97 | CT28: 2 | CU28: 180 | CV28: -10.06 | DA28: 2 | GQ28: ファミリーマート上石神井北小学校前店 | GR28: 400 | GS28: 5 | GT28: 1 | GU28: Ｆ２２Ｗ７Ａ１６ 古家有り
A29: 100100353017 | B29: 1 | C29: 1 | D29: 1 | E29: 三井不動産リアルティ（株）三井のリハウス調布センター | F29: 042-482-3131 | J29: 2 | K29: 2019-08-01 | L29: 2019-08-06 | O29: 東京都 | P29: 調布市 | Q29: 下石原２丁目 | W29: 京王線 | X29: 西調布 | Y29: 5 | Z29: 386 | AJ29: 2 | AL29: 2 | AQ29: 4 | AU29: 34800000 | AW29: 1067000 | AX29: 323000 | AZ29: 2 | BA29: 107.9 | CA29: 3 | CB29: 1 | CD29: 1 | CE29: 1 | CH29: 50 | CI29: 100 | CJ29: 107.9 | CK29: 3.596666667 | CL29: 4 | CM29: 5 | CN29: 240 | CO29: 32.6969697 | CP29: 1307.878788 | CQ29: 4787.878788 | CR29: 0.05012658228 | CS29: 53.95 | CT29: 1 | CU29: 90 | CV29: 17.9 | CW29: ! | DA29: 2 | DP29: 1 | DQ29: 1 | DR29: 3 | DS29: 2 | DT29: 3 | DU29: 4 | GU29: Ｆ２７Ｗ７Ａ１Ｄ 古家有り | GV29: 建築の際、ガス・水道引き込み費用が別途かかることがあります。
A30: 100100353019 | B30: 1 | C30: 1 | D30: 1 | E30: 三井不動産リアルティ（株）三井のリハウス調布センター | F30: 042-482-3131 | J30: 2 | K30: 2019-08-01 | L30: 2019-08-06 | O30: 東京都 | P30: 調布市 | Q30: 下石原２丁目 | W30: 京王線 | X30: 西調布 | Y30: 5 | AJ30: 2 | AL30: 2 | AQ30: 4 | AU30: 38800000 | AW30: 1283000 | AX30: 388000 | AZ30: 2 | BA30: 100 | CA30: 3 | CB30: 1 | CD30: 1 | CE30: 1 | CH30: 50 | CI30: 100 | CJ30: 100 | CK30: 3.333333333 | CL30: 3 | CM30: 5 | CN30: 180 | CO30: 30.3030303 | CP30: 1212.121212 | CQ30: 5092.121212 | CR30: 0.03534872649 | CS30: 50 | CT30: 1 | CU30: 90 | CV30: 10 | CW30: ! | DA30: 2 | DP30: 1 | DQ30: 1 | DR30: 13 | DS30: 2 | DT30: 3 | DU30: 4 | GU30: Ｆ２７Ｗ７Ａ１Ｃ 古家有り | GV30: 建築の際、ガス・水道引き込み費用が別途かかることがあります。
A31: 100100353091 | B31: 1 | C31: 1 | D31: 1 | E31: 野村不動産アーバンネット（株） 自由が丘センター | F31: 03-3725-0841 | G31: 宮下 博明 | H31: 03-3725-0841 | J31: 2 | K31: 2019-08-01 | L31: 2019-08-05 | O31: 東京都 | P31: 大田区 | Q31: 鵜の木２丁目 | W31: 東急多摩川 | X31: 鵜の木 | Y31: 3 | AJ31: 2 | AL31: 2 | AQ31: 3 | AU31: 67800000 | AW31: 2032000 | AX31: 615000 | AZ31: 1 | BA31: 110.35 | BG31: 2 | BK31: 0 | CA31: 3 | CB31: 1 | CD31: 1 | CE31: 12 | CG31: 1 | CH31: 60 | CI31: 200 | CJ31: 220.7 | CK31: 7.356666667 | CL31: 7 | CM31: 5 | CN31: 420 | CO31: 66.87878788 | CP31: 2675.151515 | CQ31: 9455.151515 | CR31: 0.04442022947 | CS31: 66.21 | CT31: 2 | CU31: 180 | CV31: 40.7 | CW31: ! | CZ31: 1 | DA31: 2 | DP31: 1 | DQ31: 1 | DT31: 8 | DU31: 6 | EK31: 1 | GW31: Ｅ６６Ｖ７０１９（１９５１７８６）
A32: 100100353294 | B32: 1 | C32: 1 | D32: 1 | E32: （株）エムーダ | F32: 03-5439-5665 | G32: 川村 | H32: 090-3100-3918 | I32: kawamura@m-da.co.jp | J32: 2 | K32: 2019-08-01 | O32: 東京都 | P32: 荒川区 | Q32: 西尾久２丁目 | R32: ２３－１６ | W32: 都電荒川線 | X32: 宮ノ前 | Y32: 2 | AC32: 日暮里舎人 | AG32: ＪＲ山手線・京浜東北線「田端」駅 徒歩１８分 | AJ32: 1 | AL32: 2 | AQ32: 1 | AR32: 1 | AU32: 68600000 | AW32: 1889000 | AX32: 572000 | AZ32: 2 | BA32: 120.06 | BK32: 1 | BM32: 14.13 | CB32: 1 | CD32: 1 | CE32: 5 | CH32: 80 | CI32: 400 | CJ32: 480.24 | CK32: 16.008 | CL32: 16 | CM32: 5 | CN32: 960 | CO32: 145.5272727 | CP32: 5821.090909 | CQ32: 12681.09091 | CR32: 0.07570326614 | CS32: 96.048 | CT32: 3 | CU32: 270 | CV32: 210.24 | CW32: ! | CZ32: 1 | DP32: 2 | DQ32: 2 | DR32: 8 | DT32: 3 | DU32: 4 | DV32: 2 | DW32: 10.6 | DY32: 5 | DZ32: 4 | EK32: 1
A33: 100100353318 | B33: 1 | C33: 1 | D33: 1 | E33: （株）フォルテ | F33: 042-306-1765 | G33: 野﨑 | H33: 042-306-1765 | J33: 2 | K33: 2019-08-01 | L33: 2019-08-01 | O33: 東京都 | P33: 東村山市 | Q33: 恩多町１丁目 | R33: 2019-06-18 | W33: 西武新宿線 | X33: 久米川 | AA33: 7 | AB33: 西武バス | AC33: 青葉町２丁目 | AD33: 8 | AJ33: 1 | AL33: 2 | AQ33: 1 | AR33: 9 | AT33: 1500000 | AU33: 50000000 | AW33: 699000 | AX33: 212000 | AZ33: 2 | BA33: 236.48 | CB33: 1 | CC33: 1 | CD33: 1 | CE33: 6 | CG33: 19 | CH33: 60 | CI33: 200 | CJ33: 472.96 | CK33: 15.76533333 | CL33: 16 | CM33: 5 | CN33: 960 | CO33: 143.3212121 | CP33: 5732.848485 | CQ33: 10732.84848 | CR33: 0.08944503422 | CS33: 141.888 | CT33: 4 | CU33: 360 | CV33: 112.96 | CW33: ! | CZ33: 1 | DA33: 2 | DP33: 1 | DQ33: 1 | DR33: 13.2 | DS33: 2 | DT33: 6 | DU33: 8 | EK33: 1
A34: 100100353359 | B34: 1 | C34: 1 | D34: 1 | E34: （株）プリンシパルホーム | F34: 042-709-6206 | G34: 関野 | J34: 2 | K34: 2019-08-01 | O34: 東京都 | P34: 町田市 | Q34: 木曽西５丁目 | R34: １４０７ ２８号棟 | U34: ２８号棟 | W34: 小田急線 | X34: 町田 | AA34: 9 | AJ34: 1 | AL34: 1 | AQ34: 1 | AR34: 4 | AS34: 2 | AU34: 18800000 | AW34: 460000 | AX34: 139000 | AZ34: 2 | BA34: 135.39 | BG34: 2 | CB34: 1 | CD34: 1 | CH34: 40 | CI34: 80 | CJ34: 108.312 | CK34: 3.6104 | CL34: 4 | CM34: 5 | CN34: 240 | CO34: 32.82181818 | CP34: 1312.872727 | CQ34: 3192.872727 | CR34: 0.07516741834 | CS34: 54.156 | CT34: 1 | CU34: 90 | CV34: 18.312 | CW34: ! | CZ34: 1 | DA34: 1 | DP34: 1
A35: 100100353368 | B35: 1 | C35: 1 | D35: 1 | E35: （株）プリンシパルホーム | F35: 042-709-6206 | G35: 関野 | J35: 2 | K35: 2019-08-01 | O35: 東京都 | P35: 町田市 | Q35: 木曽西５丁目 | R35: １４０７ ２６号棟 | U35: ２６号棟 | W35: 小田急線 | X35: 町田 | AA35: 9 | AJ35: 1 | AL35: 1 | AQ35: 1 | AR35: 4 | AS35: 2 | AU35: 22800000 | AW35: 566000 | AX35: 171000 | AZ35: 2 | BA35: 133.34 | BG35: 2 | CB35: 1 | CD35: 1 | CH35: 40 | CI35: 80 | CJ35: 106.672 | CK35: 3.555733333 | CL35: 4 | CM35: 5 | CN35: 240 | CO35: 32.32484848 | CP35: 1292.993939 | CQ35: 3572.993939 | CR35: 0.06717055894 | CS35: 53.336 | CT35: 1 | CU35: 90 | CV35: 16.672 | CW35: ! | CZ35: 1 | DA35: 1 | DP35: 1
A36: 100100353377 | B36: 1 | C36: 1 | D36: 1 | E36: （株）プリンシパルホーム | F36: 042-709-6206 | G36: 関野 | J36: 2 | K36: 2019-08-01 | O36: 東京都 | P36: 町田市 | Q36: 木曽西５丁目 | R36: １４０７ ２５号棟 | U36: ２５号棟 | W36: 小田急線 | X36: 町田 | AA36: 9 | AJ36: 1 | AL36: 1 | AQ36: 1 | AR36: 4 | AS36: 2 | AU36: 18800000 | AW36: 458000 | AX36: 139000 | AZ36: 2 | BA36: 135.7 | BG36: 2 | CB36: 1 | CD36: 1 | CH36: 40 | CI36: 80 | CJ36: 108.56 | CK36: 3.618666667 | CL36: 4 | CM36: 5 | CN36: 240 | CO36: 32.8969697 | CP36: 1315.878788 | CQ36: 3195.878788 | CR36: 0.07509671547 | CS36: 54.28 | CT36: 1 | CU36: 90 | CV36: 18.56 | CW36: ! | CZ36: 1 | DA36: 1 | DP36: 1
A37: 100100353383 | B37: 1 | C37: 1 | D37: 1 | E37: （株）プリンシパルホーム | F37: 042-709-6206 | G37: 関野 | J37: 2 | K37: 2019-08-01 | O37: 東京都 | P37: 町田市 | Q37: 木曽西５丁目 | R37: １４０７ ２４号棟 | U37: ２４号棟 | W37: 小田急線 | X37: 町田 | AA37: 9 | AJ37: 1 | AL37: 1 | AQ37: 1 | AR37: 4 | AS37: 2 | AU37: 18800000 | AW37: 459000 | AX37: 139000 | AZ37: 2 | BA37: 135.41 | BG37: 2 | CB37: 1 | CD37: 1 | CH37: 40 | CI37: 80 | CJ37: 108.328 | CK37: 3.610933333 | CL37: 4 | CM37: 5 | CN37: 240 | CO37: 32.82666667 | CP37: 1313.066667 | CQ37: 3193.066667 | CR37: 0.07516285285 | CS37: 54.164 | CT37: 1 | CU37: 90 | CV37: 18.328 | CW37: ! | CZ37: 1 | DA37: 1 | DP37: 1
A38: 100100353405 | B38: 1 | C38: 1 | D38: 1 | E38: （株）プリンシパルホーム | F38: 042-709-6206 | G38: 関野 | J38: 2 | K38: 2019-08-01 | O38: 東京都 | P38: 町田市 | Q38: 木曽西５丁目 | R38: １４０７ ２３号棟 | U38: ２３号棟 | W38: 小田急線 | X38: 町田 | AA38: 9 | AJ38: 1 | AL38: 1 | AQ38: 1 | AR38: 4 | AS38: 3 | AU38: 20800000 | AW38: 515000 | AX38: 156000 | AZ38: 2 | BA38: 133.71 | BG38: 2 | CB38: 1 | CD38: 1 | CH38: 40 | CI38: 80 | CJ38: 106.968 | CK38: 3.5656 | CL38: 4 | CM38: 5 | CN38: 240 | CO38: 32.41454545 | CP38: 1296.581818 | CQ38: 3376.581818 | CR38: 0.07107779788 | CS38: 53.484 | CT38: 1 | CU38: 90 | CV38: 16.968 | CW38: ! | CZ38: 1 | DA38: 1 | DP38: 1
A39: 100100353440 | B39: 1 | C39: 1 | D39: 1 | E39: （株）プリンシパルホーム | F39: 042-709-6206 | G39: 関野 | J39: 2 | K39: 2019-08-01 | O39: 東京都 | P39: 町田市 | Q39: 木曽西５丁目 | R39: １４０７ １２号棟 | U39: １２号棟 | W39: 小田急線 | X39: 町田 | AA39: 9 | AJ39: 1 | AL39: 1 | AQ39: 1 | AR39: 4 | AS39: 2 | AU39: 26800000 | AW39: 654000 | AX39: 198000 | AZ39: 2 | BA39: 135.51 | BG39: 2 | CB39: 1 | CD39: 1 | CH39: 40 | CI39: 80 | CJ39: 108.408 | CK39: 3.6136 | CL39: 4 | CM39: 5 | CN39: 240 | CO39: 32.85090909 | CP39: 1314.036364 | CQ39: 3994.036364 | CR39: 0.06008958811 | CS39: 54.204 | CT39: 1 | CU39: 90 | CV39: 18.408 | CW39: ! | CZ39: 1 | DA39: 1 | DP39: 1
A40: 100100353452 | B40: 1 | C40: 1 | D40: 1 | E40: （株）プリンシパルホーム | F40: 042-709-6206 | G40: 関野 | J40: 2 | K40: 2019-08-01 | O40: 東京都 | P40: 町田市 | Q40: 木曽西５丁目 | R40: １４０７ １１号棟 | U40: １１号棟 | W40: 小田急線 | X40: 町田 | AA40: 9 | AJ40: 1 | AL40: 1 | AQ40: 1 | AR40: 4 | AS40: 2 | AU40: 26800000 | AW40: 653000 | AX40: 198000 | AZ40: 2 | BA40: 135.82 | BG40: 2 | CB40: 1 | CD40: 1 | CH40: 40 | CI40: 80 | CJ40: 108.656 | CK40: 3.621866667 | CL40: 4 | CM40: 5 | CN40: 240 | CO40: 32.92606061 | CP40: 1317.042424 | CQ40: 3997.042424 | CR40: 0.06004439646 | CS40: 54.328 | CT40: 1 | CU40: 90 | CV40: 18.656 | CW40: ! | CZ40: 1 | DA40: 1 | DP40: 1
A41: 100100353469 | B41: 1 | C41: 1 | D41: 1 | E41: （株）プリンシパルホーム | F41: 042-709-6206 | G41: 関野 | J41: 2 | K41: 2019-08-01 | O41: 東京都 | P41: 町田市 | Q41: 木曽西５丁目 | R41: １４０７ １０号棟 | U41: １０号棟 | W41: 小田急線 | X41: 町田 | AA41: 9 | AJ41: 1 | AL41: 1 | AQ41: 1 | AR41: 4 | AS41: 2 | AU41: 25800000 | AW41: 631000 | AX41: 191000 | AZ41: 2 | BA41: 135.22 | BG41: 2 | CB41: 1 | CD41: 1 | CH41: 40 | CI41: 80 | CJ41: 108.176 | CK41: 3.605866667 | CL41: 4 | CM41: 5 | CN41: 240 | CO41: 32.78060606 | CP41: 1311.224242 | CQ41: 3891.224242 | CR41: 0.06167724733 | CS41: 54.088 | CT41: 1 | CU41: 90 | CV41: 18.176 | CW41: ! | CZ41: 1 | DA41: 1 | DP41: 1
A42: 100100353483 | B42: 1 | C42: 1 | D42: 1 | E42: （株）プリンシパルホーム | F42: 042-709-6206 | J42: 2 | K42: 2019-08-01 | O42: 東京都 | P42: 多摩市 | Q42: 聖ヶ丘３丁目 | R42: 1946-05-01 | W42: 相模原線 | X42: 京王永山 | Y42: 24 | AL42: 2 | AQ42: 1 | AU42: 31800000 | AW42: 549000 | AX42: 166000 | AZ42: 2 | BA42: 191.62 | BG42: 2 | CB42: 1 | CD42: 1 | CE42: 1 | CH42: 40 | CI42: 80 | CJ42: 153.296 | CK42: 5.109866667 | CL42: 5 | CM42: 5 | CN42: 300 | CO42: 46.45333333 | CP42: 1858.133333 | CQ42: 5038.133333 | CR42: 0.05954586355 | CS42: 76.648 | CT42: 2 | CU42: 180 | CV42: -26.704 | CZ42: 2 | DA42: 2 | DP42: 2 | DQ42: 1 | DU42: 6
A43: 100100353491 | B43: 1 | C43: 1 | D43: 1 | E43: （株）プリンシパルホーム | F43: 042-709-6206 | J43: 2 | K43: 2019-08-01 | O43: 東京都 | P43: 町田市 | Q43: 高ヶ坂４丁目 | W43: 横浜線 | X43: 成瀬 | Y43: 24 | AJ43: 1 | AL43: 2 | AQ43: 1 | AU43: 27500000 | AW43: 708000 | AX43: 214000 | AZ43: 1 | BA43: 128.56 | BG43: 2 | CB43: 1 | CD43: 1 | CE43: 1 | CH43: 40 | CI43: 80 | CJ43: 102.848 | CK43: 3.428266667 | CL43: 3 | CM43: 5 | CN43: 180 | CO43: 31.16606061 | CP43: 1246.642424 | CQ43: 3996.642424 | CR43: 0.04503780446 | CS43: 51.424 | CT43: 1 | CU43: 90 | CV43: 12.848 | CW43: ! | CZ43: 4 | DA43: 2 | DP43: 1 | DQ43: 1 | DU43: 5
A44: 100100353495 | B44: 1 | C44: 1 | D44: 1 | E44: （株）プリンシパルホーム | F44: 042-709-6206 | J44: 2 | K44: 2019-08-01 | O44: 東京都 | P44: 町田市 | Q44: 高ヶ坂４丁目 | W44: 横浜線 | X44: 成瀬 | Y44: 24 | AJ44: 1 | AL44: 2 | AQ44: 1 | AU44: 26500000 | AW44: 679000 | AX44: 206000 | AZ44: 1 | BA44: 129.04 | BG44: 2 | CB44: 1 | CD44: 1 | CE44: 1 | CH44: 40 | CI44: 80 | CJ44: 103.232 | CK44: 3.441066667 | CL44: 3 | CM44: 5 | CN44: 180 | CO44: 31.28242424 | CP44: 1251.29697 | CQ44: 3901.29697 | CR44: 0.0461385025 | CS44: 51.616 | CT44: 1 | CU44: 90 | CV44: 13.232 | CW44: ! | CZ44: 4 | DA44: 2 | DP44: 1 | DQ44: 1 | DU44: 5
A45: 100100353506 | B45: 1 | C45: 1 | D45: 1 | E45: （株）プリンシパルホーム | F45: 042-709-6206 | J45: 2 | K45: 2019-08-01 | O45: 東京都 | P45: 町田市 | Q45: 高ヶ坂４丁目 | W45: 横浜線 | X45: 成瀬 | Y45: 24 | AJ45: 1 | AL45: 2 | AQ45: 1 | AU45: 26500000 | AW45: 604000 | AX45: 183000 | AZ45: 1 | BA45: 145.17 | BG45: 2 | CB45: 1 | CD45: 1 | CE45: 1 | CH45: 40 | CI45: 80 | CJ45: 116.136 | CK45: 3.8712 | CL45: 4 | CM45: 5 | CN45: 240 | CO45: 35.19272727 | CP45: 1407.709091 | CQ45: 4057.709091 | CR45: 0.05914667479 | CS45: 58.068 | CT45: 1 | CU45: 90 | CV45: 26.136 | CW45: ! | CZ45: 4 | DA45: 2 | DP45: 1 | DQ45: 1 | DU45: 5
A46: 100100353516 | B46: 1 | C46: 1 | D46: 1 | E46: （株）プリンシパルホーム | F46: 042-709-6206 | J46: 2 | K46: 2019-08-01 | O46: 東京都 | P46: 町田市 | Q46: 高ヶ坂４丁目 | W46: 横浜線 | X46: 成瀬 | Y46: 24 | AJ46: 1 | AL46: 2 | AQ46: 1 | AU46: 25500000 | AW46: 655000 | AX46: 199000 | AZ46: 1 | BA46: 128.73 | BG46: 2 | CB46: 1 | CD46: 1 | CE46: 1 | CH46: 40 | CI46: 80 | CJ46: 102.984 | CK46: 3.4328 | CL46: 3 | CM46: 5 | CN46: 180 | CO46: 31.20727273 | CP46: 1248.290909 | CQ46: 3798.290909 | CR46: 0.0473897351 | CS46: 51.492 | CT46: 1 | CU46: 90 | CV46: 12.984 | CW46: ! | CZ46: 4 | DA46: 2 | DP46: 1 | DQ46: 1 | DU46: 5
A47: 100100353523 | B47: 1 | C47: 1 | D47: 1 | E47: （株）プリンシパルホーム | F47: 042-709-6206 | J47: 2 | K47: 2019-08-01 | O47: 東京都 | P47: 町田市 | Q47: 高ヶ坂４丁目 | W47: 横浜線 | X47: 成瀬 | Y47: 24 | AJ47: 1 | AL47: 2 | AQ47: 1 | AU47: 28500000 | AW47: 741000 | AX47: 225000 | AZ47: 1 | BA47: 127.16 | BG47: 2 | CB47: 1 | CD47: 1 | CE47: 1 | CH47: 40 | CI47: 80 | CJ47: 101.728 | CK47: 3.390933333 | CL47: 3 | CM47: 5 | CN47: 180 | CO47: 30.82666667 | CP47: 1233.066667 | CQ47: 4083.066667 | CR47: 0.04408451164 | CS47: 50.864 | CT47: 1 | CU47: 90 | CV47: 11.728 | CW47: ! | CZ47: 4 | DA47: 2 | DP47: 1 | DQ47: 1 | DU47: 5
A48: 100100353532 | B48: 1 | C48: 1 | D48: 1 | E48: （株）プリンシパルホーム | F48: 042-709-6206 | J48: 2 | K48: 2019-08-01 | O48: 東京都 | P48: 町田市 | Q48: 高ヶ坂４丁目 | W48: 横浜線 | X48: 成瀬 | Y48: 24 | AJ48: 1 | AL48: 2 | AQ48: 1 | AU48: 25500000 | AW48: 660000 | AX48: 200000 | AZ48: 1 | BA48: 127.86 | BG48: 2 | CB48: 1 | CD48: 1 | CE48: 1 | CH48: 40 | CI48: 80 | CJ48: 102.288 | CK48: 3.4096 | CL48: 3 | CM48: 5 | CN48: 180 | CO48: 30.99636364 | CP48: 1239.854545 | CQ48: 3789.854545 | CR48: 0.04749522649 | CS48: 51.144 | CT48: 1 | CU48: 90 | CV48: 12.288 | CW48: ! | CZ48: 4 | DA48: 2 | DP48: 1 | DQ48: 1 | DU48: 5
A49: 100100353538 | B49: 1 | C49: 1 | D49: 1 | E49: （株）プリンシパルホーム | F49: 042-709-6206 | J49: 2 | K49: 2019-08-01 | O49: 東京都 | P49: 町田市 | Q49: 高ヶ坂４丁目 | W49: 横浜線 | X49: 成瀬 | Y49: 24 | AJ49: 1 | AL49: 2 | AQ49: 1 | AU49: 29500000 | AW49: 749000 | AX49: 227000 | AZ49: 1 | BA49: 130.28 | BG49: 2 | CB49: 1 | CD49: 1 | CE49: 1 | CH49: 40 | CI49: 80 | CJ49: 104.224 | CK49: 3.474133333 | CL49: 3 | CM49: 5 | CN49: 180 | CO49: 31.5830303 | CP49: 1263.321212 | CQ49: 4213.321212 | CR49: 0.04272164189 | CS49: 52.112 | CT49: 1 | CU49: 90 | CV49: 14.224 | CW49: ! | CZ49: 4 | DA49: 2 | DP49: 1 | DQ49: 1 | DU49: 5
A50: 100100353549 | B50: 1 | C50: 1 | D50: 1 | E50: （株）プリンシパルホーム | F50: 042-709-6206 | G50: 澤田 | J50: 2 | K50: 2019-08-01 | O50: 東京都 | P50: 町田市 | Q50: 山崎町 | R50: ⑪１号棟 | W50: 小田急線 | X50: 町田 | AA50: 13 | AC50: 今井谷戸 | AD50: 5 | AJ50: 1 | AL50: 2 | AQ50: 1 | AR50: 4 | AS50: 2 | AU50: 21800000 | AW50: 451000 | AX50: 137000 | BA50: 160.01 | CA50: 3 | CB50: 1 | CD50: 1 | CE50: 1 | CG50: 1 | CH50: 40 | CI50: 80 | CJ50: 128.008 | CK50: 4.266933333 | CL50: 4 | CM50: 5 | CN50: 240 | CO50: 38.79030303 | CP50: 1551.612121 | CQ50: 3731.612121 | CR50: 0.06431536618 | CS50: 64.004 | CT50: 2 | CU50: 180 | CV50: -51.992 | CZ50: 4 | DA50: 2 | DP50: 1 | DQ50: 1 | DR50: 3 | DT50: 1 | DU50: 6 | EK50: 1 | GU50: 宅地内雨水処理設備（人孔）あり
A51: 100100353559 | B51: 1 | C51: 1 | D51: 1 | E51: （株）プリンシパルホーム | F51: 042-709-6206 | G51: 澤田 | J51: 2 | K51: 2019-08-01 | O51: 東京都 | P51: 町田市 | Q51: 鶴川３丁目 | R51: ④１号棟 | W51: 小田急線 | X51: 鶴川 | Y51: 26 | AA51: 6 | AC51: センター前 | AD51: 3 | AJ51: 1 | AL51: 2 | AQ51: 2 | AR51: 4 | AS51: 2 | AU51: 27800000 | AW51: 677000 | AX51: 205000 | AZ51: 2 | BA51: 135.89 | BG51: 2 | CA51: 3 | CB51: 5 | CD51: 1 | CE51: 1 | CG51: 1 | CH51: 50 | CI51: 100 | CJ51: 135.89 | CK51: 4.529666667 | CL51: 5 | CM51: 5 | CN51: 300 | CO51: 41.17878788 | CP51: 1647.151515 | CQ51: 4427.151515 | CR51: 0.06776366225 | CS51: 67.945 | CT51: 2 | CU51: 180 | CV51: -44.11 | CZ51: 1 | DA51: 2 | DP51: 1 | DQ51: 1 | DR51: 6.8 | DT51: 1 | DU51: 6 | EK51: 1
A52: 100100355073 | B52: 1 | C52: 1 | D52: 1 | E52: （株）メデューム | F52: 03-3495-5555 | G52: 鈴木 | J52: 2 | K52: 2019-08-01 | O52: 東京都 | P52: 目黒区 | Q52: 緑が丘２丁目 | W52: 東横線 | X52: 自由が丘 | Y52: 13 | AJ52: 1 | AL52: 2 | AQ52: 1 | AS52: 3 | AU52: 188000000 | AW52: 3604000 | AX52: 1091000 | BA52: 172.46 | CB52: 1 | CD52: 1 | CE52: 1 | CH52: 50 | CI52: 100 | CJ52: 172.46 | CK52: 5.748666667 | CL52: 6 | CM52: 5 | CN52: 360 | CO52: 52.26060606 | CP52: 2090.424242 | CQ52: 20890.42424 | CR52: 0.01723277593 | CS52: 86.23 | CT52: 2 | CU52: 180 | CV52: -7.54 | DA52: 2 | DP52: 2 | DQ52: 1 | DT52: 1 | DU52: 8 | DV52: 1 | DY52: 7 | DZ52: 8
A53: 100100355092 | B53: 1 | C53: 1 | D53: 1 | E53: （株）メデューム | F53: 03-3495-5555 | G53: 鈴木 | J53: 2 | K53: 2019-08-01 | O53: 東京都 | P53: 目黒区 | Q53: 緑が丘２丁目 | W53: 東横線 | X53: 自由が丘 | Y53: 13 | AJ53: 1 | AL53: 2 | AQ53: 1 | AS53: 3 | AU53: 168000000 | AW53: 3360000 | AX53: 1017000 | BA53: 165.32 | CB53: 1 | CD53: 1 | CE53: 1 | CH53: 50 | CI53: 100 | CJ53: 165.32 | CK53: 5.510666667 | CL53: 6 | CM53: 5 | CN53: 360 | CO53: 50.0969697 | CP53: 2003.878788 | CQ53: 18803.87879 | CR53: 0.01914498621 | CS53: 82.66 | CT53: 2 | CU53: 180 | CV53: -14.68 | DA53: 2 | DP53: 1 | DQ53: 1 | DT53: 7 | DU53: 8
A54: 100100355112 | B54: 1 | C54: 1 | D54: 1 | E54: （株）メデューム | F54: 03-3495-5555 | G54: 千馬 | J54: 2 | K54: 2019-08-01 | O54: 東京都 | P54: 文京区 | Q54: 水道１丁目 | W54: 有楽町線 | X54: 江戸川橋 | Y54: 10 | AJ54: 2 | AL54: 2 | AQ54: 1 | AS54: 3 | AU54: 310800000 | AW54: 4801000 | AX54: 1453000 | AZ54: 1 | BA54: 214.02 | BG54: 2 | BK54: 0 | CB54: 1 | CD54: 1 | CE54: 12 | CH54: 60 | CI54: 300 | CJ54: 642.06 | CK54: 21.402 | CL54: 21 | CM54: 5 | CN54: 1260 | CO54: 194.5636364 | CP54: 7782.545455 | CQ54: 38862.54545 | CR54: 0.03242196272 | CS54: 128.412 | CT54: 4 | CU54: 360 | CV54: 282.06 | CW54: ! | DP54: 1 | DQ54: 1 | DT54: 5 | DU54: 6.7
A55: 100100355618 | B55: 1 | C55: 1 | D55: 1 | E55: （株）バンブーフィールド | F55: 03-3301-1157 | G55: 廣瀬 | J55: 2 | K55: 2019-08-01 | O55: 東京都 | P55: 世田谷区 | Q55: 桜新町１丁目 | R55: 2019-11-09 | W55: 田園都市線 | X55: 桜新町 | Y55: 1 | AJ55: 1 | AL55: 2 | AQ55: 1 | AU55: 119000000 | AW55: 2948000 | AX55: 892000 | AZ55: 1 | BA55: 133.46 | BK55: 1 | BM55: 1.22 | CA55: 3 | CB55: 1 | CD55: 1 | CE55: 1 | CG55: 1 | CH55: 50 | CI55: 100 | CJ55: 133.46 | CK55: 4.448666667 | CL55: 4 | CM55: 5 | CN55: 240 | CO55: 40.44242424 | CP55: 1617.69697 | CQ55: 13517.69697 | CR55: 0.01775450364 | CS55: 66.73 | CT55: 2 | CU55: 180 | CV55: -46.54 | CZ55: 1 | DA55: 2 | DP55: 1 | DQ55: 1 | DR55: 7.8 | DT55: 1 | DU55: 5.4 | GQ55: 世田谷区立桜町小学校 | GR55: 910 | GS55: 12 | GT55: 1
A56: 100100355625 | B56: 1 | C56: 1 | D56: 1 | E56: （株）バンブーフィールド | F56: 03-3301-1157 | G56: 廣瀬 | J56: 2 | K56: 2019-08-01 | O56: 東京都 | P56: 世田谷区 | Q56: 桜新町１丁目 | R56: 2019-11-09 | W56: 田園都市線 | X56: 桜新町 | Y56: 1 | AJ56: 1 | AL56: 2 | AQ56: 1 | AU56: 119000000 | AW56: 2948000 | AX56: 892000 | AZ56: 1 | BA56: 133.46 | BK56: 1 | BM56: 1.22 | CA56: 3 | CB56: 1 | CD56: 1 | CE56: 1 | CG56: 1 | CH56: 50 | CI56: 100 | CJ56: 133.46 | CK56: 4.448666667 | CL56: 4 | CM56: 5 | CN56: 240 | CO56: 40.44242424 | CP56: 1617.69697 | CQ56: 13517.69697 | CR56: 0.01775450364 | CS56: 66.73 | CT56: 2 | CU56: 180 | CV56: -46.54 | CZ56: 1 | DA56: 2 | DP56: 1 | DQ56: 1 | DR56: 7.8 | DT56: 1 | DU56: 5.4 | GQ56: 世田谷区立桜町小学校 | GR56: 910 | GS56: 12 | GT56: 1
A57: 100100355692 | B57: 1 | C57: 1 | D57: 1 | E57: （株）幸建地所 | F57: 03-5411-9911 | G57: 阿部 | J57: 2 | K57: 2019-08-01 | O57: 東京都 | P57: 板橋区 | Q57: 赤塚３丁目 | R57: 2019-02-03 | W57: 東武東上線 | X57: 成増 | Y57: 9 | AJ57: 1 | AL57: 1 | AQ57: 1 | AU57: 41800000 | AW57: 1524000 | AX57: 461000 | AZ57: 2 | BA57: 90.68 | CB57: 1 | CD57: 1 | CE57: 12 | CH57: 60 | CI57: 200 | CJ57: 181.36 | CK57: 6.045333333 | CL57: 6 | CM57: 5 | CN57: 360 | CO57: 54.95757576 | CP57: 2198.30303 | CQ57: 6378.30303 | CR57: 0.05644134471 | CS57: 54.408 | CT57: 1 | CU57: 90 | CV57: 91.36 | CW57: ! | CZ57: 1 | DP57: 1 | DQ57: 1 | DR57: 9.7 | DT57: 4 | DU57: 11 | EK57: 1
A58: 100100356260 | B58: 1 | C58: 1 | D58: 1 | E58: （有）ハウジングプラン | F58: 03-5206-6545 | J58: 2 | K58: 2019-08-01 | O58: 東京都 | P58: 北区 | Q58: 西ケ原１丁目 | W58: 山手線 | X58: 駒込 | Y58: 8 | AJ58: 1 | AL58: 1 | AQ58: 1 | AS58: 3 | AU58: 104400000 | AW58: 3500000 | AX58: 1059000 | AZ58: 2 | BA58: 98.61 | CB58: 1 | CD58: 1 | CE58: 4 | CG58: 4 | CH58: 80 | CI58: 300 | CJ58: 295.83 | CK58: 9.861 | CL58: 10 | CM58: 5 | CN58: 600 | CO58: 89.64545455 | CP58: 3585.818182 | CQ58: 14025.81818 | CR58: 0.04277825309 | CS58: 78.888 | CT58: 2 | CU58: 180 | CV58: 115.83 | CW58: ! | CZ58: 1 | DP58: 1 | DQ58: 1 | DR58: 5.4 | DT58: 8 | DU58: 7.2 | EK58: 1 | GU58: 霜降銀座商店街面す、現況更地、 | GV58: 建築プラン有、店舗付住宅に最適
A59: 100100356268 | B59: 1 | C59: 1 | D59: 1 | E59: （有）ハウジングプラン | F59: 03-5206-6545 | J59: 2 | K59: 2019-08-01 | O59: 東京都 | P59: 文京区 | Q59: 本駒込１丁目 | W59: 南北線 | X59: 本駒込 | Y59: 5 | AJ59: 2 | AL59: 2 | AQ59: 5 | AR59: 1 | AU59: 165000000 | AW59: 3509000 | AX59: 1062000 | AZ59: 2 | BA59: 155.48 | CB59: 1 | CD59: 1 | CE59: 11 | CG59: 1 | CH59: 60 | CI59: 200 | CJ59: 310.96 | CK59: 10.36533333 | CL59: 10 | CM59: 5 | CN59: 600 | CO59: 94.23030303 | CP59: 3769.212121 | CQ59: 20269.21212 | CR59: 0.02960154526 | CS59: 93.288 | CT59: 3 | CU59: 270 | CV59: 40.96 | CW59: ! | DA59: 2 | DP59: 1 | DQ59: 1 | DR59: 7.7 | DU59: 5 | EK59: 1
A60: 100100356391 | B60: 1 | C60: 1 | D60: 1 | E60: （有）千里 武蔵境北口店 | F60: 0422-38-4648 | J60: 2 | K60: 2019-08-01 | O60: 東京都 | P60: 狛江市 | Q60: 東野川１丁目 | W60: 小田急線 | X60: 喜多見 | Y60: 13 | AJ60: 2 | AL60: 2 | AQ60: 3 | AR60: 2 | AU60: 40000000 | AW60: 1172000 | AX60: 355000 | BA60: 112.9 | BK60: 0 | CB60: 1 | CD60: 1 | CE60: 1 | CH60: 40 | CI60: 80 | CJ60: 90.32 | CK60: 3.010666667 | CL60: 3 | CM60: 5 | CN60: 180 | CO60: 27.36969697 | CP60: 1094.787879 | CQ60: 5094.787879 | CR60: 0.03533022459 | CS60: 45.16 | CT60: 1 | CU60: 90 | CV60: 0.32 | CW60: ! | DA60: 2 | DP60: 1 | DQ60: 1 | DR60: 9.8 | DT60: 3 | DU60: 6 | EK60: 1
A61: 100100356395 | B61: 1 | C61: 1 | D61: 1 | E61: （有）千里 武蔵境北口店 | F61: 0422-38-4648 | J61: 2 | K61: 2019-08-01 | O61: 東京都 | P61: 世田谷区 | Q61: 上馬５丁目 | R61: 2019-07-23 | W61: 世田谷線 | X61: 松陰神社前 | Y61: 7 | AJ61: 1 | AL61: 2 | AQ61: 1 | AS61: 3 | AU61: 129000000 | AW61: 1524000 | AX61: 461000 | BA61: 279.86 | CB61: 1 | CD61: 1 | CE61: 1 | CH61: 60 | CI61: 150 | CJ61: 419.79 | CK61: 13.993 | CL61: 14 | CM61: 5 | CN61: 840 | CO61: 127.2090909 | CP61: 5088.363636 | CQ61: 17988.36364 | CR61: 0.04669685453 | CS61: 167.916 | CT61: 5 | CU61: 450 | CV61: -30.21 | CZ61: 1 | DA61: 2 | DP61: 1 | DQ61: 1 | DR61: 2.7 | DT61: 7 | DU61: 5.9 | EK61: 1
A62: 100100356398 | B62: 1 | C62: 1 | D62: 1 | E62: （有）千里 武蔵境北口店 | F62: 0422-38-4648 | J62: 2 | K62: 2019-08-01 | O62: 東京都 | P62: 多摩市 | Q62: 連光寺３丁目 | R62: ５６－２４ | W62: 京王線 | X62: 聖蹟桜ヶ丘 | AA62: 3 | AD62: 10 | AJ62: 1 | AL62: 2 | AQ62: 1 | AR62: 4 | AS62: 3 | AU62: 32800000 | AW62: 651000 | AX62: 197000 | BA62: 166.68 | BP62: 1 | CB62: 1 | CD62: 1 | CE62: 1 | CH62: 40 | CI62: 80 | CJ62: 133.344 | CK62: 4.4448 | CL62: 4 | CM62: 5 | CN62: 240 | CO62: 40.40727273 | CP62: 1616.290909 | CQ62: 4896.290909 | CR62: 0.04901669538 | CS62: 66.672 | CT62: 2 | CU62: 180 | CV62: -46.656 | DP62: 1 | DQ62: 1 | DR62: 14.7 | DT62: 6 | DU62: 6.2 | EK62: 1
A63: 100100356442 | B63: 1 | C63: 1 | D63: 1 | E63: （株）グローバル・キャスト 新宿支店 | F63: 03-5908-4700 | G63: 立石 | J63: 2 | K63: 2019-08-01 | O63: 東京都 | P63: 世田谷区 | Q63: 赤堤４丁目 | R63: 2019-08-18 | U63: １号地 | W63: 京王線 | X63: 下高井戸 | Y63: 9 | AJ63: 1 | AL63: 1 | AQ63: 1 | AR63: 4 | AU63: 74800000 | AW63: 2259000 | AX63: 684000 | AZ63: 1 | BA63: 109.48 | BG63: 2 | CB63: 1 | CD63: 1 | CE63: 1 | CG63: 1 | CH63: 60 | CI63: 150 | CJ63: 164.22 | CK63: 5.474 | CL63: 5 | CM63: 5 | CN63: 300 | CO63: 49.76363636 | CP63: 1990.545455 | CQ63: 9470.545455 | CR63: 0.03167716173 | CS63: 65.688 | CT63: 2 | CU63: 180 | CV63: -15.78 | CZ63: 1 | DA63: 2 | DP63: 1 | DQ63: 1 | DT63: 3 | DU63: 5.4 | EK63: 2
A64: 100100356444 | B64: 1 | C64: 1 | D64: 1 | E64: （株）オフィス武陽 | F64: 042-491-8855 | J64: 2 | K64: 2019-08-01 | O64: 東京都 | P64: 清瀬市 | Q64: 中里６丁目 | W64: 西武池袋線 | X64: 清瀬 | AA64: 7 | AB64: 西武バス | AC64: 下戸 | AD64: 1 | AJ64: 2 | AL64: 1 | AQ64: 5 | AU64: 17800000 | AW64: 497000 | AX64: 151000 | AZ64: 1 | BA64: 118.51 | CB64: 1 | CC64: 1 | CD64: 1 | CE64: 2 | CH64: 60 | CI64: 200 | CJ64: 237.02 | CK64: 7.900666667 | CL64: 8 | CM64: 5 | CN64: 480 | CO64: 71.82424242 | CP64: 2872.969697 | CQ64: 4652.969697 | CR64: 0.1031599239 | CS64: 71.106 | CT64: 2 | CU64: 180 | CV64: 57.02 | CW64: ! | DP64: 1 | DQ64: 1 | DT64: 4 | DU64: 6 | EK64: 1
A65: 100100356460 | B65: 1 | C65: 1 | D65: 1 | E65: （株）Ｓｔａｒｔｉｎｇ Ｐｏｉｎｔ | F65: 042-451-4555 | J65: 2 | K65: 2019-08-01 | O65: 東京都 | P65: 昭島市 | Q65: 上川原町３丁目 | W65: 青梅線 | X65: 昭島 | Y65: 9 | AJ65: 2 | AL65: 1 | AQ65: 3 | AR65: 1 | AU65: 24800000 | AW65: 558000 | AX65: 169000 | AZ65: 2 | BA65: 147.1 | BG65: 1 | BH65: 6.51 | BK65: 1 | CB65: 1 | CD65: 1 | CE65: 1 | CG65: 1 | CH65: 50 | CI65: 80 | CJ65: 117.68 | CK65: 3.922666667 | CL65: 4 | CM65: 5 | CN65: 240 | CO65: 35.66060606 | CP65: 1426.424242 | CQ65: 3906.424242 | CR65: 0.06143725953 | CS65: 73.55 | CT65: 2 | CU65: 180 | CV65: -62.32 | CZ65: 1 | DA65: 2 | DP65: 2 | DQ65: 1 | DR65: 7.7 | DT65: 7 | DU65: 3.4 | DV65: 2 | DW65: 12.5 | DX65: 1 | DY65: 5 | DZ65: 4 | GQ65: 光華小学校 | GS65: 9 | GT65: 1 | GU65: ★建築条件なし南西角地約４４坪 | GV65: ★建築参考プラン、物件詳細資料有ります。昭島駅徒歩９分の立地
A66: 100100356463 | B66: 1 | C66: 1 | D66: 1 | E66: （株）グローバル・キャスト 新宿支店 | F66: 03-5908-4700 | G66: 足立 | J66: 2 | K66: 2019-08-01 | O66: 東京都 | P66: 世田谷区 | Q66: 上野毛４丁目 | W66: 大井町線 | X66: 上野毛 | Y66: 12 | AJ66: 1 | AL66: 1 | AQ66: 1 | AR66: 4 | AU66: 59800000 | AW66: 1852000 | AX66: 561000 | AZ66: 1 | BA66: 106.78 | CB66: 1 | CD66: 1 | CE66: 1 | CH66: 50 | CI66: 100 | CJ66: 106.78 | CK66: 3.559333333 | CL66: 4 | CM66: 5 | CN66: 240 | CO66: 32.35757576 | CP66: 1294.30303 | CQ66: 7274.30303 | CR66: 0.03299285155 | CS66: 53.39 | CT66: 1 | CU66: 90 | CV66: 16.78 | CW66: ! | DA66: 2 | DP66: 1 | DQ66: 1 | DT66: 4 | DU66: 5 | GU66: ２号地
A67: 100100356560 | B67: 1 | C67: 1 | D67: 1 | E67: （株）グローバル・キャスト 新宿支店 | F67: 03-5908-4700 | J67: 2 | K67: 2019-08-01 | O67: 東京都 | P67: 文京区 | Q67: 目白台３丁目 | W67: 有楽町線 | X67: 護国寺 | Y67: 5 | AJ67: 1 | AL67: 1 | AQ67: 1 | AR67: 9 | AU67: 169800000 | AW67: 3684000 | AX67: 1115000 | AZ67: 1 | BA67: 152.37 | CB67: 1 | CD67: 1 | CE67: 11 | CH67: 60 | CI67: 200 | CJ67: =IF(ISBLANK(CI67),100,CI67)/100*BA67 -> 304.74 | CK67: =CJ67/30 -> 10.158 | CL67: =ROUND(CK67,0) -> 10 | CM67: 5 | CN67: =CM67*12*CL67 -> 600 | CO67: =CJ67/3.3 -> 92.34545455 | CP67: =CO67*40 -> 3693.818182 | CQ67: =CP67+(AU67/10000) -> 20673.81818 | CR67: =CN67/CQ67 -> 0.02902221519 | CS67: =IF(ISBLANK(CH67),60,CH67)/100*BA67 -> 91.422 | CT67: =ROUNDDOWN((CS67/30),0) -> 3 | CU67: =CT67*30*3 -> 270 | CV67: =CJ67-CU67 -> 34.74 | CW67: =IF(CV67>0, "!","") -> ! | CZ67: 1 | DA67: 2 | DP67: 1 | DQ67: 1 | DR67: 9.5 | DU67: 4.2
A68: 100100356625 | B68: 1 | C68: 1 | D68: 1 | E68: （株）ハウスセイラーズ | F68: 03-3856-0141 | J68: 2 | K68: 2019-08-01 | L68: 2019-08-01 | O68: 東京都 | P68: 墨田区 | Q68: 立川１丁目 | W68: 大江戸線 | X68: 森下 | Y68: 4 | AJ68: 2 | AL68: 2 | AQ68: 5 | AU68: 122000000 | AW68: 2781000 | AX68: 842000 | AZ68: 1 | BA68: 145.04 | BK68: 1 | BM68: 4.96 | CB68: 1 | CD68: 1 | CE68: 6 | CH68: 60 | CI68: 300 | CJ68: 435.12 | CK68: 14.504 | CL68: 15 | CM68: 5 | CN68: 900 | CO68: 131.8545455 | CP68: 5274.181818 | CQ68: 17474.18182 | CR68: 0.05150455737 | CS68: 87.024 | CT68: 2 | CU68: 180 | CV68: 255.12 | CW68: ! | DP68: 5 | DQ68: 1 | DT68: 5 | DU68: 6 | DV68: 1 | DY68: 1 | DZ68: 3 | GU68: ※瑕疵担保責任免責 | GV68: ※建物１階部分には防空壕があります
A69: 100100356644 | B69: 1 | C69: 1 | D69: 1 | E69: サンキュー産業（株） | F69: 03-5718-6600 | J69: 2 | K69: 2019-08-01 | O69: 東京都 | P69: 新宿区 | Q69: 西落合１丁目 | W69: 大江戸線 | X69: 落合南長崎 | Y69: 10 | AJ69: 2 | AL69: 2 | AQ69: 5 | AR69: 1 | AU69: 75800000 | AW69: 2464000 | AX69: 746000 | AZ69: 1 | BA69: 101.72 | BG69: 2 | BK69: 0 | CB69: 1 | CD69: 1 | CE69: 12 | CH69: 60 | CI69: 200 | CJ69: 203.44 | CK69: 6.781333333 | CL69: 7 | CM69: 5 | CN69: 420 | CO69: 61.64848485 | CP69: 2465.939394 | CQ69: 10045.93939 | CR69: 0.04180793687 | CS69: 61.032 | CT69: 2 | CU69: 180 | CV69: 23.44 | CW69: ! | CZ69: 1 | DA69: 2 | DP69: 1 | DQ69: 1 | DR69: 4.6 | DT69: 1 | DU69: 6.1 | EK69: 1 | GU69: 居住中の為引渡し相談
A70: 100100356718 | B70: 1 | C70: 1 | D70: 1 | E70: （株）藤和ハウス | F70: 042-465-8000 | J70: 2 | K70: 2019-08-01 | O70: 東京都 | P70: 三鷹市 | Q70: 上連雀１丁目 | W70: 中央線 | X70: 三鷹 | Y70: 14 | AJ70: 1 | AL70: 2 | AQ70: 1 | AU70: 75800000 | AW70: 1928000 | AX70: 584000 | BA70: 130.01 | BG70: 1 | BH70: 41.09 | CA70: 3 | CB70: 3 | CD70: 1 | CE70: 1 | CH70: 40 | CI70: 80 | CJ70: 104.008 | CK70: 3.466933333 | CL70: 3 | CM70: 5 | CN70: 180 | CO70: 31.51757576 | CP70: 1260.70303 | CQ70: 8840.70303 | CR70: 0.02036037172 | CS70: 52.004 | CT70: 1 | CU70: 90 | CV70: 14.008 | CW70: ! | DA70: 2 | DQ70: 2 | DS70: 1 | DT70: 6 | DU70: 4 | GU70: ■地目／畑・山林 | GV70: ■位置指定番号／昭和３１年１２月２５日第２０７０号
A71: 100100356801 | B71: 1 | C71: 1 | D71: 1 | E71: （株）ファインホーム | F71: 03-5848-3603 | J71: 2 | K71: 2019-08-01 | O71: 東京都 | P71: 練馬区 | Q71: 富士見台２丁目 | R71: 1940-02-01 | W71: 西武池袋線 | X71: 富士見台 | Y71: 11 | AJ71: 1 | AL71: 2 | AQ71: 1 | AU71: 54800000 | AW71: 1722000 | AX71: 521000 | AZ71: 2 | BA71: 105.22 | BG71: 1 | BH71: 91 | BK71: 0 | BT71: 2 | CB71: 1 | CD71: 1 | CE71: 11 | CG71: 1 | CH71: 70 | CI71: 200 | CJ71: 210.44 | CK71: 7.014666667 | CL71: 7 | CM71: 5 | CN71: 420 | CO71: 63.76969697 | CP71: 2550.787879 | CQ71: 8030.787879 | CR71: 0.05229872913 | CS71: 73.654 | CT71: 2 | CU71: 180 | CV71: 30.44 | CW71: ! | CZ71: 1 | DA71: 2 | DP71: 2 | DQ71: 2 | DR71: 9.3 | DS71: 1 | DT71: 4 | DU71: 4 | DV71: 2 | DW71: 7.5 | DX71: 1 | DY71: 2 | DZ71: 5 | EK71: 1
A72: 100100356825 | B72: 1 | C72: 1 | D72: 1 | E72: （株）ＫＯＤＡＭＡ | F72: 03-6750-6091 | J72: 2 | K72: 2019-08-01 | L72: 2019-08-04 | O72: 東京都 | P72: 世田谷区 | Q72: 下馬５丁目 | W72: 東横線 | X72: 学芸大学 | Y72: 11 | AJ72: 1 | AL72: 2 | AQ72: 2 | AS72: 3 | AU72: 89800000 | AW72: 3164000 | AX72: 957000 | AZ72: 2 | BA72: 93.85 | BG72: 2 | CB72: 1 | CD72: 1 | CE72: 1 | CG72: 1 | CH72: 50 | CI72: 150 | CJ72: 140.775 | CK72: 4.6925 | CL72: 5 | CM72: 5 | CN72: 300 | CO72: 42.65909091 | CP72: 1706.363636 | CQ72: 10686.36364 | CR72: 0.02807316036 | CS72: 46.925 | CT72: 1 | CU72: 90 | CV72: 50.775 | CW72: ! | CZ72: 1 | DA72: 1 | DP72: 1 | DQ72: 1 | DT72: 7 | DU72: 5.9 | EK72: 1
A73: 100100356834 | B73: 1 | C73: 1 | D73: 1 | E73: （株）ＫＯＤＡＭＡ | F73: 03-6750-6091 | J73: 2 | K73: 2019-08-01 | L73: 2019-08-04 | O73: 東京都 | P73: 世田谷区 | Q73: 下馬５丁目 | W73: 東横線 | X73: 学芸大学 | Y73: 11 | AJ73: 1 | AL73: 2 | AQ73: 2 | AS73: 3 | AU73: 95800000 | AW73: 3375000 | AX73: 1021000 | AZ73: 2 | BA73: 93.85 | BG73: 2 | CB73: 1 | CD73: 1 | CE73: 1 | CG73: 1 | CH73: 50 | CI73: 150 | CJ73: 140.775 | CK73: 4.6925 | CL73: 5 | CM73: 5 | CN73: 300 | CO73: 42.65909091 | CP73: 1706.363636 | CQ73: 11286.36364 | CR73: 0.02658074909 | CS73: 46.925 | CT73: 1 | CU73: 90 | CV73: 50.775 | CW73: ! | CZ73: 1 | DA73: 1 | DP73: 1 | DQ73: 1 | DT73: 7 | DU73: 5.9 | EK73: 1 | GU73: イトーピアホーム施工 売建
A74: 100100356841 | B74: 1 | C74: 1 | D74: 1 | E74: （株）グローバル・キャスト 新宿支店 | F74: 03-5908-4700 | J74: 2 | K74: 2019-08-01 | O74: 東京都 | P74: 杉並区 | Q74: 浜田山１丁目 | W74: 井の頭線 | X74: 西永福 | Y74: 3 | AQ74: 1 | AU74: 115800000 | AW74: 2013000 | AX74: 609000 | BA74: 190.21 | CJ74: 190.21 | CK74: 6.340333333 | CL74: 6 | CM74: 5 | CN74: 360 | CO74: 57.63939394 | CP74: 2305.575758 | CQ74: 13885.57576 | CR74: 0.02592618457 | CS74: 114.126 | CT74: 3 | CU74: 270 | CV74: -79.79
A75: 100100356848 | B75: 1 | C75: 1 | D75: 1 | E75: （株）ＫＯＤＡＭＡ | F75: 03-6750-6091 | J75: 2 | K75: 2019-08-01 | L75: 2019-08-04 | O75: 東京都 | P75: 世田谷区 | Q75: 弦巻１丁目 | W75: 田園都市線 | X75: 駒沢大学 | Y75: 15 | AJ75: 2 | AL75: 1 | AQ75: 2 | AS75: 3 | AU75: 73800000 | AW75: 2634000 | AX75: 797000 | AZ75: 2 | BA75: 92.64 | BG75: 1 | BH75: 13.23 | BK75: 0 | BT75: 2 | CB75: 1 | CD75: 1 | CE75: 1 | CG75: 1 | CH75: 50 | CI75: 100 | CJ75: 92.64 | CK75: 3.088 | CL75: 3 | CM75: 5 | CN75: 180 | CO75: 28.07272727 | CP75: 1122.909091 | CQ75: 8502.909091 | CR75: 0.02116922551 | CS75: 46.32 | CT75: 1 | CU75: 90 | CV75: 2.64 | CW75: ! | CZ75: 1 | DA75: 1 | DP75: 1 | DQ75: 2 | DR75: 6.7 | DS75: 1 | DT75: 4 | DU75: 4 | EK75: 1
A76: 100100356853 | B76: 1 | C76: 1 | D76: 1 | E76: （株）ＫＯＤＡＭＡ | F76: 03-6750-6091 | J76: 2 | K76: 2019-08-01 | O76: 東京都 | P76: 文京区 | Q76: 白山４丁目 | W76: 都営三田線 | X76: 千石 | Y76: 7 | AJ76: 1 | AL76: 1 | AQ76: 2 | AS76: 3 | AU76: 294000000 | AW76: 3239000 | AX76: 980000 | AZ76: 1 | BA76: 300.1 | CH76: 60 | CI76: 150 | CJ76: 450.15 | CK76: 15.005 | CL76: 15 | CM76: 5 | CN76: 900 | CO76: 136.4090909 | CP76: 5456.363636 | CQ76: 34856.36364 | CR76: 0.02582024933 | CS76: 180.06 | CT76: 6 | CU76: 540 | CV76: -89.85 | CZ76: 1 | DA76: 2 | DP76: 1 | DQ76: 1 | DU76: 4 | EK76: 1
A77: 100100356861 | B77: 1 | C77: 1 | D77: 1 | E77: （株）ＫＯＤＡＭＡ | F77: 03-6750-6091 | J77: 2 | K77: 2019-08-01 | O77: 東京都 | P77: 文京区 | Q77: 白山４丁目 | W77: 都営三田線 | X77: 千石 | Y77: 7 | AJ77: 1 | AL77: 1 | AQ77: 2 | AS77: 3 | AU77: 147000000 | AW77: 3216000 | AX77: 973000 | AZ77: 1 | BA77: 151.13 | CH77: 60 | CI77: 150 | CJ77: 226.695 | CK77: 7.5565 | CL77: 8 | CM77: 5 | CN77: 480 | CO77: 68.69545455 | CP77: 2747.818182 | CQ77: 17447.81818 | CR77: 0.02751060304 | CS77: 90.678 | CT77: 3 | CU77: 270 | CV77: -43.305 | CZ77: 1 | DA77: 2 | DP77: 1 | DQ77: 1 | DU77: 4 | EK77: 1 | GV77: ２階建て建築プランございます
A78: 100100356866 | B78: 1 | C78: 1 | D78: 1 | E78: （株）ＫＯＤＡＭＡ | F78: 03-6750-6091 | J78: 2 | K78: 2019-08-01 | O78: 東京都 | P78: 文京区 | Q78: 白山４丁目 | W78: 都営三田線 | X78: 千石 | Y78: 7 | AJ78: 1 | AL78: 1 | AQ78: 2 | AS78: 3 | AU78: 98000000 | AW78: 3240000 | AX78: 980000 | AZ78: 1 | BA78: 100 | CH78: 60 | CI78: 150 | CJ78: 150 | CK78: 5 | CL78: 5 | CM78: 5 | CN78: 300 | CO78: 45.45454545 | CP78: 1818.181818 | CQ78: 11618.18182 | CR78: 0.02582159624 | CS78: 60 | CT78: 2 | CU78: 180 | CV78: -30 | CZ78: 1 | DA78: 2 | DP78: 1 | DQ78: 1 | DU78: 4 | EK78: 1 | GV78: ２階建て建築プランございます
A79: 100100356875 | B79: 1 | C79: 1 | D79: 1 | E79: （株）ＫＯＤＡＭＡ | F79: 03-6750-6091 | J79: 2 | K79: 2019-08-01 | O79: 東京都 | P79: 練馬区 | Q79: 東大泉１丁目 | W79: 西武池袋線 | X79: 大泉学園 | Y79: 10 | AJ79: 1 | AL79: 1 | AQ79: 2 | AS79: 3 | AU79: 45800000 | AW79: 1593000 | AX79: 482000 | AZ79: 2 | BA79: 95.07 | BG79: 2 | CB79: 1 | CD79: 1 | CE79: 12 | CH79: 60 | CI79: 200 | CJ79: 190.14 | CK79: 6.338 | CL79: 6 | CM79: 5 | CN79: 360 | CO79: 57.61818182 | CP79: 2304.727273 | CQ79: 6884.727273 | CR79: 0.05228965299 | CS79: 57.042 | CT79: 1 | CU79: 90 | CV79: 100.14 | CW79: ! | CZ79: 1 | DA79: 2 | DP79: 1 | DQ79: 1 | DT79: 3 | DU79: 4
A80: 100100356962 | B80: 1 | C80: 1 | D80: 1 | E80: ケイアイスター不動産（株） 池袋営業所 | F80: 03-5904-9555 | J80: 2 | K80: 2019-08-01 | O80: 東京都 | P80: 江戸川区 | Q80: 江戸川６丁目 | W80: 都営新宿線 | X80: 一之江 | Y80: 14 | Z80: 1100 | AJ80: 1 | AL80: 2 | AQ80: 1 | AU80: 42000000 | AW80: 1379000 | AX80: 417000 | BA80: 100.74 | BG80: 2 | CB80: 1 | CD80: 1 | CE80: 11 | CG80: 1 | CH80: 60 | CI80: 150 | CJ80: 151.11 | CK80: 5.037 | CL80: 5 | CM80: 5 | CN80: 300 | CO80: 45.79090909 | CP80: 1831.636364 | CQ80: 6031.636364 | CR80: 0.04973774643 | CS80: 60.444 | CT80: 2 | CU80: 180 | CV80: -28.89 | DA80: 2 | DQ80: 1 | DT80: 3 | DU80: 4.5 | DV80: 1 | DY80: 1 | DZ80: 4
A81: 100100356966 | B81: 1 | C81: 1 | D81: 1 | E81: ケイアイスター不動産（株） 池袋営業所 | F81: 03-5904-9555 | J81: 2 | K81: 2019-08-01 | O81: 東京都 | P81: 江戸川区 | Q81: 江戸川６丁目 | W81: 都営新宿線 | X81: 一之江 | Y81: 14 | Z81: 1100 | AJ81: 1 | AL81: 2 | AQ81: 1 | AU81: 41000000 | AW81: 1348000 | AX81: 408000 | BA81: 100.55 | BG81: 2 | CB81: 1 | CD81: 1 | CE81: 11 | CG81: 1 | CH81: 60 | CI81: 150 | CJ81: 150.825 | CK81: 5.0275 | CL81: 5 | CM81: 5 | CN81: 300 | CO81: 45.70454545 | CP81: 1828.181818 | CQ81: 5928.181818 | CR81: 0.05060573532 | CS81: 60.33 | CT81: 2 | CU81: 180 | CV81: -29.175 | DA81: 2 | DQ81: 1 | DT81: 7 | DU81: 4.5 | DV81: 1 | DY81: 1 | DZ81: 4
A82: 100100356969 | B82: 1 | C82: 1 | D82: 1 | E82: ケイアイスター不動産（株） 池袋営業所 | F82: 03-5904-9555 | J82: 2 | K82: 2019-08-01 | O82: 東京都 | P82: 江戸川区 | Q82: 江戸川６丁目 | W82: 都営新宿線 | X82: 一之江 | Y82: 14 | Z82: 1100 | AJ82: 1 | AL82: 2 | AQ82: 1 | AU82: 41000000 | AW82: 1350000 | AX82: 409000 | BA82: 100.46 | BG82: 2 | CB82: 1 | CD82: 1 | CE82: 11 | CG82: 1 | CH82: 60 | CI82: 150 | CJ82: 150.69 | CK82: 5.023 | CL82: 5 | CM82: 5 | CN82: 300 | CO82: 45.66363636 | CP82: 1826.545455 | CQ82: 5926.545455 | CR82: 0.05061970794 | CS82: 60.276 | CT82: 2 | CU82: 180 | CV82: -29.31 | DA82: 2 | DQ82: 1 | DT82: 7 | DU82: 4.5
A83: 100100356973 | B83: 1 | C83: 1 | D83: 1 | E83: ケイアイスター不動産（株） 池袋営業所 | F83: 03-5904-9555 | J83: 2 | K83: 2019-08-01 | O83: 東京都 | P83: 江戸川区 | Q83: 江戸川６丁目 | W83: 都営新宿線 | X83: 一之江 | Y83: 14 | Z83: 1100 | AJ83: 1 | AL83: 2 | AQ83: 1 | AU83: 40000000 | AW83: 1316000 | AX83: 399000 | BA83: 100.49 | BG83: 2 | CB83: 1 | CD83: 1 | CE83: 11 | CG83: 1 | CH83: 60 | CI83: 150 | CJ83: 150.735 | CK83: 5.0245 | CL83: 5 | CM83: 5 | CN83: 300 | CO83: 45.67727273 | CP83: 1827.090909 | CQ83: 5827.090909 | CR83: 0.05148366564 | CS83: 60.294 | CT83: 2 | CU83: 180 | CV83: -29.265 | DA83: 2 | DQ83: 1 | DT83: 3 | DU83: 4.5
A84: 100100356976 | B84: 1 | C84: 1 | D84: 1 | E84: ケイアイスター不動産（株） 池袋営業所 | F84: 03-5904-9555 | J84: 2 | K84: 2019-08-01 | O84: 東京都 | P84: 江戸川区 | Q84: 江戸川６丁目 | W84: 都営新宿線 | X84: 一之江 | Y84: 14 | Z84: 1100 | AJ84: 1 | AL84: 2 | AQ84: 1 | AU84: 44000000 | AW84: 1450000 | AX84: 439000 | BA84: 100.34 | BG84: 2 | CB84: 1 | CD84: 1 | CE84: 11 | CG84: 1 | CH84: 60 | CI84: 150 | CJ84: 150.51 | CK84: 5.017 | CL84: 5 | CM84: 5 | CN84: 300 | CO84: 45.60909091 | CP84: 1824.363636 | CQ84: 6224.363636 | CR84: 0.04819769819 | CS84: 60.204 | CT84: 2 | CU84: 180 | CV84: -29.49 | DA84: 2 | DQ84: 1 | DT84: 7 | DU84: 4.5 | DV84: 1 | DY84: 5 | DZ84: 4.8
A85: 100100356981 | B85: 1 | C85: 1 | D85: 1 | E85: ケイアイスター不動産（株） 池袋営業所 | F85: 03-5904-9555 | J85: 2 | K85: 2019-08-01 | O85: 東京都 | P85: 江戸川区 | Q85: 江戸川６丁目 | W85: 都営新宿線 | X85: 一之江 | Y85: 14 | Z85: 1100 | AJ85: 1 | AL85: 2 | AQ85: 1 | AU85: 46000000 | AW85: 1442000 | AX85: 437000 | BA85: 105.49 | BG85: 2 | CB85: 1 | CD85: 1 | CE85: 11 | CG85: 1 | CH85: 60 | CI85: 150 | CJ85: 158.235 | CK85: 5.2745 | CL85: 5 | CM85: 5 | CN85: 300 | CO85: 47.95 | CP85: 1918 | CQ85: 6518 | CR85: 0.04602638846 | CS85: 63.294 | CT85: 2 | CU85: 180 | CV85: -21.765 | DA85: 2 | DQ85: 1 | DT85: 3 | DU85: 4.5 | DV85: 1 | DY85: 5 | DZ85: 4.8
A86: 100100357017 | B86: 1 | C86: 1 | D86: 1 | E86: 創建ホームズ（株） | F86: 03-5347-5661 | J86: 2 | K86: 2019-08-01 | O86: 東京都 | P86: 世田谷区 | Q86: 八幡山３丁目 | W86: 京王線 | X86: 八幡山 | Y86: 3 | AJ86: 1 | AL86: 1 | AQ86: 1 | AR86: 4 | AU86: 64800000 | AW86: 1714000 | AX86: 519000 | AZ86: 2 | BA86: 125.05 | CA86: 3 | CB86: 1 | CC86: 1 | CD86: 1 | CE86: 1 | CG86: 1 | CH86: 40 | CI86: 80 | CJ86: 100.04 | CK86: 3.334666667 | CL86: 3 | CM86: 5 | CN86: 180 | CO86: 30.31515152 | CP86: 1212.606061 | CQ86: 7692.606061 | CR86: 0.0233990924 | CS86: 50.02 | CT86: 1 | CU86: 90 | CV86: 10.04 | CW86: ! | CZ86: 1 | DA86: 2 | DP86: 2 | DQ86: 1 | DR86: 9.8 | DT86: 7 | DU86: 3.9 | DV86: 1 | DW86: 9.3 | DY86: 1 | DZ86: 3.7 | EK86: 1
A87: 100100357055 | B87: 1 | C87: 1 | D87: 1 | E87: 創建ホームズ（株） | F87: 03-5347-5661 | J87: 2 | K87: 2019-08-01 | O87: 東京都 | P87: 文京区 | Q87: 千石３丁目 | W87: 都営三田線 | X87: 千石 | Y87: 10 | AJ87: 1 | AQ87: 1 | AR87: 4 | AU87: 139600000 | AW87: 3464000 | AX87: 1048000 | BA87: 133.26 | CB87: 1 | CD87: 1 | CE87: 11 | CH87: 60 | CI87: 200 | CJ87: 266.52 | CK87: 8.884 | CL87: 9 | CM87: 5 | CN87: 540 | CO87: 80.76363636 | CP87: 3230.545455 | CQ87: 17190.54545 | CR87: 0.03141261581 | CS87: 79.956 | CT87: 2 | CU87: 180 | CV87: 86.52 | CW87: ! | CZ87: 1 | DA87: 2 | DP87: 1 | DQ87: 1 | DR87: 9.4 | DT87: 2 | DU87: 5.6
A88: 100100357449 | B88: 1 | C88: 1 | D88: 1 | E88: Ｍｒ．ＬＡＮＤ（株） | F88: 03-6261-4097 | J88: 2 | K88: 2019-08-01 | O88: 東京都 | P88: 江戸川区 | Q88: 南小岩７丁目 | W88: 総武中央線 | X88: 小岩 | Y88: 4 | AJ88: 1 | AL88: 1 | AQ88: 1 | AU88: 68000000 | AW88: 2132000 | AX88: 645000 | AZ88: 1 | BA88: 105.45 | BM88: 1.62 | CB88: 1 | CD88: 1 | CE88: 12 | CH88: 60 | CI88: 300 | CJ88: 316.35 | CK88: 10.545 | CL88: 11 | CM88: 5 | CN88: 660 | CO88: 95.86363636 | CP88: 3834.545455 | CQ88: 10634.54545 | CR88: 0.06206189092 | CS88: 63.27 | CT88: 2 | CU88: 180 | CV88: 136.35 | CW88: ! | DP88: 2 | DQ88: 1 | DT88: 1 | DU88: 3.6 | DV88: 1 | DY88: 3 | DZ88: 6
A89: 100100357573 | B89: 1 | C89: 1 | D89: 1 | E89: 大成有楽不動産販売（株） 三鷹センター | F89: 0422-41-5211 | G89: 奥田 直也 | J89: 2 | K89: 2019-08-01 | O89: 東京都 | P89: 西東京市 | Q89: 新町５丁目 | W89: 中央線 | X89: 武蔵境 | Y89: 21 | AJ89: 2 | AL89: 3 | AM89: 201908 | AN89: 3 | AQ89: 4 | AU89: 91800000 | AW89: 921000 | AX89: 279000 | AZ89: 1 | BA89: 329.78 | BG89: 1 | BH89: 19.86 | BK89: 0 | CB89: 1 | CE89: 1 | CH89: 50 | CI89: 100 | CJ89: 329.78 | CK89: 10.99266667 | CL89: 11 | CM89: 5 | CN89: 660 | CO89: 99.93333333 | CP89: 3997.333333 | CQ89: 13177.33333 | CR89: 0.05008600627 | CS89: 164.89 | CT89: 5 | CU89: 450 | CV89: -120.22 | DA89: 2 | DP89: 1 | DQ89: 2 | DT89: 3 | DU89: 4
A90: 100100357763 | B90: 1 | C90: 1 | D90: 1 | E90: （株）アイル・コーポレーション | F90: 03-3368-0170 | J90: 2 | K90: 2019-08-01 | O90: 東京都 | P90: 荒川区 | Q90: 西尾久１丁目 | W90: 山手線 | X90: 田端 | Y90: 13 | AG90: 駅 | AJ90: 2 | AL90: 2 | AQ90: 1 | AU90: 67800000 | AW90: 1689000 | AX90: 511000 | BA90: 132.76 | BG90: 1 | BH90: 10.5 | BK90: 1 | BM90: 4.11 | CB90: 1 | CE90: 6 | CH90: 80 | CI90: 300 | CJ90: 398.28 | CK90: 13.276 | CL90: 13 | CM90: 5 | CN90: 780 | CO90: 120.6909091 | CP90: 4827.636364 | CQ90: 11607.63636 | CR90: 0.06719714295 | CS90: 106.208 | CT90: 3 | CU90: 270 | CV90: 128.28 | CW90: ! | DA90: 2 | DP90: 1 | DQ90: 2 | DT90: 7 | DU90: 4
A91: 100100357936 | B91: 1 | C91: 1 | D91: 1 | E91: 東京アセット（株） | F91: 03-5792-5831 | G91: 西村 | H91: 080-4343-2831 | I91: nishimura@tokyo-asset.jp | J91: 2 | K91: 2019-08-01 | L91: 2019-08-01 | O91: 東京都 | P91: 世田谷区 | Q91: 深沢８丁目 | W91: 田園都市線 | X91: 桜新町 | Y91: 11 | AJ91: 2 | AL91: 2 | AQ91: 4 | AU91: 220000000 | AW91: 2077000 | AX91: 629000 | AZ91: 1 | BA91: 350.29 | CB91: 1 | CD91: 1 | CE91: 1 | CH91: 50 | CI91: 100 | CJ91: 350.29 | CK91: 11.67633333 | CL91: 12 | CM91: 5 | CN91: 720 | CO91: 106.1484848 | CP91: 4245.939394 | CQ91: 26245.93939 | CR91: 0.027432815 | CS91: 175.145 | CT91: 5 | CU91: 450 | CV91: -99.71 | DP91: 1 | DQ91: 1 | DR91: 10 | DU91: 5.3
A92: 100100357990 | B92: 1 | C92: 1 | D92: 1 | E92: （株）藤和ハウス 清瀬店 | F92: 042-496-0077 | G92: 海老原 | J92: 2 | K92: 2019-08-01 | L92: 2019-08-05 | O92: 東京都 | P92: 清瀬市 | Q92: 下宿３丁目 | R92: ７３０－１２ | W92: 武蔵野線 | X92: 新座 | Y92: 21 | AJ92: 2 | AL92: 2 | AQ92: 4 | AR92: 1 | AU92: 17800000 | AW92: 402000 | AX92: 122000 | AZ92: 1 | BA92: 146.51 | BG92: 2 | BK92: 0 | BT92: 2 | CB92: 1 | CD92: 1 | CE92: 1 | CG92: 1 | CH92: 50 | CI92: 100 | CJ92: 146.51 | CK92: 4.883666667 | CL92: 5 | CM92: 5 | CN92: 300 | CO92: 44.3969697 | CP92: 1775.878788 | CQ92: 3555.878788 | CR92: 0.08436733024 | CS92: 73.255 | CT92: 2 | CU92: 180 | CV92: -33.49 | CZ92: 1 | DA92: 2 | DP92: 2 | DQ92: 1 | DR92: 8.1 | DT92: 6 | DU92: 5.8 | DV92: 1 | DW92: 17.2 | DY92: 8 | DZ92: 5 | EK92: 1
A93: 100100358199 | B93: 1 | C93: 1 | D93: 1 | E93: （株）エイゼット | F93: 042-316-5501 | J93: 2 | K93: 2019-08-01 | O93: 東京都 | P93: 東大和市 | Q93: 湖畔１丁目 | W93: 多摩湖線 | X93: 武蔵大和 | Y93: 15 | Z93: 1200 | AJ93: 1 | AL93: 1 | AQ93: 1 | AU93: 11800000 | AW93: 359000 | AX93: 109000 | AZ93: 2 | BA93: 108.7 | CB93: 4 | CD93: 1 | CE93: 1 | CH93: 40 | CI93: 80 | CJ93: 86.96 | CK93: 2.898666667 | CL93: 3 | CM93: 5 | CN93: 180 | CO93: 26.35151515 | CP93: 1054.060606 | CQ93: 2234.060606 | CR93: 0.08057077749 | CS93: 43.48 | CT93: 1 | CU93: 90 | CV93: -3.04 | CZ93: 4 | DP93: 1 | DQ93: 1 | DR93: 8.7 | DU93: 4 | EK93: 1
A94: 100100358212 | B94: 1 | C94: 1 | D94: 1 | E94: （株）エイゼット | F94: 042-316-5501 | J94: 2 | K94: 2019-08-01 | O94: 東京都 | P94: 東大和市 | Q94: 湖畔１丁目 | W94: 多摩湖線 | X94: 武蔵大和 | Y94: 15 | Z94: 1200 | AJ94: 1 | AL94: 1 | AQ94: 1 | AU94: 13800000 | AW94: 415000 | AX94: 126000 | AZ94: 2 | BA94: 110 | CB94: 4 | CD94: 1 | CE94: 1 | CH94: 40 | CI94: 80 | CJ94: 88 | CK94: 2.933333333 | CL94: 3 | CM94: 5 | CN94: 180 | CO94: 26.66666667 | CP94: 1066.666667 | CQ94: 2446.666667 | CR94: 0.07356948229 | CS94: 44 | CT94: 1 | CU94: 90 | CV94: -2 | CZ94: 4 | DA94: 2 | DP94: 2 | DQ94: 1 | DR94: 21.7 | DU94: 4 | EK94: 1
A95: 100100358696 | B95: 1 | C95: 1 | D95: 1 | E95: （有）夢蔵住建 | F95: 042-843-3231 | J95: 2 | K95: 2019-08-01 | O95: 東京都 | P95: 日野市 | Q95: 大字石田 | U95: ３４３－４ | W95: 京王線 | X95: 高幡不動 | Y95: 15 | AJ95: 1 | AQ95: 1 | AU95: 28800000 | AW95: 758000 | AX95: 230000 | AZ95: 1 | BA95: 125.65 | BG95: 1 | BH95: 225 | BK95: 0 | CB95: 1 | CE95: 1 | CG95: 1 | CH95: 40 | CI95: 80 | CJ95: 100.52 | CK95: 3.350666667 | CL95: 3 | CM95: 5 | CN95: 180 | CO95: 30.46060606 | CP95: 1218.424242 | CQ95: 4098.424242 | CR95: 0.04391931859 | CS95: 50.26 | CT95: 1 | CU95: 90 | CV95: 10.52 | CW95: ! | DA95: 1
A96: 100100358713 | B96: 1 | C96: 1 | D96: 1 | E96: （有）夢蔵住建 | F96: 042-843-3231 | J96: 2 | K96: 2019-08-01 | O96: 東京都 | P96: 府中市 | Q96: 新町２丁目 | W96: 京王線 | X96: 府中 | AA96: 8 | AD96: 3 | AJ96: 1 | AQ96: 1 | AU96: 30800000 | AW96: 935000 | AX96: 283000 | AZ96: 1 | BA96: 108.95 | BG96: 2 | CB96: 1 | CD96: 1 | CE96: 1 | CG96: 1 | CH96: 40 | CI96: 80 | CJ96: 87.16 | CK96: 2.905333333 | CL96: 3 | CM96: 5 | CN96: 180 | CO96: 26.41212121 | CP96: 1056.484848 | CQ96: 4136.484848 | CR96: 0.04351520835 | CS96: 43.58 | CT96: 1 | CU96: 90 | CV96: -2.84 | CZ96: 1 | DA96: 1 | DP96: 1 | DQ96: 1 | EK96: 1
A97: 100100358721 | B97: 1 | C97: 1 | D97: 1 | E97: （有）夢蔵住建 | F97: 042-843-3231 | J97: 2 | K97: 2019-08-01 | O97: 東京都 | P97: 杉並区 | Q97: 南荻窪１丁目 | W97: 中央線 | X97: 荻窪 | Y97: 17 | AJ97: 1 | AL97: 1 | AQ97: 1 | AU97: 54500000 | AW97: 1950000 | AX97: 590000 | AZ97: 2 | BA97: 92.4 | BG97: 2 | BK97: 0 | BT97: 2 | CB97: 1 | CD97: 1 | CE97: 11 | CG97: 1 | CH97: 60 | CI97: 200 | CJ97: 184.8 | CK97: 6.16 | CL97: 6 | CM97: 5 | CN97: 360 | CO97: 56 | CP97: 2240 | CQ97: 7690 | CR97: 0.04681404421 | CS97: 55.44 | CT97: 1 | CU97: 90 | CV97: 94.8 | CW97: ! | CZ97: 1 | DA97: 2 | DP97: 1 | DQ97: 1 | DR97: 8.1 | DU97: 6.4 | EK97: 1
A98: 100100358733 | B98: 1 | C98: 1 | D98: 1 | E98: （有）夢蔵住建 | F98: 042-843-3231 | J98: 2 | K98: 2019-08-01 | O98: 東京都 | P98: 日野市 | Q98: 万願寺１丁目 | W98: 多摩モノレ | X98: 万願寺 | Y98: 8 | AJ98: 1 | AQ98: 1 | AU98: 27200000 | AW98: 729000 | AX98: 221000 | AZ98: 2 | BA98: 123.5 | BG98: 2 | BK98: 0 | BT98: 2 | CB98: 5 | CD98: 1 | CE98: 1 | CG98: 1 | CH98: 50 | CI98: 100 | CJ98: 123.5 | CK98: 4.116666667 | CL98: 4 | CM98: 5 | CN98: 240 | CO98: 37.42424242 | CP98: 1496.969697 | CQ98: 4216.969697 | CR98: 0.05691290601 | CS98: 61.75 | CT98: 2 | CU98: 180 | CV98: -56.5 | CZ98: 1 | DA98: 1 | DP98: 1 | DQ98: 1 | EK98: 1 | GU98: 土地のみ販売可、広告掲載不可
A99: 100100358897 | B99: 1 | C99: 1 | D99: 1 | E99: （株）相栄商事 | F99: 050-3177-4240 | J99: 2 | K99: 2019-08-01 | L99: 2019-08-05 | O99: 東京都 | P99: 世田谷区 | Q99: 成城４丁目 | R99: 2019-11-04 | W99: 小田急線 | X99: 成城学園前 | Y99: 13 | Z99: 1040 | AJ99: 2 | AL99: 2 | AQ99: 5 | AR99: 1 | AU99: 179900000 | AW99: 2590000 | AX99: 784000 | AZ99: 1 | BA99: 229.65 | CB99: 1 | CD99: 1 | CE99: 1 | CG99: 1 | CH99: 40 | CI99: 80 | CJ99: 183.72 | CK99: 6.124 | CL99: 6 | CM99: 5 | CN99: 360 | CO99: 55.67272727 | CP99: 2226.909091 | CQ99: 20216.90909 | CR99: 0.01780687633 | CS99: 91.86 | CT99: 3 | CU99: 270 | CV99: -86.28 | DQ99: 1 | DR99: 6.3 | DT99: 5 | DU99: 6 | DV99: 2 | DW99: 26.3 | DY99: 7 | DZ99: 4
A100: 100100358900 | B100: 1 | C100: 1 | D100: 1 | E100: （株）カドヤ不動産 | F100: 03-3771-2101 | J100: 2 | K100: 2019-08-01 | O100: 東京都 | P100: 大田区 | Q100: 山王３丁目 | W100: 京浜東北線 | X100: 大森 | Y100: 11 | Z100: 880 | AJ100: 2 | AL100: 2 | AQ100: 4 | AR100: 1 | AU100: 300000000 | AW100: 3310000 | AX100: 1002000 | BA100: 299.7 | BG100: 2 | CB100: 1 | CD100: 1 | CE100: 1 | CG100: 1 | CH100: 50 | CI100: 100 | CJ100: 299.7 | CK100: 9.99 | CL100: 10 | CM100: 5 | CN100: 600 | CO100: 90.81818182 | CP100: 3632.727273 | CQ100: 33632.72727 | CR100: 0.01783976646 | CS100: 149.85 | CT100: 4 | CU100: 360 | CV100: -60.3 | CZ100: 2 | DQ100: 1 | DT100: 5 | DU100: 4.4
A101: 100100359953 | B101: 1 | C101: 1 | D101: 1 | E101: （有）東邦土地商会 | F101: 042-572-0716 | J101: 2 | K101: 2019-08-01 | O101: 東京都 | P101: 国立市 | Q101: 東４丁目 | W101: 中央線 | X101: 国立 | Y101: 18 | AJ101: 2 | AL101: 2 | AQ101: 4 | AR101: 1 | AU101: 83400000 | AW101: 1197000 | AX101: 363000 | BA101: 230.38 | BG101: 1 | BH101: 28.78 | CB101: 1 | CC101: 1 | CD101: 1 | CE101: 1 | CG101: 1 | CH101: 50 | CI101: 100 | CJ101: 230.38 | CK101: 7.679333333 | CL101: 8 | CM101: 5 | CN101: 480 | CO101: 69.81212121 | CP101: 2792.484848 | CQ101: 11132.48485 | CR101: 0.04311705846 | CS101: 115.19 | CT101: 3 | CU101: 270 | CV101: -39.62 | CZ101: 1 | DP101: 2
A102: 100100360107 | B102: 1 | C102: 1 | D102: 1 | E102: （株）ベストホームクリエイト | F102: 03-5939-4558 | G102: 小林 | J102: 2 | K102: 2019-08-01 | L102: 2019-08-02 | O102: 東京都 | P102: 豊島区 | Q102: 駒込７丁目 | W102: 南北線 | X102: 西ヶ原 | Y102: 9 | AJ102: 1 | AL102: 1 | AQ102: 1 | AS102: 6 | AU102: 79800000 | AW102: 2102000 | AX102: 636000 | BA102: 125.54 | CB102: 1 | CC102: 1 | CD102: 1 | CE102: 12 | CG102: 15 | CH102: 80 | CI102: 300 | CJ102: 376.62 | CK102: 12.554 | CL102: 13 | CM102: 5 | CN102: 780 | CO102: 114.1272727 | CP102: 4565.090909 | CQ102: 12545.09091 | CR102: 0.06217571524 | CS102: 100.432 | CT102: 3 | CU102: 270 | CV102: 106.62 | CW102: ! | CZ102: 1 | DA102: 2 | DP102: 1 | DQ102: 2 | DS102: 2 | DU102: 3.5 | EK102: 1
A103: 100100360132 | B103: 1 | C103: 1 | D103: 1 | E103: （株）希希 | F103: 03-5482-1722 | J103: 2 | K103: 2019-08-01 | O103: 東京都 | P103: 世田谷区 | Q103: 北沢４丁目 | W103: 小田急線 | X103: 下北沢 | Y103: 9 | AJ103: 1 | AL103: 2 | AQ103: 3 | AR103: 1 | AU103: 94600000 | AW103: 3468000 | AX103: 1049000 | AZ103: 2 | BA103: 90.2 | CB103: 1 | CD103: 1 | CE103: 1 | CG103: 1 | CH103: 50 | CI103: 150 | CJ103: 135.3 | CK103: 4.51 | CL103: 5 | CM103: 5 | CN103: 300 | CO103: 41 | CP103: 1640 | CQ103: 11100 | CR103: 0.02702702703 | CS103: 45.1 | CT103: 1 | CU103: 90 | CV103: 45.3 | CW103: ! | DA103: 1 | DP103: 2 | GW103: Ｂ０１２２
A104: 100100360273 | B104: 1 | C104: 1 | D104: 1 | E104: （株）日興商事不動産 | F104: 0422-51-7373 | J104: 3 | K104: 2019-08-01 | O104: 東京都 | P104: 東村山市 | Q104: 廻田町３丁目 | R104: 2019-03-05 | W104: 多摩湖線 | X104: 武蔵大和 | Y104: 8 | AJ104: 1 | AL104: 1 | AQ104: 3 | AU104: 26400000 | AW104: 441000 | AX104: 134000 | BA104: 198.01 | BH104: 33.54 | CB104: 1 | CD104: 1 | CE104: 1 | CH104: 40 | CI104: 80 | CJ104: 158.408 | CK104: 5.280266667 | CL104: 5 | CM104: 5 | CN104: 300 | CO104: 48.00242424 | CP104: 1920.09697 | CQ104: 4560.09697 | CR104: 0.06578807468 | CS104: 79.204 | CT104: 2 | CU104: 180 | CV104: -21.592 | CZ104: 1 | DA104: 2 | DP104: 1 | DQ104: 2 | DR104: 2 | DS104: 1 | DT104: 4 | DU104: 4
A105: 100100360324 | B105: 1 | C105: 1 | D105: 1 | E105: 山口不動産（株） | F105: 042-581-2103 | G105: ０４２－５８１－６０１２ | J105: 2 | K105: 2019-08-01 | O105: 東京都 | P105: 狛江市 | Q105: 猪方３丁目 | W105: 小田急線 | X105: 和泉多摩川 | Y105: 6 | AJ105: 1 | AL105: 2 | AQ105: 4 | AR105: 1 | AU105: 49800000 | AW105: 1125000 | AX105: 341000 | AZ105: 1 | BA105: 146.41 | CB105: 1 | CD105: 1 | CE105: 1 | CH105: 40 | CI105: 80 | CJ105: 117.128 | CK105: 3.904266667 | CL105: 4 | CM105: 5 | CN105: 240 | CO105: 35.49333333 | CP105: 1419.733333 | CQ105: 6399.733333 | CR105: 0.03750156257 | CS105: 58.564 | CT105: 1 | CU105: 90 | CV105: 27.128 | CW105: ! | CZ105: 1 | DA105: 2 | DP105: 1 | DQ105: 1 | DR105: 13.7 | DT105: 8 | DU105: 5.4 | EK105: 1
A106: 100100360406 | B106: 1 | C106: 1 | D106: 1 | E106: （株）希希ライフプラン | F106: 03-5482-2066 | J106: 2 | K106: 2019-08-01 | O106: 東京都 | P106: 大田区 | Q106: 多摩川１丁目 | W106: 東急多摩川 | X106: 矢口渡 | Y106: 3 | AJ106: 1 | AL106: 2 | AQ106: 5 | AU106: 162500000 | AW106: 3212000 | AX106: 972000 | AZ106: 2 | BA106: 167.26 | CB106: 1 | CD106: 1 | CE106: 4 | CF106: 13 | CG106: 2 | CJ106: 167.26 | CK106: 5.575333333 | CL106: 6 | CM106: 5 | CN106: 360 | CO106: 50.68484848 | CP106: 2027.393939 | CQ106: 18277.39394 | CR106: 0.01969646226 | CS106: 100.356 | CT106: 3 | CU106: 270 | CV106: -102.74 | CZ106: 1 | DP106: 1 | DQ106: 1 | DR106: 13.9 | DU106: 8.3 | GW106: Ｂ０１６７
A107: 100100360747 | B107: 1 | C107: 1 | D107: 1 | E107: 住友不動産販売（株） 小石川営業センター | F107: 03-5981-5671 | G107: 上村 祐太郎 | H107: 03-5981-5671 | J107: 2 | K107: 2019-08-01 | L107: 2019-08-03 | O107: 東京都 | P107: 新宿区 | Q107: 市谷柳町 | W107: 大江戸線 | X107: 牛込柳町 | Y107: 3 | Z107: 240 | AJ107: 2 | AL107: 2 | AQ107: 4 | AR107: 1 | AU107: 160000000 | AW107: 2722000 | AX107: 824000 | AZ107: 1 | BA107: 194.38 | CA107: 3 | CB107: 1 | CC107: 1 | CD107: 1 | CE107: 12 | CF107: 4 | CH107: 60 | CI107: 300 | CJ107: 583.14 | CK107: 19.438 | CL107: 19 | CM107: 5 | CN107: 1140 | CO107: 176.7090909 | CP107: 7068.363636 | CQ107: 23068.36364 | CR107: 0.04941832971 | CS107: 116.628 | CT107: 3 | CU107: 270 | CV107: 313.14 | CW107: ! | CZ107: 1 | DA107: 2 | DP107: 5 | DQ107: 1 | DR107: 12.4 | DS107: 2 | DT107: 3 | DU107: 5.1 | DV107: 2 | DW107: 2.9 | DX107: 2 | DY107: 7 | DZ107: 2.9 | EE107: 0 | EJ107: 0 | EK107: 1 | GV107: 近隣商業地域の建ぺい率８０％、容積率４００％
A108: 100100360754 | B108: 1 | C108: 1 | D108: 1 | E108: 住友不動産販売（株） 新小岩営業センター | F108: 03-5678-8221 | G108: 木﨑 在 | H108: 03-5678-8221 | J108: 2 | K108: 2019-08-01 | L108: 2019-08-05 | O108: 東京都 | P108: 江戸川区 | Q108: 篠崎町２丁目 | W108: 都営新宿線 | X108: 篠崎 | Y108: 8 | Z108: 640 | AJ108: 1 | AL108: 2 | AQ108: 3 | AR108: 1 | AU108: 49800000 | AW108: 1530000 | AX108: 463000 | AZ108: 1 | BA108: 107.65 | BG108: 2 | CA108: 3 | CB108: 1 | CC108: 1 | CD108: 1 | CE108: 12 | CG108: 1 | CH108: 60 | CI108: 300 | CJ108: 322.95 | CK108: 10.765 | CL108: 11 | CM108: 5 | CN108: 660 | CO108: 97.86363636 | CP108: 3914.545455 | CQ108: 8894.545455 | CR108: 0.07420278005 | CS108: 64.59 | CT108: 2 | CU108: 180 | CV108: 142.95 | CW108: ! | CZ108: 1 | DA108: 2 | DP108: 1 | DQ108: 1 | DR108: 7.3 | DS108: 2 | DT108: 8 | DU108: 14 | DZ108: 0 | EE108: 0 | EJ108: 0 | EK108: 1 | GQ108: セブンイレブン江戸川篠崎町２丁目店 | GR108: 80 | GS108: 1 | GT108: 1
A109: 100100360767 | B109: 1 | C109: 1 | D109: 1 | E109: 住友不動産販売（株） 渋谷営業センター | F109: 03-5728-4011 | G109: 上出琢 | H109: 03-5728-4011 | J109: 2 | K109: 2019-08-01 | L109: 2019-08-05 | O109: 東京都 | P109: 世田谷区 | Q109: 下馬５丁目 | W109: 東横線 | X109: 学芸大学 | Y109: 11 | Z109: 880 | AJ109: 2 | AL109: 2 | AQ109: 5 | AR109: 1 | AU109: 104800000 | AW109: 3494000 | AX109: 1057000 | AZ109: 1 | BA109: 99.18 | BG109: 2 | CA109: 3 | CB109: 1 | CC109: 1 | CD109: 1 | CE109: 1 | CG109: 1 | CH109: 50 | CI109: 150 | CJ109: 148.77 | CK109: 4.959 | CL109: 5 | CM109: 5 | CN109: 300 | CO109: 45.08181818 | CP109: 1803.272727 | CQ109: 12283.27273 | CR109: 0.02442345836 | CS109: 49.59 | CT109: 1 | CU109: 90 | CV109: 58.77 | CW109: ! | CZ109: 1 | DA109: 2 | DP109: 1 | DQ109: 1 | DR109: 8.9 | DS109: 2 | DT109: 4 | DU109: 3.9 | EK109: 1
A110: 100100360768 | B110: 1 | C110: 1 | D110: 1 | E110: 住友不動産販売（株） 渋谷営業センター | F110: 03-5728-4011 | G110: 上出琢 | H110: 03-5728-4011 | J110: 2 | K110: 2019-08-01 | L110: 2019-08-05 | O110: 東京都 | P110: 世田谷区 | Q110: 下馬５丁目 | W110: 東横線 | X110: 学芸大学 | Y110: 11 | Z110: 880 | AJ110: 2 | AL110: 2 | AQ110: 5 | AR110: 1 | AU110: 104800000 | AW110: 3493000 | AX110: 1057000 | AZ110: 1 | BA110: 99.19 | BG110: 2 | CA110: 3 | CB110: 1 | CC110: 1 | CD110: 1 | CE110: 1 | CG110: 1 | CH110: 50 | CI110: 150 | CJ110: 148.785 | CK110: 4.9595 | CL110: 5 | CM110: 5 | CN110: 300 | CO110: 45.08636364 | CP110: 1803.454545 | CQ110: 12283.45455 | CR110: 0.02442309685 | CS110: 49.595 | CT110: 1 | CU110: 90 | CV110: 58.785 | CW110: ! | CZ110: 1 | DA110: 2 | DP110: 1 | DQ110: 1 | DR110: 8.3 | DS110: 2 | DT110: 4 | DU110: 3.3 | EK110: 1
A111: 100100360769 | B111: 1 | C111: 1 | D111: 1 | E111: 住友不動産販売（株） 渋谷営業センター | F111: 03-5728-4011 | G111: 上出琢 | H111: 03-5728-4011 | J111: 2 | K111: 2019-08-01 | L111: 2019-08-05 | O111: 東京都 | P111: 世田谷区 | Q111: 下馬５丁目 | W111: 東横線 | X111: 学芸大学 | Y111: 11 | Z111: 880 | AJ111: 2 | AL111: 2 | AQ111: 5 | AR111: 1 | AU111: 112800000 | AW111: 3760000 | AX111: 1138000 | AZ111: 1 | BA111: 99.19 | BG111: 2 | CA111: 3 | CB111: 1 | CC111: 1 | CD111: 1 | CE111: 1 | CG111: 1 | CH111: 60 | CI111: 150 | CJ111: 148.785 | CK111: 4.9595 | CL111: 5 | CM111: 5 | CN111: 300 | CO111: 45.08636364 | CP111: 1803.454545 | CQ111: 13083.45455 | CR111: 0.02292972387 | CS111: 59.514 | CT111: 1 | CU111: 90 | CV111: 58.785 | CW111: ! | CZ111: 1 | DA111: 2 | DP111: 2 | DQ111: 1 | DR111: 8.4 | DS111: 2 | DT111: 4 | DU111: 3.3 | DV111: 1 | DW111: 13.1 | DX111: 2 | DY111: 6 | DZ111: 5.9 | EK111: 1
A112: 100100360775 | B112: 1 | C112: 1 | D112: 1 | E112: 住友不動産販売（株） 荻窪営業センター | F112: 03-3220-2161 | G112: 射場 亮圭 | H112: 03-3220-2161 | J112: 2 | K112: 2019-08-01 | L112: 2019-08-04 | O112: 東京都 | P112: 杉並区 | Q112: 久我山４丁目 | W112: 井の頭線 | X112: 久我山 | Y112: 7 | Z112: 560 | AJ112: 2 | AL112: 2 | AQ112: 3 | AR112: 1 | AU112: 95000000 | AW112: 2202000 | AX112: 666000 | AZ112: 1 | BA112: 142.67 | BG112: 2 | BK112: 1 | BL112: 0.1 | BM112: 1 | BT112: 2 | CA112: 3 | CB112: 1 | CC112: 1 | CD112: 1 | CE112: 1 | CG112: 1 | CH112: 60 | CI112: 100 | CJ112: 142.67 | CK112: 4.755666667 | CL112: 5 | CM112: 5 | CN112: 300 | CO112: 43.23333333 | CP112: 1729.333333 | CQ112: 11229.33333 | CR112: 0.02671574448 | CS112: 85.602 | CT112: 2 | CU112: 180 | CV112: -37.33 | CZ112: 1 | DA112: 2 | DP112: 2 | DQ112: 1 | DR112: 10.6 | DS112: 2 | DT112: 1 | DU112: 4.2 | DV112: 1 | DW112: 10.1 | DX112: 2 | DY112: 3 | DZ112: 3.9 | EE112: 0 | EJ112: 0 | EK112: 1 | GQ112: 区立高井戸第二小学校 | GR112: 320 | GS112: 4 | GT112: 1
A113: 100100360811 | B113: 1 | C113: 1 | D113: 1 | E113: 住友不動産販売（株） 八王子営業センター | F113: 042-646-1201 | G113: 前川 秀明 | H113: 042-646-1201 | J113: 2 | K113: 2019-08-01 | O113: 東京都 | P113: 八王子市 | Q113: 絹ケ丘２丁目 | W113: 京王線 | X113: 北野 | Y113: 14 | Z113: 1120 | AJ113: 2 | AL113: 1 | AQ113: 3 | AR113: 1 | AU113: 19800000 | AW113: 273000 | AX113: 83000 | AZ113: 1 | BA113: 240.46 | CA113: 3 | CB113: 1 | CD113: 1 | CE113: 1 | CG113: 1 | CH113: 40 | CI113: 80 | CJ113: 192.368 | CK113: 6.412266667 | CL113: 6 | CM113: 5 | CN113: 360 | CO113: 58.29333333 | CP113: 2331.733333 | CQ113: 4311.733333 | CR113: 0.08349310409 | CS113: 96.184 | CT113: 3 | CU113: 270 | CV113: -77.632 | CZ113: 4 | DA113: 2 | DP113: 2 | DQ113: 1 | DR113: 11.6 | DS113: 2 | DT113: 2 | DU113: 6.6 | DV113: 1 | DW113: 13.1 | DX113: 2 | DY113: 8 | DZ113: 5 | EE113: 0 | EJ113: 0 | EK113: 1 | GQ113: 市立高嶺小学校 | GR113: 1400 | GS113: 18 | GT113: 1
A114: 100100360814 | B114: 1 | C114: 1 | D114: 1 | E114: （株）Ｐｅｏｐｌｅ | F114: 03-6380-5917 | J114: 2 | K114: 2019-08-01 | L114: 2019-08-01 | O114: 東京都 | P114: 練馬区 | Q114: 豊玉中２丁目 | W114: 西武池袋線 | X114: 練馬 | Y114: 12 | AJ114: 2 | AL114: 2 | AQ114: 1 | AU114: 59800000 | AW114: 1688000 | AX114: 511000 | BA114: 117.12 | BG114: 1 | CB114: 1 | CD114: 1 | CE114: 11 | CH114: 60 | CI114: 200 | CJ114: 234.24 | CK114: 7.808 | CL114: 8 | CM114: 5 | CN114: 480 | CO114: 70.98181818 | CP114: 2839.272727 | CQ114: 8819.272727 | CR114: 0.05442625655 | CS114: 70.272 | CT114: 2 | CU114: 180 | CV114: 54.24 | CW114: ! | DP114: 1 | DQ114: 2 | DR114: 4 | DS114: 1 | DT114: 7 | DU114: 4
A115: 100100360819 | B115: 1 | C115: 1 | D115: 1 | E115: 住友不動産販売（株） 町田営業センター | F115: 042-723-1311 | G115: 遠藤 卓也 | H115: 042-723-1311 | J115: 2 | K115: 2019-08-01 | L115: 2019-08-03 | O115: 東京都 | P115: 町田市 | Q115: 小川４丁目 | W115: 田園都市線 | X115: すずかけ台 | Y115: 15 | Z115: 1200 | AJ115: 2 | AL115: 2 | AQ115: 3 | AR115: 1 | AU115: 59900000 | AW115: 600000 | AX115: 182000 | AZ115: 1 | BA115: 330.16 | CA115: 3 | CB115: 1 | CD115: 1 | CE115: 1 | CG115: 1 | CH115: 50 | CI115: 100 | CJ115: 330.16 | CK115: 11.00533333 | CL115: 11 | CM115: 5 | CN115: 660 | CO115: 100.0484848 | CP115: 4001.939394 | CQ115: 9991.939394 | CR115: 0.06605324292 | CS115: 165.08 | CT115: 5 | CU115: 450 | CV115: -119.84 | DA115: 2 | DP115: 3 | DQ115: 1 | DR115: 15.7 | DS115: 2 | DT115: 7 | DU115: 4 | DV115: 1 | DW115: 9 | DX115: 2 | DY115: 6 | DZ115: 9 | EA115: 1 | EB115: 24.8 | EC115: 2 | ED115: 4 | EE115: 6.1 | EJ115: 0
A116: 100100360827 | B116: 1 | C116: 1 | D116: 1 | E116: 住友不動産販売（株） 仙川営業センター | F116: 03-5315-5851 | G116: 山本 翔 | H116: 03-5315-5851 | J116: 2 | K116: 2019-08-01 | O116: 東京都 | P116: 世田谷区 | Q116: 上祖師谷６丁目 | W116: 京王線 | X116: 千歳烏山 | Y116: 12 | Z116: 960 | AJ116: 2 | AL116: 2 | AQ116: 3 | AR116: 1 | AU116: 54800000 | AW116: 962000 | AX116: 291000 | BA116: 188.37 | BG116: 1 | BH116: 28.78 | CA116: 3 | CB116: 1 | CD116: 1 | CE116: 1 | CG116: 1 | CH116: 40 | CI116: 80 | CJ116: 150.696 | CK116: 5.0232 | CL116: 5 | CM116: 5 | CN116: 300 | CO116: 45.66545455 | CP116: 1826.618182 | CQ116: 7306.618182 | CR116: 0.04105866661 | CS116: 75.348 | CT116: 2 | CU116: 180 | CV116: -29.304 | CZ116: 1 | DA116: 2 | DP116: 1 | DQ116: 2 | DR116: 2 | DS116: 1 | DT116: 2 | DU116: 4 | DZ116: 0 | EE116: 0 | EJ116: 0 | EK116: 1 | GV116: 都市計画道路に敷地の約３６％がかかっております。
A117: 100100360853 | B117: 1 | C117: 1 | D117: 1 | E117: 住友不動産販売（株） 田無営業センター | F117: 042-467-8211 | G117: 福本悠介 | H117: 042-467-8211 | J117: 2 | K117: 2019-08-01 | L117: 2019-08-03 | O117: 東京都 | P117: 東久留米市 | Q117: 中央町６丁目 | W117: 西武池袋線 | X117: 東久留米 | Y117: 19 | Z117: 1520 | AJ117: 1 | AL117: 2 | AQ117: 5 | AR117: 1 | AU117: 51000000 | AW117: 743000 | AX117: 225000 | BA117: 227.07 | BG117: 2 | CA117: 3 | CB117: 1 | CD117: 1 | CE117: 4 | CG117: 1 | CH117: 80 | CI117: 200 | CJ117: 454.14 | CK117: 15.138 | CL117: 15 | CM117: 5 | CN117: 900 | CO117: 137.6181818 | CP117: 5504.727273 | CQ117: 10604.72727 | CR117: 0.08486781195 | CS117: 181.656 | CT117: 6 | CU117: 540 | CV117: -85.86 | CZ117: 1 | DA117: 2 | DP117: 1 | DQ117: 1 | DR117: 10.4 | DS117: 2 | DT117: 1 | DU117: 10 | DZ117: 0 | EE117: 0 | EJ117: 0 | EK117: 1
A118: 100100360881 | B118: 1 | C118: 1 | D118: 1 | E118: 住友不動産販売（株） 錦糸町営業センター | F118: 03-3635-8711 | G118: 瀬木貴則 | H118: 03-3635-8711 | J118: 2 | K118: 2019-08-01 | L118: 2019-08-05 | O118: 東京都 | P118: 葛飾区 | Q118: 東新小岩４丁目 | W118: 総武線 | X118: 新小岩 | Y118: 15 | Z118: 1200 | AJ118: 1 | AL118: 2 | AQ118: 4 | AR118: 1 | AU118: 47800000 | AW118: 1656000 | AX118: 501000 | AZ118: 2 | BA118: 95.46 | BG118: 2 | BK118: 1 | BL118: 0.1 | BM118: 4.06 | BT118: 2 | CA118: 3 | CB118: 1 | CC118: 1 | CD118: 1 | CE118: 6 | CG118: 1 | CH118: 60 | CI118: 200 | CJ118: 190.92 | CK118: 6.364 | CL118: 6 | CM118: 5 | CN118: 360 | CO118: 57.85454545 | CP118: 2314.181818 | CQ118: 7094.181818 | CR118: 0.05074580963 | CS118: 57.276 | CT118: 1 | CU118: 90 | CV118: 100.92 | CW118: ! | CZ118: 1 | DA118: 2 | DP118: 3 | DQ118: 1 | DR118: 8.6 | DS118: 2 | DT118: 6 | DU118: 14.4 | DV118: 1 | DW118: 9.7 | DX118: 2 | DY118: 2 | DZ118: 3.6 | EA118: 1 | EB118: 6.5 | EC118: 2 | ED118: 4 | EE118: 3.6 | EJ118: 0 | EK118: 1
A119: 100100361302 | B119: 1 | C119: 1 | D119: 1 | E119: 三菱地所リアルエステートサービス（株） アドバイザリー部 | F119: 03-3510-7123 | G119: 中村 暢彦 | H119: 03-3510-7124 | J119: 2 | K119: 2019-08-01 | L119: 2019-08-02 | O119: 東京都 | P119: 墨田区 | Q119: 立川１丁目 | W119: 大江戸線 | X119: 森下 | Y119: 4 | Z119: 270 | AJ119: 2 | AL119: 2 | AQ119: 5 | AR119: 1 | AU119: 122000000 | AW119: 2781000 | AX119: 842000 | AZ119: 1 | BA119: 145.04 | BG119: 2 | BK119: 1 | BM119: 4.96 | BT119: 2 | CA119: 3 | CB119: 1 | CC119: 1 | CD119: 1 | CE119: 6 | CH119: 60 | CI119: 300 | CJ119: 435.12 | CK119: 14.504 | CL119: 15 | CM119: 5 | CN119: 900 | CO119: 131.8545455 | CP119: 5274.181818 | CQ119: 17474.18182 | CR119: 0.05150455737 | CS119: 87.024 | CT119: 2 | CU119: 180 | CV119: 255.12 | CW119: ! | DP119: 5 | DQ119: 1 | DR119: 10 | DS119: 2 | DT119: 5 | DU119: 6.1 | DV119: 1 | DW119: 9.9 | DX119: 2 | DY119: 1 | DZ119: 3 | EK119: 1
A120: 100100361310 | B120: 1 | C120: 1 | D120: 1 | E120: 三井住友トラスト不動産（株） 八王子センター | F120: 042-646-4060 | G120: 赤羽 一貴 | H120: 042-646-4060 | I120: hachioji@smtrc.jp | J120: 2 | K120: 2019-08-01 | L120: 2019-08-01 | O120: 東京都 | P120: 八王子市 | Q120: 犬目町 | W120: 中央線 | X120: 八王子 | AA120: 24 | AC120: 新清水橋 | AD120: 5 | AJ120: 2 | AL120: 2 | AQ120: 4 | AU120: 9800000 | AW120: 221000 | AX120: 67000 | AZ120: 1 | BA120: 147 | BG120: 1 | BK120: 0 | CA120: 3 | CB120: 4 | CC120: 1 | CD120: 1 | CE120: 1 | CH120: 40 | CI120: 80 | CJ120: 117.6 | CK120: 3.92 | CL120: 4 | CM120: 5 | CN120: 240 | CO120: 35.63636364 | CP120: 1425.454545 | CQ120: 2405.454545 | CR120: 0.09977324263 | CS120: 58.8 | CT120: 1 | CU120: 90 | CV120: 27.6 | CW120: ! | DA120: 2 | DP120: 1 | DQ120: 2 | DR120: 2.4 | DS120: 1 | DT120: 3 | DU120: 4 | GQ120: セブンイレブン八王子犬目店 | GR120: 410 | GW120: Ｂｈｏ１９０２６３
A121: 100100361528 | B121: 1 | C121: 1 | D121: 1 | E121: 住友林業ホームサービス（株） 藤沢店 | F121: 0466-52-2377 | G121: 佐藤 琢也 | H121: 0466-52-2377 | J121: 2 | K121: 2019-08-01 | O121: 東京都 | P121: 世田谷区 | Q121: 上馬４丁目 | W121: 田園都市線 | X121: 駒沢大学 | Y121: 4 | Z121: 320 | AJ121: 1 | AL121: 2 | AQ121: 4 | AR121: 1 | AU121: 82800000 | AW121: 2787000 | AX121: 843000 | AZ121: 1 | BA121: 98.23 | BG121: 2 | BK121: 0 | BT121: 2 | CA121: 3 | CB121: 1 | CD121: 1 | CE121: 11 | CG121: 1 | CH121: 60 | CI121: 150 | CJ121: 147.345 | CK121: 4.9115 | CL121: 5 | CM121: 5 | CN121: 300 | CO121: 44.65 | CP121: 1786 | CQ121: 10066 | CR121: 0.02980329823 | CS121: 58.938 | CT121: 1 | CU121: 90 | CV121: 57.345 | CW121: ! | DA121: 2 | DP121: 1 | DQ121: 1 | DR121: 6 | DS121: 2 | DT121: 7 | DU121: 7.9 | EK121: 1 | GQ121: セブンイレブン | GR121: 210 | GS121: 3 | GT121: 1 | GU121: ＳＭＡ９０９５３
A122: 100100361592 | B122: 1 | C122: 1 | D122: 1 | E122: 東急リバブル（株） 立川センター | F122: 042-528-0109 | J122: 2 | K122: 2019-08-01 | L122: 2019-08-03 | O122: 東京都 | P122: 立川市 | Q122: 富士見町５丁目 | W122: 中央線 | X122: 立川 | Y122: 15 | AJ122: 2 | AL122: 2 | AQ122: 3 | AR122: 1 | AU122: 30800000 | AW122: 1027000 | AX122: 311000 | AZ122: 1 | BA122: 99.17 | CA122: 3 | CB122: 1 | CD122: 1 | CE122: 1 | CG122: 1 | CH122: 50 | CI122: 100 | CJ122: 99.17 | CK122: 3.305666667 | CL122: 3 | CM122: 5 | CN122: 180 | CO122: 30.05151515 | CP122: 1202.060606 | CQ122: 4282.060606 | CR122: 0.04203583661 | CS122: 49.585 | CT122: 1 | CU122: 90 | CV122: 9.17 | CW122: ! | CZ122: 1 | DP122: 1 | DQ122: 1 | DS122: 2 | DT122: 4 | DU122: 4.2 | EK122: 1 | GW122: ＣＺＢ１９７Ｇ４４
A123: 100100363709 | B123: 1 | C123: 1 | D123: 1 | E123: （株）ディールデザイン | F123: 03-5459-1417 | G123: 浅野 | H123: 8011740157 | J123: 2 | K123: 2019-08-01 | O123: 東京都 | P123: 練馬区 | Q123: 関町北３丁目 | W123: 西武新宿線 | X123: 武蔵関 | Y123: 7 | AJ123: 2 | AL123: 2 | AQ123: 4 | AR123: 1 | AU123: 54800000 | AW123: 1218000 | AX123: 369000 | AZ123: 1 | BA123: 148.76 | BG123: 2 | CB123: 1 | CD123: 1 | CE123: 1 | CH123: 50 | CI123: 100 | CJ123: 148.76 | CK123: 4.958666667 | CL123: 5 | CM123: 5 | CN123: 300 | CO123: 45.07878788 | CP123: 1803.151515 | CQ123: 7283.151515 | CR123: 0.04119095962 | CS123: 74.38 | CT123: 2 | CU123: 180 | CV123: -31.24 | CZ123: 3 | DP123: 1 | EK123: 1
A124: 100100364019 | B124: 1 | C124: 1 | D124: 1 | E124: ライズ（株） | F124: 03-5766-3648 | G124: 秋山 | J124: 2 | K124: 2019-08-01 | O124: 東京都 | P124: 世田谷区 | Q124: 桜上水２丁目 | W124: 京王線 | X124: 桜上水 | Y124: 14 | AJ124: 1 | AL124: 1 | AQ124: 1 | AR124: 4 | AS124: 3 | AU124: 69900000 | AW124: 1378000 | AX124: 417000 | BA124: 167.74 | BK124: 1 | BM124: 1.33 | CB124: 1 | CD124: 1 | CE124: 1 | CH124: 50 | CI124: 100 | CJ124: 167.74 | CK124: 5.591333333 | CL124: 6 | CM124: 5 | CN124: 360 | CO124: 50.83030303 | CP124: 2033.212121 | CQ124: 9023.212121 | CR124: 0.03989710041 | CS124: 83.87 | CT124: 2 | CU124: 180 | CV124: -12.26 | CZ124: 1 | DA124: 2
A125: 100100364238 | B125: 1 | C125: 1 | D125: 1 | E125: （株）サンデイホームズ | F125: 03-5733-4358 | G125: 宮崎 | I125: miyazaki@sandy-holmes.com | J125: 2 | K125: 2019-08-01 | O125: 東京都 | P125: 世田谷区 | Q125: 砧２丁目 | R125: 図面表 | W125: 小田急線 | X125: 祖師ヶ谷大蔵 | Y125: 11 | AJ125: 1 | AL125: 2 | AQ125: 1 | AR125: 4 | AS125: 3 | AU125: 59800000 | AW125: 2173000 | AX125: 658000 | BA125: 91 | CB125: 1 | CD125: 1 | CE125: 1 | CH125: 50 | CI125: 100 | CJ125: 91 | CK125: 3.033333333 | CL125: 3 | CM125: 5 | CN125: 180 | CO125: 27.57575758 | CP125: 1103.030303 | CQ125: 7083.030303 | CR125: 0.02541285189 | CS125: 45.5 | CT125: 1 | CU125: 90 | CV125: 1 | CW125: ! | CZ125: 2 | DA125: 2 | DP125: 1 | DQ125: 1 | DT125: 5 | DU125: 6
A126: 100100364251 | B126: 1 | C126: 1 | D126: 1 | E126: 東京中央不動産（株） | F126: 03-6225-2211 | G126: 伊藤 | J126: 2 | K126: 2019-08-01 | O126: 東京都 | P126: 江東区 | Q126: 東砂２丁目 | W126: 都営新宿線 | X126: 東大島 | Y126: 13 | AJ126: 1 | AL126: 1 | AQ126: 1 | AR126: 4 | AS126: 3 | AU126: 72680000 | AW126: 1391000 | AX126: 421000 | AZ126: 1 | BA126: 172.85 | BG126: 2 | BK126: 0 | CB126: 1 | CD126: 1 | CE126: 6 | CH126: 60 | CI126: 300 | CJ126: 518.55 | CK126: 17.285 | CL126: 17 | CM126: 5 | CN126: 1020 | CO126: 157.1363636 | CP126: 6285.454545 | CQ126: 13553.45455 | CR126: 0.075257566 | CS126: 103.71 | CT126: 3 | CU126: 270 | CV126: 248.55 | CW126: ! | CZ126: 1 | DP126: 1 | DQ126: 1 | DT126: 5 | DU126: 7.1 | EK126: 1
A127: 100100364261 | B127: 1 | C127: 1 | D127: 1 | E127: （株）リライ | F127: 042-516-8355 | J127: 2 | K127: 2019-08-01 | O127: 東京都 | P127: 杉並区 | Q127: 西荻北２丁目 | W127: 中央線 | X127: 西荻窪 | Y127: 8 | AJ127: 1 | AL127: 1 | AQ127: 1 | AU127: 98000000 | AW127: 1761000 | AX127: 533000 | AZ127: 1 | BA127: 184 | CB127: 1 | CD127: 1 | CE127: 1 | CG127: 1 | CH127: 50 | CI127: 100 | CJ127: 184 | CK127: 6.133333333 | CL127: 6 | CM127: 5 | CN127: 360 | CO127: 55.75757576 | CP127: 2230.30303 | CQ127: 12030.30303 | CR127: 0.02992443325 | CS127: 92 | CT127: 3 | CU127: 270 | CV127: -86 | DA127: 2
A128: 100100364338 | B128: 1 | C128: 1 | D128: 1 | E128: （株）成ハウジング | F128: 042-520-3502 | G128: 増田 | I128: masuda@nari-housing.net | J128: 2 | K128: 2019-08-01 | O128: 東京都 | P128: 武蔵村山市 | Q128: 残堀４丁目 | W128: 西武拝島線 | X128: 西武立川 | AA128: 10 | AC128: 五中南 | AD128: 5 | AL128: 2 | AQ128: 4 | AR128: 1 | AU128: 15800000 | AW128: 382000 | AX128: 116000 | AZ128: 1 | BA128: 136.94 | BG128: 2 | CB128: 1 | CD128: 1 | CE128: 1 | CH128: 40 | CI128: 80 | CJ128: 109.552 | CK128: 3.651733333 | CL128: 4 | CM128: 5 | CN128: 240 | CO128: 33.19757576 | CP128: 1327.90303 | CQ128: 2907.90303 | CR128: 0.08253370126 | CS128: 54.776 | CT128: 1 | CU128: 90 | CV128: 19.552 | CW128: ! | CZ128: 1 | DA128: 2 | DP128: 1 | DQ128: 1 | DR128: 2.5 | DT128: 2 | DU128: 5 | EK128: 1
A129: 100100364364 | B129: 1 | C129: 1 | D129: 1 | E129: （有）住地ハウジング | F129: 042-627-1231 | G129: 中島 | J129: 2 | K129: 2019-08-01 | L129: 2019-08-02 | O129: 東京都 | P129: 昭島市 | Q129: 中神町 | W129: 青梅線 | X129: 中神 | Y129: 11 | AJ129: 1 | AL129: 1 | AQ129: 1 | AR129: 1 | AS129: 3 | AU129: 27100000 | AW129: 863000 | AX129: 261000 | AZ129: 1 | BA129: 103.91 | BG129: 1 | CA129: 3 | CB129: 1 | CD129: 1 | CE129: 6 | CH129: 60 | CI129: 200 | CJ129: 207.82 | CK129: 6.927333333 | CL129: 7 | CM129: 5 | CN129: 420 | CO129: 62.97575758 | CP129: 2519.030303 | CQ129: 5229.030303 | CR129: 0.08032081967 | CS129: 62.346 | CT129: 2 | CU129: 180 | CV129: 27.82 | CW129: ! | CZ129: 1 | DA129: 2 | DP129: 5 | DQ129: 1 | DR129: 8 | DT129: 8 | DU129: 7.2 | DV129: 2 | DW129: 4 | DY129: 4 | DZ129: 1 | GQ129: 市立武蔵野小学校 | GR129: 850
A130: 100100364411 | B130: 1 | C130: 1 | D130: 1 | E130: （株）潔ハウジング | F130: 03-6314-0756 | G130: 吉川 | J130: 2 | K130: 2019-08-01 | O130: 東京都 | P130: 練馬区 | Q130: 大泉学園町８丁目 | W130: 大江戸線 | X130: 光が丘 | AA130: 18 | AD130: 2 | AJ130: 1 | AL130: 1 | AQ130: 5 | AR130: 1 | AU130: 36200000 | AW130: 1301000 | AX130: 394000 | AZ130: 1 | BA130: 92.01 | BG130: 1 | BH130: 10.48 | CB130: 1 | CD130: 1 | CE130: 4 | CH130: 80 | CI130: 300 | CJ130: 276.03 | CK130: 9.201 | CL130: 9 | CM130: 5 | CN130: 540 | CO130: 83.64545455 | CP130: 3345.818182 | CQ130: 6965.818182 | CR130: 0.07752140322 | CS130: 73.608 | CT130: 2 | CU130: 180 | CV130: 96.03 | CW130: ! | CZ130: 1 | DA130: 2 | DP130: 2 | DQ130: 1 | DT130: 1 | DU130: 11 | EK130: 1
A131: 100100364422 | B131: 1 | C131: 1 | D131: 1 | E131: （株）潔ハウジング | F131: 03-6314-0756 | G131: 吉川 | J131: 2 | K131: 2019-08-01 | O131: 東京都 | P131: 練馬区 | Q131: 大泉学園町８丁目 | W131: 有楽町線 | X131: 地下鉄成増 | AA131: 18 | AD131: 2 | AJ131: 1 | AL131: 1 | AQ131: 5 | AR131: 1 | AU131: 36200000 | AW131: 1301000 | AX131: 394000 | AZ131: 1 | BA131: 92.01 | BG131: 1 | BH131: 10.48 | CB131: 1 | CD131: 1 | CE131: 4 | CH131: 80 | CI131: 300 | CJ131: =IF(ISBLANK(CI131),100,CI131)/100*BA131 -> 276.03 | CK131: =CJ131/30 -> 9.201 | CL131: =ROUND(CK131,0) -> 9 | CM131: 5 | CN131: =CM131*12*CL131 -> 540 | CO131: =CJ131/3.3 -> 83.64545455 | CP131: =CO131*40 -> 3345.818182 | CQ131: =CP131+(AU131/10000) -> 6965.818182 | CR131: =CN131/CQ131 -> 0.07752140322 | CS131: =IF(ISBLANK(CH131),60,CH131)/100*BA131 -> 73.608 | CT131: =ROUNDDOWN((CS131/30),0) -> 2 | CU131: =CT131*30*3 -> 180 | CV131: =CJ131-CU131 -> 96.03 | CW131: =IF(CV131>0, "!","") -> ! | CZ131: 1 | DA131: 2 | DP131: 2 | DQ131: 1 | DT131: 1 | DU131: 11 | EK131: 1
A132: 100100364434 | B132: 1 | C132: 1 | D132: 1 | E132: （株）潔ハウジング | F132: 03-6314-0756 | G132: 吉川 | J132: 2 | K132: 2019-08-01 | O132: 東京都 | P132: 練馬区 | Q132: 大泉学園町８丁目 | W132: 西武池袋線 | X132: 大泉学園 | AA132: 18 | AD132: 2 | AJ132: 1 | AL132: 1 | AQ132: 5 | AR132: 1 | AU132: 36200000 | AW132: 1301000 | AX132: 394000 | AZ132: 1 | BA132: 92.01 | BG132: 1 | BH132: 10.48 | CB132: 1 | CD132: 1 | CE132: 4 | CH132: 80 | CI132: 300 | CJ132: 276.03 | CK132: 9.201 | CL132: 9 | CM132: 5 | CN132: 540 | CO132: 83.64545455 | CP132: 3345.818182 | CQ132: 6965.818182 | CR132: 0.07752140322 | CS132: 73.608 | CT132: 2 | CU132: 180 | CV132: 96.03 | CW132: ! | CZ132: 1 | DA132: 2 | DP132: 2 | DQ132: 1 | DT132: 1 | DU132: 11 | EK132: 1
A133: 100100364710 | B133: 1 | C133: 1 | D133: 1 | E133: （株）アール・エコ | F133: 042-794-7365 | J133: 2 | K133: 2019-08-01 | O133: 東京都 | P133: 町田市 | Q133: 金井町 | R133: ２９４１－６１ | W133: 小田急線 | X133: 玉川学園前 | Y133: 16 | AJ133: 2 | AL133: 1 | AQ133: 1 | AR133: 4 | AS133: 3 | AU133: 32800000 | AW133: 532000 | AX133: 161000 | AZ133: 1 | BA133: 203.87 | BG133: 2 | BK133: 0 | CA133: 3 | CB133: 1 | CC133: 1 | CD133: 1 | CE133: 1 | CG133: 1 | CH133: 50 | CI133: 80 | CJ133: 163.096 | CK133: 5.436533333 | CL133: 5 | CM133: 5 | CN133: 300 | CO133: 49.4230303 | CP133: 1976.921212 | CQ133: 5256.921212 | CR133: 0.0570676234 | CS133: 101.935 | CT133: 3 | CU133: 270 | CV133: -106.904 | CZ133: 2 | DA133: 2 | DP133: 3 | DQ133: 1 | DS133: 2 | DT133: 6 | DU133: 6 | EK133: 1
A134: 100100364806 | B134: 1 | C134: 1 | D134: 1 | E134: （株）藤友 | F134: 03-3414-5177 | J134: 2 | K134: 2019-08-01 | O134: 東京都 | P134: 町田市 | Q134: 木曽東１丁目 | W134: 横浜線 | X134: 古淵 | Y134: 15 | AJ134: 1 | AL134: 2 | AQ134: 4 | AR134: 1 | AU134: 21600000 | AW134: 637000 | AX134: 193000 | AZ134: 2 | BA134: 112.25 | BK134: 1 | CB134: 1 | CC134: 1 | CD134: 1 | CE134: 2 | CG134: 1 | CH134: 50 | CI134: 100 | CJ134: 112.25 | CK134: 3.741666667 | CL134: 4 | CM134: 5 | CN134: 240 | CO134: 34.01515152 | CP134: 1360.606061 | CQ134: 3520.606061 | CR134: 0.06817008091 | CS134: 56.125 | CT134: 1 | CU134: 90 | CV134: 22.25 | CW134: ! | DA134: 2 | DP134: 1 | DQ134: 1 | DR134: 7.4 | DT134: 8 | DU134: 1.8 | EK134: 1
A135: 100100364812 | B135: 1 | C135: 1 | D135: 1 | E135: （株）高建住宅 | F135: 03-3922-1111 | G135: 須永 | J135: 2 | K135: 2019-08-01 | O135: 東京都 | P135: 練馬区 | Q135: 大泉学園町８丁目 | W135: 西武池袋線 | X135: 大泉学園 | AA135: 18 | AC135: 長久保 | AD135: 2 | AJ135: 1 | AL135: 2 | AQ135: 5 | AU135: 36200000 | AW135: 1301000 | AX135: 394000 | AZ135: 1 | BA135: 92.01 | CE135: 4 | CG135: 1 | CH135: 80 | CI135: 300 | CJ135: 276.03 | CK135: 9.201 | CL135: 9 | CM135: 5 | CN135: 540 | CO135: 83.64545455 | CP135: 3345.818182 | CQ135: 6965.818182 | CR135: 0.07752140322 | CS135: 73.608 | CT135: 2 | CU135: 180 | CV135: 96.03 | CW135: ! | CZ135: 1 | DP135: 2 | DQ135: 1 | DR135: 6.4 | DT135: 1 | DU135: 11 | DV135: 2 | DW135: 4 | DY135: 7 | DZ135: 13.8
A136: 100100365029 | B136: 1 | C136: 1 | D136: 1 | E136: （株）アイビーホーム | F136: 042-579-1005 | J136: 2 | K136: 2019-08-01 | O136: 東京都 | P136: 福生市 | Q136: 大字熊川 | W136: 五日市線 | X136: 熊川 | Y136: 2 | AJ136: 1 | AL136: 1 | AQ136: 1 | AS136: 3 | AU136: 20800000 | AW136: 567000 | AX136: 172000 | AZ136: 1 | BA136: 121.48 | BG136: 2 | CB136: 1 | CC136: 1 | CD136: 1 | CE136: 12 | CG136: 1 | CH136: 60 | CI136: 200 | CJ136: 242.96 | CK136: 8.098666667 | CL136: 8 | CM136: 5 | CN136: 480 | CO136: 73.62424242 | CP136: 2944.969697 | CQ136: 5024.969697 | CR136: 0.09552296411 | CS136: 72.888 | CT136: 2 | CU136: 180 | CV136: 62.96 | CW136: ! | CZ136: 1 | DA136: 2 | DP136: 1 | DQ136: 1 | DR136: 19 | DS136: 2 | DU136: 7 | EK136: 1
A137: 100100365039 | B137: 1 | C137: 1 | D137: 1 | E137: （株）藤友 | F137: 03-3414-5177 | J137: 2 | K137: 2019-08-01 | O137: 東京都 | P137: 町田市 | Q137: 木曽東１丁目 | W137: 横浜線 | X137: 古淵 | Y137: 15 | AJ137: 1 | AL137: 2 | AQ137: 4 | AR137: 1 | AU137: 27800000 | AW137: 548000 | AX137: 166000 | AZ137: 2 | BA137: 167.95 | BK137: 1 | CB137: 1 | CC137: 1 | CD137: 1 | CE137: 2 | CG137: 1 | CH137: 50 | CI137: 100 | CJ137: 167.95 | CK137: 5.598333333 | CL137: 6 | CM137: 5 | CN137: 360 | CO137: 50.89393939 | CP137: 2035.757576 | CQ137: 4815.757576 | CR137: 0.07475459351 | CS137: 83.975 | CT137: 2 | CU137: 180 | CV137: -12.05 | DA137: 2 | DP137: 1 | DQ137: 1 | DR137: 10 | DT137: 8 | DU137: 1.8 | EK137: 1
A138: 100100365304 | B138: 1 | C138: 1 | D138: 1 | E138: （株）クリアパートナー | F138: 03-6263-2147 | G138: 中西 | H138: 080-6650-4216 | I138: info@clear-partner.com | J138: 2 | K138: 2019-08-01 | O138: 東京都 | P138: 北区 | Q138: 西が丘２丁目 | W138: 埼京線 | X138: 十条 | Y138: 17 | AJ138: 2 | AL138: 2 | AQ138: 5 | AR138: 1 | AU138: 36000000 | AW138: 1050000 | AX138: 318000 | AZ138: 1 | BA138: 113.35 | CB138: 1 | CD138: 1 | CE138: 10 | CH138: 60 | CI138: 150 | CJ138: 170.025 | CK138: 5.6675 | CL138: 6 | CM138: 5 | CN138: 360 | CO138: 51.52272727 | CP138: 2060.909091 | CQ138: 5660.909091 | CR138: 0.06359402602 | CS138: 68.01 | CT138: 2 | CU138: 180 | CV138: -9.975 | DP138: 1 | DQ138: 1 | DT138: 1 | EK138: 1 | GU138: 現況有姿、瑕疵担保免責 | GV138: 公簿売買、境界非明示、司法書士指定
A139: 100100365377 | B139: 1 | C139: 1 | D139: 1 | E139: （株）ベストセレクト 南浦和店 | F139: 048-499-3901 | G139: 渡辺 | J139: 2 | K139: 2019-08-01 | O139: 東京都 | P139: 福生市 | Q139: 大字福生 | W139: 青梅線 | X139: 福生 | Y139: 5 | AJ139: 1 | AL139: 2 | AQ139: 4 | AR139: 1 | AU139: 19800000 | AW139: 652000 | AX139: 198000 | AZ139: 1 | BA139: 100.46 | BG139: 2 | BK139: 1 | BM139: 4.27 | CB139: 1 | CD139: 1 | CE139: 4 | CG139: 1 | CH139: 80 | CI139: 200 | CJ139: 200.92 | CK139: 6.697333333 | CL139: 7 | CM139: 5 | CN139: 420 | CO139: 60.88484848 | CP139: 2435.393939 | CQ139: 4415.393939 | CR139: 0.09512175035 | CS139: 80.368 | CT139: 2 | CU139: 180 | CV139: 20.92 | CW139: ! | CZ139: 1 | DA139: 1 | DP139: 1 | DQ139: 1
A140: 100100365866 | B140: 1 | C140: 1 | D140: 1 | E140: ステップ・インベストメント（株） | F140: 03-5358-0871 | G140: 飛田（とびた） | H140: 9026510771 | I140: tobita.akira@stepon.co.jp | J140: 2 | K140: 2019-08-01 | O140: 東京都 | P140: 世田谷区 | Q140: 桜上水５丁目 | W140: 京王線 | X140: 桜上水 | Y140: 5 | AJ140: 1 | AL140: 2 | AQ140: 1 | AS140: 3 | AU140: 69800000 | AW140: 2312000 | AX140: 700000 | AZ140: 2 | BA140: 99.84 | BT140: 2 | CB140: 1 | CD140: 1 | CE140: 1 | CG140: 1 | CH140: 50 | CI140: 100 | CJ140: 99.84 | CK140: 3.328 | CL140: 3 | CM140: 5 | CN140: 180 | CO140: 30.25454545 | CP140: 1210.181818 | CQ140: 8190.181818 | CR140: 0.02197753408 | CS140: 49.92 | CT140: 1 | CU140: 90 | CV140: 9.84 | CW140: ! | CZ140: 1 | DA140: 2 | DP140: 1 | DQ140: 1 | DR140: 6.2 | DT140: 6 | DU140: 4.5 | EK140: 1
A141: 100100365871 | B141: 1 | C141: 1 | D141: 1 | E141: ステップ・インベストメント（株） | F141: 03-5358-0871 | G141: 飛田（とびた） | H141: 9026510771 | I141: tobita.akira@stepon.co.jp | J141: 2 | K141: 2019-08-01 | O141: 東京都 | P141: 世田谷区 | Q141: 桜上水５丁目 | W141: 京王線 | X141: 桜上水 | Y141: 5 | AJ141: 1 | AL141: 2 | AQ141: 1 | AS141: 3 | AU141: 71000000 | AW141: 2296000 | AX141: 695000 | AZ141: 2 | BA141: 102.26 | BT141: 2 | CB141: 1 | CD141: 1 | CE141: 1 | CG141: 1 | CH141: 50 | CI141: 100 | CJ141: 102.26 | CK141: 3.408666667 | CL141: 3 | CM141: 5 | CN141: 180 | CO141: 30.98787879 | CP141: 1239.515152 | CQ141: 8339.515152 | CR141: 0.0215839886 | CS141: 51.13 | CT141: 1 | CU141: 90 | CV141: 12.26 | CW141: ! | CZ141: 1 | DA141: 2 | DP141: 1 | DQ141: 1 | DR141: 6.2 | DT141: 6 | DU141: 4.5 | EK141: 1
A142: 100100365881 | B142: 1 | C142: 1 | D142: 1 | E142: ステップ・インベストメント（株） | F142: 03-5358-0871 | G142: 飛田（とびた） | H142: 9026510771 | I142: tobita.akira@stepon.co.jp | J142: 2 | K142: 2019-08-01 | O142: 東京都 | P142: 世田谷区 | Q142: 桜上水５丁目 | W142: 京王線 | X142: 桜上水 | Y142: 5 | AJ142: 1 | AL142: 1 | AQ142: 1 | AS142: 3 | AU142: 140800000 | AW142: 2304000 | AX142: 697000 | AZ142: 2 | BA142: 202.1 | BG142: 1 | BH142: 0.53 | BT142: 2 | CB142: 1 | CD142: 1 | CE142: 1 | CG142: 1 | CH142: 50 | CI142: 100 | CJ142: 202.1 | CK142: 6.736666667 | CL142: 7 | CM142: 5 | CN142: 420 | CO142: 61.24242424 | CP142: 2449.69697 | CQ142: 16529.69697 | CR142: 0.02540881426 | CS142: 101.05 | CT142: 3 | CU142: 270 | CV142: -67.9 | CZ142: 1 | DA142: 2 | DP142: 1 | DQ142: 1 | DR142: 13.1 | DT142: 6 | DU142: 4.5 | EK142: 1
A143: 100100366245 | B143: 1 | C143: 1 | D143: 1 | E143: （株）城北エステート | F143: 03-5356-6688 | J143: 2 | K143: 2019-08-01 | O143: 東京都 | P143: 足立区 | Q143: 青井４丁目 | W143: つくばＥＸ | X143: 青井 | Y143: 7 | AJ143: 2 | AL143: 2 | AQ143: 4 | AU143: 35400000 | AW143: 970000 | AX143: 294000 | AZ143: 1 | BA143: 120.76 | CA143: 3 | CB143: 1 | CD143: 1 | CE143: 11 | CH143: 60 | CI143: 200 | CJ143: 241.52 | CK143: 8.050666667 | CL143: 8 | CM143: 5 | CN143: 480 | CO143: 73.18787879 | CP143: 2927.515152 | CQ143: 6467.515152 | CR143: 0.07421706618 | CS143: 72.456 | CT143: 2 | CU143: 180 | CV143: 61.52 | CW143: ! | CZ143: 1 | DP143: 1 | DQ143: 2 | DR143: 2 | DT143: 7
A144: 100100367486 | B144: 1 | C144: 1 | D144: 1 | E144: （株）シティハウス | F144: 042-776-8555 | J144: 2 | K144: 2019-08-01 | O144: 東京都 | P144: 立川市 | Q144: 西砂町４丁目 | W144: 西武拝島線 | X144: 西武立川 | Y144: 18 | AJ144: 1 | AL144: 2 | AQ144: 1 | AR144: 4 | AU144: 31800000 | AW144: 589000 | AX144: 178000 | AZ144: 1 | BA144: 178.7 | CB144: 1 | CD144: 1 | CE144: 11 | CH144: 60 | CI144: 200 | CJ144: 357.4 | CK144: 11.91333333 | CL144: 12 | CM144: 5 | CN144: 720 | CO144: 108.3030303 | CP144: 4332.121212 | CQ144: 7512.121212 | CR144: 0.09584509883 | CS144: 107.22 | CT144: 3 | CU144: 270 | CV144: 87.4 | CW144: ! | CZ144: 1 | DP144: 3 | EK144: 1
A145: 100100367511 | B145: 1 | C145: 1 | D145: 1 | E145: （株）シティハウス | F145: 042-776-8555 | J145: 2 | K145: 2019-08-01 | O145: 東京都 | P145: 町田市 | Q145: 野津田町 | R145: １５４－１ | W145: 横浜線 | X145: 淵野辺 | AA145: 12 | AC145: 神学校 | AD145: 4 | AJ145: 1 | AL145: 1 | AQ145: 1 | AU145: 13800000 | AW145: 360000 | AX145: 109000 | BA145: 126.91 | BG145: 2 | BK145: 0 | CA145: 3 | CB145: 1 | CD145: 1 | CE145: 6 | CH145: 60 | CI145: 200 | CJ145: 253.82 | CK145: 8.460666667 | CL145: 8 | CM145: 5 | CN145: 480 | CO145: 76.91515152 | CP145: 3076.606061 | CQ145: 4456.606061 | CR145: 0.1077052792 | CS145: 76.146 | CT145: 2 | CU145: 180 | CV145: 73.82 | CW145: ! | CZ145: 1 | DA145: 2 | DP145: 1 | DQ145: 1 | DU145: 5.4 | EK145: 1 | GU145: 手数料６％（税込）に変更
A146: 100100370015 | B146: 1 | C146: 1 | D146: 1 | E146: アクセスホーム（株） | F146: 03-5311-4949 | G146: 小山 | J146: 2 | K146: 2019-08-01 | O146: 東京都 | P146: 狛江市 | Q146: 東和泉２丁目 | W146: 小田急線 | X146: 狛江 | Y146: 5 | AJ146: 2 | AL146: 2 | AQ146: 1 | AU146: 43800000 | AW146: 1187000 | AX146: 359000 | BA146: 122.02 | CB146: 1 | CD146: 1 | CE146: 1 | CH146: 40 | CI146: 80 | CJ146: 97.616 | CK146: 3.253866667 | CL146: 3 | CM146: 5 | CN146: 180 | CO146: 29.58060606 | CP146: 1183.224242 | CQ146: 5563.224242 | CR146: 0.03235533787 | CS146: 48.808 | CT146: 1 | CU146: 90 | CV146: 7.616 | CW146: !
A147: 100100370057 | B147: 1 | C147: 1 | D147: 1 | E147: （株）ミブコーポレーション | F147: 03-3420-0033 | G147: 丸山 | H147: 03-3420-0033 | J147: 2 | K147: 2019-08-01 | L147: 2019-08-05 | O147: 東京都 | P147: 大田区 | Q147: 田園調布２丁目 | W147: 東横線 | X147: 田園調布 | Y147: 10 | AJ147: 2 | AL147: 2 | AQ147: 5 | AU147: 85800000 | AW147: 2351000 | AX147: 712000 | BA147: 120.67 | CB147: 1 | CD147: 1 | CE147: 1 | CH147: 50 | CI147: 100 | CJ147: 120.67 | CK147: 4.022333333 | CL147: 4 | CM147: 5 | CN147: 240 | CO147: 36.56666667 | CP147: 1462.666667 | CQ147: 10042.66667 | CR147: 0.02389803505 | CS147: 60.335 | CT147: 2 | CU147: 180 | CV147: -59.33 | DQ147: 1 | DT147: 8 | DU147: 5.4
A148: 100100370281 | B148: 1 | C148: 1 | D148: 1 | E148: （株）斉藤物産 | F148: 042-471-0378 | J148: 2 | K148: 2019-08-01 | O148: 東京都 | P148: 東村山市 | Q148: 恩多町１丁目 | W148: 西武新宿線 | X148: 久米川 | AA148: 7 | AC148: 青葉町２丁目 | AD148: 8 | AJ148: 1 | AL148: 2 | AQ148: 1 | AU148: 109500000 | AW148: 722000 | AX148: 219000 | AZ148: 2 | BA148: 501.82 | BG148: 2 | BK148: 0 | BT148: 2 | CA148: 3 | CB148: 1 | CD148: 1 | CE148: 6 | CG148: 5 | CH148: 60 | CI148: 200 | CJ148: 1003.64 | CK148: 33.45466667 | CL148: 33 | CM148: 5 | CN148: 1980 | CO148: 304.1333333 | CP148: 12165.33333 | CQ148: 23115.33333 | CR148: 0.08565742797 | CS148: 301.092 | CT148: 10 | CU148: 900 | CV148: 103.64 | CW148: ! | CZ148: 1 | DA148: 2 | DP148: 1 | DQ148: 2 | DR148: 14 | DS148: 1 | DT148: 1 | DU148: 6 | EK148: 1
A149: 100100370586 | B149: 1 | C149: 1 | D149: 1 | E149: ＶＥ－ＳＴ（株） | F149: 03-6427-2066 | J149: 2 | K149: 2019-08-01 | O149: 東京都 | P149: 世田谷区 | Q149: 奥沢６丁目 | W149: 東横線 | X149: 自由が丘 | Y149: 10 | AQ149: 1 | AU149: 149800000 | AW149: 3319000 | AX149: 1004000 | AZ149: 2 | BA149: 149.23 | CJ149: 149.23 | CK149: 4.974333333 | CL149: 5 | CM149: 5 | CN149: 300 | CO149: 45.22121212 | CP149: 1808.848485 | CQ149: 16788.84848 | CR149: 0.01786900396 | CS149: 89.538 | CT149: 2 | CU149: 180 | CV149: -30.77 | CZ149: 1 | DA149: 2 | DP149: 1 | DQ149: 1 | DR149: 11.8 | DT149: 8 | DU149: 6.2
A150: 100100370630 | B150: 1 | C150: 1 | D150: 1 | E150: （株）ランディックス 自由が丘センター | F150: 03-3722-6111 | G150: 松本 | J150: 2 | K150: 2019-08-01 | L150: 2019-08-03 | O150: 東京都 | P150: 大田区 | Q150: 田園調布２丁目 | W150: 東横線 | X150: 田園調布 | Y150: 10 | AJ150: 2 | AL150: 2 | AQ150: 5 | AU150: 85800000 | AW150: 2351000 | AX150: 712000 | AZ150: 2 | BA150: 120.67 | BG150: 2 | CB150: 1 | CD150: 1 | CE150: 1 | CH150: 50 | CI150: 100 | CJ150: 120.67 | CK150: 4.022333333 | CL150: 4 | CM150: 5 | CN150: 240 | CO150: 36.56666667 | CP150: 1462.666667 | CQ150: 10042.66667 | CR150: 0.02389803505 | CS150: 60.335 | CT150: 2 | CU150: 180 | CV150: -59.33 | DP150: 1 | DQ150: 1 | DR150: 9.1 | DT150: 8 | DU150: 5.4 | EK150: 1
A151: 100100370722 | B151: 1 | C151: 1 | D151: 1 | E151: （株）三多摩不動産 | F151: 042-341-4041 | J151: 2 | K151: 2019-08-01 | O151: 東京都 | P151: 小平市 | Q151: 仲町 | W151: 西武新宿線 | X151: 小平 | Y151: 15 | AG151: 西武多摩湖線の青梅街道駅より徒歩 | AH151: 9 | AJ151: 1 | AL151: 2 | AQ151: 4 | AR151: 1 | AU151: 24100000 | AW151: 850000 | AX151: 258000 | AZ151: 2 | BA151: 93.76 | CB151: 1 | CD151: 1 | CE151: 1 | CH151: 40 | CI151: 80 | CJ151: 75.008 | CK151: 2.500266667 | CL151: 3 | CM151: 5 | CN151: 180 | CO151: 22.72969697 | CP151: 909.1878788 | CQ151: 3319.187879 | CR151: 0.05423013296 | CS151: 37.504 | CT151: 1 | CU151: 90 | CV151: -14.992 | CZ151: 1 | DA151: 2 | DP151: 5 | DQ151: 2
A152: 100100370726 | B152: 1 | C152: 1 | D152: 1 | E152: （株）ホーク・ワン 稲城支店 | F152: 042-378-6868 | J152: 2 | K152: 2019-08-01 | L152: 2019-08-01 | O152: 東京都 | P152: 西東京市 | Q152: 中町６丁目 | W152: 西武新宿線 | X152: 東伏見 | Y152: 17 | AA152: 5 | AC152: 中町６丁目 | AD152: 4 | AJ152: 1 | AL152: 2 | AQ152: 1 | AR152: 4 | AU152: 32800000 | AW152: 1149000 | AX152: 348000 | BA152: 94.39 | BG152: 2 | CB152: 1 | CD152: 1 | CE152: 1 | CH152: 50 | CI152: 100 | CJ152: 94.39 | CK152: 3.146333333 | CL152: 3 | CM152: 5 | CN152: 180 | CO152: 28.6030303 | CP152: 1144.121212 | CQ152: 4424.121212 | CR152: 0.04068604619 | CS152: 47.195 | CT152: 1 | CU152: 90 | CV152: 4.39 | CW152: ! | CZ152: 1 | DA152: 2 | DP152: 1 | DQ152: 1 | DR152: 6.3 | DT152: 1 | DU152: 4 | EK152: 1
A153: 100100370741 | B153: 1 | C153: 1 | D153: 1 | E153: （株）ホーク・ワン 稲城支店 | F153: 042-378-6868 | J153: 2 | K153: 2019-08-01 | O153: 東京都 | P153: 西東京市 | Q153: 中町６丁目 | W153: 西武新宿線 | X153: 東伏見 | Y153: 17 | AA153: 5 | AC153: 中町６丁目 | AD153: 4 | AJ153: 1 | AL153: 2 | AQ153: 1 | AR153: 4 | AU153: 32800000 | AW153: 1169000 | AX153: 354000 | BA153: 92.77 | BG153: 2 | CB153: 1 | CD153: 1 | CE153: 1 | CH153: 50 | CI153: 100 | CJ153: 92.77 | CK153: 3.092333333 | CL153: 3 | CM153: 5 | CN153: 180 | CO153: 28.11212121 | CP153: 1124.484848 | CQ153: 4404.484848 | CR153: 0.0408674354 | CS153: 46.385 | CT153: 1 | CU153: 90 | CV153: 2.77 | CW153: ! | CZ153: 1 | DA153: 2 | DP153: 1 | DQ153: 1 | DR153: 6.5 | DT153: 1 | DU153: 4 | EK153: 1
A154: 100100370757 | B154: 1 | C154: 1 | D154: 1 | E154: （株）山手ホームズ | F154: 045-628-3118 | J154: 2 | K154: 2019-08-01 | O154: 東京都 | P154: 渋谷区 | Q154: 鉢山町 | W154: 山手線 | X154: 渋谷 | Y154: 10 | AL154: 2 | AQ154: 1 | AU154: 285000000 | AW154: 7121000 | AX154: 2155000 | AZ154: 1 | BA154: 132.31 | BG154: 1 | BH154: 115.16 | BK154: 2 | BT154: 2 | CB154: 1 | CD154: 1 | CE154: 10 | CG154: 1 | CH154: 60 | CI154: 200 | CJ154: 264.62 | CK154: 8.820666667 | CL154: 9 | CM154: 5 | CN154: 540 | CO154: 80.18787879 | CP154: 3207.515152 | CQ154: 31707.51515 | CR154: 0.01703066284 | CS154: 79.386 | CT154: 2 | CU154: 180 | CV154: 84.62 | CW154: ! | CZ154: 1 | DA154: 2 | DP154: 5 | DQ154: 2 | DR154: 11 | DT154: 5 | DU154: 4 | DV154: 2 | DW154: 3.4 | DX154: 1 | DY154: 1 | DZ154: 4 | EK154: 1
A155: 100100370913 | B155: 1 | C155: 1 | D155: 1 | E155: （株）三多摩不動産 | F155: 042-341-4041 | J155: 2 | K155: 2019-08-01 | O155: 東京都 | P155: 小平市 | Q155: 仲町 | W155: 西武新宿線 | X155: 小平 | Y155: 8 | AJ155: 1 | AL155: 2 | AQ155: 4 | AR155: 1 | AU155: 44800000 | AW155: 842000 | AX155: 255000 | AZ155: 2 | BA155: 176.01 | CB155: 1 | CD155: 1 | CE155: 1 | CH155: 40 | CI155: 80 | CJ155: 140.808 | CK155: 4.6936 | CL155: 5 | CM155: 5 | CN155: 300 | CO155: 42.66909091 | CP155: 1706.763636 | CQ155: 6186.763636 | CR155: 0.04849061927 | CS155: 70.404 | CT155: 2 | CU155: 180 | CV155: -39.192 | CZ155: 1 | DA155: 2 | DP155: 5 | DQ155: 1 | DR155: 10 | DT155: 3 | DU155: 4 | DY155: 7 | DZ155: 4
A156: 100100370996 | B156: 1 | C156: 1 | D156: 1 | E156: （株）三愛 | F156: 0428-24-3300 | J156: 2 | K156: 2019-08-01 | L156: 2019-08-02 | O156: 東京都 | P156: 青梅市 | Q156: 駒木町１丁目 | W156: 青梅線 | X156: 青梅 | Y156: 22 | AJ156: 2 | AQ156: 1 | AU156: 37600000 | AW156: 100000 | AX156: 31000 | BA156: 1243.83 | CB156: 1 | CD156: 1 | CE156: 6 | CH156: 60 | CI156: 150 | CJ156: 1865.745 | CK156: 62.1915 | CL156: 62 | CM156: 5 | CN156: 3720 | CO156: 565.3772727 | CP156: 22615.09091 | CQ156: 26375.09091 | CR156: 0.1410421679 | CS156: 746.298 | CT156: 24 | CU156: 2160 | CV156: -294.255 | DP156: 1 | DQ156: 1 | DR156: 22 | DS156: 2 | DT156: 5 | DU156: 4
A157: 100100371001 | B157: 1 | C157: 1 | D157: 1 | E157: （株）ネクステージ | F157: 03-5337-8411 | G157: 佐々木 | J157: 2 | K157: 2019-08-01 | O157: 東京都 | P157: 渋谷区 | Q157: 恵比寿３丁目 | W157: 日比谷線 | X157: 広尾 | Y157: 10 | AJ157: 1 | AL157: 2 | AQ157: 1 | AS157: 3 | AU157: 122000000 | AW157: 3704000 | AX157: 1121000 | AZ157: 2 | BA157: 108.9 | BK157: 1 | BM157: 5 | CB157: 1 | CD157: 1 | CE157: 6 | CH157: 60 | CI157: 300 | CJ157: 326.7 | CK157: 10.89 | CL157: 11 | CM157: 5 | CN157: 660 | CO157: 99 | CP157: 3960 | CQ157: 16160 | CR157: 0.04084158416 | CS157: 65.34 | CT157: 2 | CU157: 180 | CV157: 146.7 | CW157: ! | DA157: 2 | DP157: 1 | DQ157: 1 | DS157: 2 | DT157: 1 | DU157: 2.7 | EK157: 1
A158: 100100371016 | B158: 1 | C158: 1 | D158: 1 | E158: 創建ホームズ（株） | F158: 03-5347-5661 | G158: 米山 | J158: 2 | K158: 2019-08-01 | O158: 東京都 | P158: 世田谷区 | Q158: 等々力５丁目 | R158: １５－１６ | W158: 大井町線 | X158: 尾山台 | Y158: 6 | AJ158: 1 | AQ158: 1 | AU158: 95800000 | AW158: 2395000 | AX158: 725000 | AZ158: 2 | BA158: 132.24 | BK158: 0 | CB158: 1 | CD158: 1 | CE158: 1 | CH158: 50 | CI158: 100 | CJ158: 132.24 | CK158: 4.408 | CL158: 4 | CM158: 5 | CN158: 240 | CO158: 40.07272727 | CP158: 1602.909091 | CQ158: 11182.90909 | CR158: 0.02146132085 | CS158: 66.12 | CT158: 2 | CU158: 180 | CV158: -47.76 | CZ158: 1 | DA158: 2 | DP158: 1 | DQ158: 1 | DR158: 3 | DT158: 2 | DU158: 6.1 | EK158: 1
A159: 100100371033 | B159: 1 | C159: 1 | D159: 1 | E159: 創建ホームズ（株） | F159: 03-5347-5661 | G159: 米山 | J159: 2 | K159: 2019-08-01 | O159: 東京都 | P159: 世田谷区 | Q159: 等々力５丁目 | R159: １５－１６ | W159: 大井町線 | X159: 尾山台 | Y159: 6 | AJ159: 1 | AQ159: 1 | AU159: 118000000 | AW159: 3168000 | AX159: 959000 | AZ159: 2 | BA159: 123.15 | BK159: 0 | CB159: 1 | CD159: 1 | CE159: 1 | CH159: 50 | CI159: 100 | CJ159: 123.15 | CK159: 4.105 | CL159: 4 | CM159: 5 | CN159: 240 | CO159: 37.31818182 | CP159: 1492.727273 | CQ159: 13292.72727 | CR159: 0.01805498564 | CS159: 61.575 | CT159: 2 | CU159: 180 | CV159: -56.85 | CZ159: 1 | DA159: 2 | DP159: 1 | DQ159: 1 | DR159: 7.4 | DT159: 2 | DU159: 6.1 | EK159: 1
A160: 100100371042 | B160: 1 | C160: 1 | D160: 1 | E160: 創建ホームズ（株） | F160: 03-5347-5661 | J160: 2 | K160: 2019-08-01 | O160: 東京都 | P160: 目黒区 | Q160: 上目黒５丁目 | W160: 東横線 | X160: 祐天寺 | Y160: 15 | AJ160: 1 | AQ160: 1 | AU160: 135000000 | AW160: 4031000 | AX160: 1220000 | AZ160: 1 | BA160: 110.72 | CB160: 1 | CD160: 1 | CE160: 11 | CG160: 1 | CH160: 60 | CI160: 200 | CJ160: 221.44 | CK160: 7.381333333 | CL160: 7 | CM160: 5 | CN160: 420 | CO160: 67.1030303 | CP160: 2684.121212 | CQ160: 16184.12121 | CR160: 0.02595136273 | CS160: 66.432 | CT160: 2 | CU160: 180 | CV160: 41.44 | CW160: ! | CZ160: 1 | DA160: 2 | DP160: 1 | DQ160: 1 | DR160: 9.7 | DT160: 2 | DU160: 3.4 | EK160: 1
A161: 100100371044 | B161: 1 | C161: 1 | D161: 1 | E161: 創建ホームズ（株） | F161: 03-5347-5661 | J161: 2 | K161: 2019-08-01 | O161: 東京都 | P161: 目黒区 | Q161: 上目黒５丁目 | W161: 東横線 | X161: 中目黒 | Y161: 16 | AJ161: 1 | AQ161: 1 | AU161: 135000000 | AW161: 4031000 | AX161: 1220000 | AZ161: 1 | BA161: 110.72 | CB161: 1 | CD161: 1 | CE161: 11 | CG161: 1 | CH161: 60 | CI161: 200 | CJ161: 221.44 | CK161: 7.381333333 | CL161: 7 | CM161: 5 | CN161: 420 | CO161: 67.1030303 | CP161: 2684.121212 | CQ161: 16184.12121 | CR161: 0.02595136273 | CS161: 66.432 | CT161: 2 | CU161: 180 | CV161: 41.44 | CW161: ! | CZ161: 1 | DA161: 2 | DP161: 1 | DQ161: 1 | DR161: 9.7 | DT161: 2 | DU161: 3.4 | EK161: 1
A162: 100100371047 | B162: 1 | C162: 1 | D162: 1 | E162: 創建ホームズ（株） | F162: 03-5347-5661 | J162: 2 | K162: 2019-08-01 | O162: 東京都 | P162: 目黒区 | Q162: 上目黒５丁目 | W162: 田園都市線 | X162: 池尻大橋 | Y162: 12 | AJ162: 1 | AQ162: 1 | AU162: 135000000 | AW162: 4031000 | AX162: 1220000 | AZ162: 1 | BA162: 110.72 | CB162: 1 | CD162: 1 | CE162: 11 | CG162: 1 | CH162: 60 | CI162: 200 | CJ162: 221.44 | CK162: 7.381333333 | CL162: 7 | CM162: 5 | CN162: 420 | CO162: 67.1030303 | CP162: 2684.121212 | CQ162: 16184.12121 | CR162: 0.02595136273 | CS162: 66.432 | CT162: 2 | CU162: 180 | CV162: 41.44 | CW162: ! | CZ162: 1 | DA162: 2 | DP162: 1 | DQ162: 1 | DR162: 9.7 | DT162: 2 | DU162: 3.4 | EK162: 1
A163: 100100371200 | B163: 1 | C163: 1 | D163: 1 | E163: （株）ハウスプロジェクト | F163: 03-3577-8848 | J163: 2 | K163: 2019-08-01 | O163: 東京都 | P163: 狛江市 | Q163: 西野川３丁目 | W163: 京王線 | X163: 柴崎 | Y163: 14 | AJ163: 2 | AL163: 2 | AQ163: 4 | AU163: 37800000 | AW163: 939000 | AX163: 284000 | AZ163: 1 | BA163: 133.12 | BG163: 1 | CJ163: 133.12 | CK163: 4.437333333 | CL163: 4 | CM163: 5 | CN163: 240 | CO163: 40.33939394 | CP163: 1613.575758 | CQ163: 5393.575758 | CR163: 0.04449738185 | CS163: 79.872 | CT163: 2 | CU163: 180 | CV163: -46.88 | CZ163: 1 | DP163: 2 | EK163: 1
A164: 100100371305 | B164: 1 | C164: 1 | D164: 1 | E164: 旭化成不動産レジデンス（株） 仲介・賃貸営業本部 立川支店 | F164: 042-847-3255 | G164: 長谷川 修平 | H164: 042-847-3255 | J164: 2 | K164: 2019-08-01 | O164: 東京都 | P164: 府中市 | Q164: 北山町２丁目 | W164: 南武線 | X164: 谷保 | Y164: 17 | Z164: 1347 | AJ164: 1 | AL164: 2 | AQ164: 4 | AR164: 1 | AU164: 39800000 | AW164: 862000 | AX164: 261000 | AZ164: 2 | BA164: 152.74 | BG164: 1 | BH164: 23.51 | CA164: 3 | CB164: 1 | CD164: 1 | CE164: 1 | CH164: 40 | CI164: 80 | CJ164: 122.192 | CK164: 4.073066667 | CL164: 4 | CM164: 5 | CN164: 240 | CO164: 37.02787879 | CP164: 1481.115152 | CQ164: 5461.115152 | CR164: 0.0439470682 | CS164: 61.096 | CT164: 2 | CU164: 180 | CV164: -57.808 | CZ164: 1 | DA164: 2 | DP164: 5 | DQ164: 1 | DR164: 13.5 | DS164: 2 | DT164: 5 | DU164: 6 | DV164: 2 | DW164: 11.5 | DX164: 2 | DY164: 3 | DZ164: 4 | GQ164: 府中市立府中第七小学校 | GR164: 350 | GS164: 5 | GT164: 1 | GU164: ＢＭＳ０２４３４
A165: 100100371343 | B165: 1 | C165: 1 | D165: 1 | E165: 三井不動産リアルティ（株）三井のリハウス中目黒センター | F165: 03-5773-4931 | J165: 2 | K165: 2019-08-01 | L165: 2019-08-02 | O165: 東京都 | P165: 品川区 | Q165: 荏原２丁目 | W165: 池上線 | X165: 戸越銀座 | Y165: 6 | AJ165: 1 | AL165: 1 | AQ165: 4 | AU165: 63800000 | AW165: 2164000 | AX165: 655000 | AZ165: 1 | BA165: 97.5 | BK165: 1 | BM165: 1.89 | CA165: 3 | CB165: 1 | CD165: 1 | CE165: 6 | CG165: 1 | CH165: 60 | CI165: 300 | CJ165: 292.5 | CK165: 9.75 | CL165: 10 | CM165: 5 | CN165: 600 | CO165: 88.63636364 | CP165: 3545.454545 | CQ165: 9925.454545 | CR165: 0.06045063198 | CS165: 58.5 | CT165: 1 | CU165: 90 | CV165: 202.5 | CW165: ! | DA165: 2 | DP165: 1 | DQ165: 1 | DR165: 3 | DS165: 2 | DT165: 6 | DU165: 3.3 | GQ165: 業務スーパー 武蔵小山店 | GR165: 310 | GS165: 4 | GT165: 1 | GU165: ＦＲＺＷ８Ａ０２
A166: 100100371347 | B166: 1 | C166: 1 | D166: 1 | E166: 三井不動産リアルティ（株）三井のリハウス武蔵小金井センター | F166: 042-386-3131 | J166: 2 | K166: 2019-08-01 | L166: 2019-08-05 | O166: 東京都 | P166: 小金井市 | Q166: 本町３丁目 | W166: 中央線 | X166: 武蔵小金井 | Y166: 12 | AJ166: 2 | AL166: 2 | AQ166: 5 | AU166: 32800000 | AW166: 924000 | AX166: 280000 | AZ166: 1 | BA166: 117.44 | BG166: 1 | BH166: 48 | BT166: 1 | CA166: 3 | CB166: 1 | CD166: 1 | CE166: 1 | CH166: 50 | CI166: 80 | CJ166: 93.952 | CK166: 3.131733333 | CL166: 3 | CM166: 5 | CN166: 180 | CO166: 28.47030303 | CP166: 1138.812121 | CQ166: 4418.812121 | CR166: 0.04073492945 | CS166: 58.72 | CT166: 1 | CU166: 90 | CV166: 3.952 | CW166: ! | CZ166: 1 | DA166: 2 | EK166: 1 | GQ166: セブンイレブン | GR166: 350 | GS166: 5 | GT166: 1 | GU166: Ｆ２６ＶＹＡ１９ 古家有り
A167: 100100375800 | B167: 1 | C167: 1 | D167: 1 | E167: 三井不動産リアルティ（株）三井のリハウス武蔵小金井センター | F167: 042-386-3131 | J167: 2 | K167: 2019-08-02 | L167: 2019-08-02 | O167: 東京都 | P167: 小金井市 | Q167: 貫井北町３丁目 | W167: 中央線 | X167: 武蔵小金井 | Y167: 24 | AJ167: 1 | AL167: 2 | AQ167: 4 | AU167: 43500000 | AW167: 994000 | AX167: 301000 | AZ167: 2 | BA167: 144.8 | CA167: 3 | CB167: 1 | CD167: 1 | CE167: 1 | CH167: 40 | CI167: 80 | CJ167: 115.84 | CK167: 3.861333333 | CL167: 4 | CM167: 5 | CN167: 240 | CO167: 35.1030303 | CP167: 1404.121212 | CQ167: 5754.121212 | CR167: 0.04170923607 | CS167: 57.92 | CT167: 1 | CU167: 90 | CV167: 25.84 | CW167: ! | DA167: 2 | DP167: 1 | DQ167: 1 | DR167: 7.4 | DS167: 2 | DT167: 1 | DU167: 5.6 | EK167: 1 | GQ167: サンドラッグ貫井北店 | GR167: 780 | GS167: 10 | GT167: 1 | GU167: Ｆ２６Ｖ７Ａ１Ｆ
A168: 100100375850 | B168: 1 | C168: 1 | D168: 1 | E168: 三井不動産リアルティ（株）三井のリハウス立川センター | F168: 042-524-3131 | J168: 2 | K168: 2019-08-02 | L168: 2019-08-02 | O168: 東京都 | P168: 武蔵村山市 | Q168: 学園３丁目 | W168: 多摩モノレ | X168: 上北台 | Y168: 17 | Z168: 1360 | AJ168: 2 | AL168: 2 | AQ168: 4 | AR168: 1 | AU168: 27800000 | AW168: 583000 | AX168: 177000 | AZ168: 1 | BA168: 157.84 | BG168: 1 | BH168: 83 | CA168: 3 | CB168: 1 | CC168: 1 | CD168: 1 | CE168: 1 | CG168: 1 | CH168: 40 | CI168: 80 | CJ168: 126.272 | CK168: 4.209066667 | CL168: 4 | CM168: 5 | CN168: 240 | CO168: 38.26424242 | CP168: 1530.569697 | CQ168: 4310.569697 | CR168: 0.05567709534 | CS168: 63.136 | CT168: 2 | CU168: 180 | CV168: -53.728 | CZ168: 1 | DA168: 2 | DP168: 1 | DQ168: 2 | DR168: 14.8 | DS168: 1 | DT168: 3 | DU168: 4.5 | EK168: 1 | GQ168: セブンイレブン | GR168: 270 | GS168: 4 | GT168: 1 | GU168: Ｆ３１Ｗ７Ａ２Ｅ 古家有り
A169: 100100375939 | B169: 1 | C169: 1 | D169: 1 | E169: 三井不動産リアルティ（株）三井のリハウスひばりが丘センター | F169: 042-439-0131 | J169: 2 | K169: 2019-08-02 | L169: 2019-08-03 | O169: 東京都 | P169: 東久留米市 | Q169: 中央町４丁目 | W169: 西武池袋線 | X169: ひばりケ丘 | AA169: 9 | AB169: 田無駅 | AC169: イオンモール前 | AD169: 7 | AJ169: 2 | AL169: 2 | AQ169: 4 | AU169: 19800000 | AW169: 624000 | AX169: 189000 | AZ169: 1 | BA169: 104.99 | CA169: 3 | CB169: 1 | CD169: 1 | CE169: 1 | CG169: 1 | CH169: 40 | CI169: 80 | CJ169: 83.992 | CK169: 2.799733333 | CL169: 3 | CM169: 5 | CN169: 180 | CO169: 25.45212121 | CP169: 1018.084848 | CQ169: 2998.084848 | CR169: 0.0600383275 | CS169: 41.996 | CT169: 1 | CU169: 90 | CV169: -6.008 | DA169: 2 | DP169: 1 | EK169: 1 | GU169: ＦＥＰＷ７Ａ２２ 古家有り
A170: 100100375984 | B170: 1 | C170: 1 | D170: 1 | E170: 三井不動産リアルティ（株）三井のリハウス田無センター | F170: 042-467-3131 | J170: 2 | K170: 2019-08-02 | L170: 2019-08-05 | O170: 東京都 | P170: 小平市 | Q170: 大沼町６丁目 | W170: 西武新宿線 | X170: 小平 | Y170: 17 | AJ170: 2 | AL170: 2 | AQ170: 4 | AU170: 34800000 | AW170: 697000 | AX170: 211000 | AZ170: 1 | BA170: 165.28 | CA170: 3 | CB170: 1 | CC170: 1 | CD170: 1 | CE170: 2 | CF170: 1 | CH170: 60 | CI170: 200 | CJ170: 330.56 | CK170: 11.01866667 | CL170: 11 | CM170: 5 | CN170: 660 | CO170: 100.169697 | CP170: 4006.787879 | CQ170: 7486.787879 | CR170: 0.08815529579 | CS170: 99.168 | CT170: 3 | CU170: 270 | CV170: 60.56 | CW170: ! | CZ170: 1 | DA170: 2 | DP170: 1 | DQ170: 1 | DR170: 16.8 | DS170: 2 | DT170: 7 | DU170: 5 | EK170: 1 | GU170: ＦＭ７Ｗ７Ａ１２ 古家有り
A171: 100100376003 | B171: 1 | C171: 1 | D171: 1 | E171: 三井不動産リアルティ（株）三井のリハウス武蔵境センター | F171: 0422-60-3931 | J171: 2 | K171: 2019-08-02 | L171: 2019-08-02 | O171: 東京都 | P171: 小金井市 | Q171: 東町２丁目 | W171: 中央線 | X171: 東小金井 | Y171: 14 | Z171: 1080 | AJ171: 2 | AL171: 2 | AQ171: 4 | AU171: 59800000 | AW171: 1154000 | AX171: 349000 | AZ171: 1 | BA171: 171.36 | CA171: 3 | CB171: 1 | CC171: 1 | CD171: 1 | CE171: 1 | CG171: 1 | CH171: 40 | CI171: 80 | CJ171: 137.088 | CK171: 4.5696 | CL171: 5 | CM171: 5 | CN171: 300 | CO171: 41.54181818 | CP171: 1661.672727 | CQ171: 7641.672727 | CR171: 0.03925842034 | CS171: 68.544 | CT171: 2 | CU171: 180 | CV171: -42.912 | CZ171: 1 | DA171: 2 | DP171: 1 | DQ171: 1 | DR171: 10 | DS171: 2 | DT171: 3 | DU171: 4 | EK171: 1 | GQ171: ヒロマルチェーン三鷹井口店 | GR171: 280 | GS171: 4 | GT171: 1 | GU171: ＦＱＧＷ７Ａ０７ 古家有り
A172: 100100377051 | B172: 1 | C172: 1 | D172: 1 | E172: （株）ライン企画 | F172: 042-674-1678 | J172: 2 | K172: 2019-08-02 | O172: 東京都 | P172: 八王子市 | Q172: 大塚 | W172: 多摩モノレ | X172: 大塚・帝京大学 | Y172: 6 | AJ172: 1 | AL172: 2 | AQ172: 4 | AR172: 1 | AU172: 27800000 | AW172: 537000 | AX172: 163000 | AZ172: 1 | BA172: 171.33 | BG172: 1 | BH172: 74 | CA172: 3 | CB172: 1 | CC172: 1 | CD172: 1 | CE172: 1 | CH172: 40 | CI172: 80 | CJ172: 137.064 | CK172: 4.5688 | CL172: 5 | CM172: 5 | CN172: 300 | CO172: 41.53454545 | CP172: 1661.381818 | CQ172: 4441.381818 | CR172: 0.06754654571 | CS172: 68.532 | CT172: 2 | CU172: 180 | CV172: -42.936 | CZ172: 4 | DA172: 2 | DP172: 2 | DQ172: 1 | DT172: 5 | DU172: 5 | DV172: 2 | DY172: 7 | DZ172: 4 | EK172: 1
A173: 100100377600 | B173: 1 | C173: 1 | D173: 1 | E173: ケイアイスター不動産（株） 国分寺営業所 | F173: 042-349-6873 | J173: 2 | K173: 2019-08-02 | O173: 東京都 | P173: 練馬区 | Q173: 東大泉６丁目 | W173: 西武池袋線 | X173: 大泉学園 | Y173: 12 | AQ173: 1 | AU173: 46800000 | AW173: 1622000 | AX173: 491000 | BA173: 95.41 | BG173: 2 | CB173: 1 | CD173: 1 | CE173: 1 | CH173: 50 | CI173: 100 | CJ173: 95.41 | CK173: 3.180333333 | CL173: 3 | CM173: 5 | CN173: 180 | CO173: 28.91212121 | CP173: 1156.484848 | CQ173: 5836.484848 | CR173: 0.03084048099 | CS173: 47.705 | CT173: 1 | CU173: 90 | CV173: 5.41 | CW173: ! | DP173: 1 | DQ173: 1 | DT173: 3 | DU173: 6
A174: 100100377711 | B174: 1 | C174: 1 | D174: 1 | E174: （株）マエダコーポレーション | F174: 042-534-9805 | J174: 2 | K174: 2019-08-02 | O174: 東京都 | P174: 杉並区 | Q174: 上高井戸１丁目 | W174: 京王線 | X174: 八幡山 | Y174: 9 | AG174: 京王井の頭線 高井戸駅 徒歩 | AH174: 16 | AJ174: 1 | AL174: 1 | AQ174: 1 | AR174: 4 | AU174: 45800000 | AW174: 1627000 | AX174: 493000 | AZ174: 2 | BA174: 93.08 | BG174: 2 | CB174: 1 | CD174: 1 | CE174: 1 | CG174: 1 | CH174: 40 | CI174: 80 | CJ174: 74.464 | CK174: 2.482133333 | CL174: 2 | CM174: 5 | CN174: 120 | CO174: 22.56484848 | CP174: 902.5939394 | CQ174: 5482.593939 | CR174: 0.02188744987 | CS174: 37.232 | CT174: 1 | CU174: 90 | CV174: -15.536 | CZ174: 1 | DA174: 2 | DP174: 1 | DQ174: 1
A175: 100100377734 | B175: 1 | C175: 1 | D175: 1 | E175: （株）マエダコーポレーション | F175: 042-534-9805 | J175: 2 | K175: 2019-08-02 | O175: 東京都 | P175: 杉並区 | Q175: 上高井戸１丁目 | W175: 京王線 | X175: 芦花公園 | Y175: 9 | AJ175: 1 | AL175: 1 | AQ175: 1 | AR175: 4 | AU175: 47800000 | AW175: 1756000 | AX175: 532000 | AZ175: 2 | BA175: 90 | CB175: 1 | CD175: 1 | CE175: 1 | CG175: 1 | CH175: 40 | CI175: 80 | CJ175: 72 | CK175: 2.4 | CL175: 2 | CM175: 5 | CN175: 120 | CO175: 21.81818182 | CP175: 872.7272727 | CQ175: 5652.727273 | CR175: 0.0212286909 | CS175: 36 | CT175: 1 | CU175: 90 | CV175: -18 | CZ175: 1 | DA175: 2 | DP175: 1 | DQ175: 1 | EK175: 1
A176: 100100378205 | B176: 1 | C176: 1 | D176: 1 | E176: （株）ランドハウジング | F176: 03-3324-2271 | J176: 2 | K176: 2019-08-02 | L176: 2019-08-04 | O176: 東京都 | P176: 杉並区 | Q176: 永福４丁目 | W176: 井の頭線 | X176: 永福町 | Y176: 2 | AJ176: 1 | AL176: 2 | AQ176: 1 | AU176: 189000000 | AW176: 3714000 | AX176: 1124000 | AZ176: 1 | BA176: 168.26 | BG176: 2 | CB176: 1 | CC176: 1 | CD176: 1 | CE176: 4 | CG176: 3 | CH176: 80 | CI176: 300 | CJ176: 504.78 | CK176: 16.826 | CL176: 17 | CM176: 5 | CN176: 1020 | CO176: 152.9636364 | CP176: 6118.545455 | CQ176: 25018.54545 | CR176: 0.04076975625 | CS176: 134.608 | CT176: 4 | CU176: 360 | CV176: 144.78 | CW176: ! | CZ176: 1 | DP176: 1 | DQ176: 1 | DR176: 6.2 | DS176: 2 | DT176: 2 | DU176: 5.4 | EK176: 1
A177: 100100378234 | B177: 1 | C177: 1 | D177: 1 | E177: （株）東京みらい不動産 銀座支店 | F177: 03-6264-3563 | G177: 大塚 | H177: 090-8348-0484 | I177: inro@tokyorf.com | J177: 2 | K177: 2019-08-02 | O177: 東京都 | P177: 新宿区 | Q177: 西落合２丁目 | R177: ８－４ ４ぱ | W177: 大江戸線 | X177: 落合南長崎 | Y177: 10 | AJ177: 1 | AL177: 1 | AQ177: 1 | AR177: 5 | AS177: 4 | AT177: 2672000 | AU177: 63800000 | AW177: 1825000 | AX177: 552000 | AZ177: 1 | BA177: 115.6 | BG177: 1 | BH177: 23.67 | BK177: 0 | BT177: 1 | BU177: 23.67 | CB177: 1 | CD177: 1 | CE177: 12 | CG177: 1 | CH177: 60 | CI177: 200 | CJ177: 231.2 | CK177: 7.706666667 | CL177: 8 | CM177: 5 | CN177: 480 | CO177: 70.06060606 | CP177: 2802.424242 | CQ177: 9182.424242 | CR177: 0.05227377731 | CS177: 69.36 | CT177: 2 | CU177: 180 | CV177: 51.2 | CW177: ! | CZ177: 1 | DA177: 2 | DP177: 1 | DQ177: 1 | DR177: 2 | DT177: 3 | DU177: 8.3 | EK177: 1
A178: 100100378272 | B178: 1 | C178: 1 | D178: 1 | E178: （株）ＰＲＥＳＩ－Ｘ | F178: 03-6265-4792 | J178: 2 | K178: 2019-08-02 | O178: 東京都 | P178: 世田谷区 | Q178: 池尻３丁目 | W178: 田園都市線 | X178: 池尻大橋 | Y178: 4 | AQ178: 2 | AU178: 155600000 | AW178: 3720000 | AX178: 1126000 | AZ178: 1 | BA178: 138.3 | CB178: 1 | CD178: 1 | CE178: 12 | CH178: 60 | CI178: 160 | CJ178: 221.28 | CK178: 7.376 | CL178: 7 | CM178: 5 | CN178: 420 | CO178: 67.05454545 | CP178: 2682.181818 | CQ178: 18242.18182 | CR178: 0.02302356177 | CS178: 82.98 | CT178: 2 | CU178: 180 | CV178: 41.28 | CW178: ! | DP178: 1
A179: 100100378279 | B179: 1 | C179: 1 | D179: 1 | E179: （株）東京みらい不動産 銀座支店 | F179: 03-6264-3563 | G179: 大塚 | H179: 090-8348-0484 | I179: info@tokyorf.com | J179: 2 | K179: 2019-08-02 | O179: 東京都 | P179: 小平市 | Q179: 仲町 | R179: １７６－１７ ４ぱ | W179: 西武新宿線 | X179: 小平 | Y179: 6 | AJ179: 1 | AL179: 1 | AQ179: 1 | AR179: 9 | AS179: 4 | AT179: 1380000 | AU179: 32990000 | AW179: 869000 | AX179: 263000 | AZ179: 1 | BA179: 125.52 | BG179: 1 | BH179: 145 | BK179: 0 | CB179: 1 | CD179: 1 | CE179: 1 | CG179: 1 | CH179: 40 | CI179: 80 | CJ179: 100.416 | CK179: 3.3472 | CL179: 3 | CM179: 5 | CN179: 180 | CO179: 30.42909091 | CP179: 1217.163636 | CQ179: 4516.163636 | CR179: 0.03985683746 | CS179: 50.208 | CT179: 1 | CU179: 90 | CV179: 10.416 | CW179: ! | CZ179: 1 | DP179: 1 | DQ179: 2 | DR179: 9.9 | DS179: 1 | DT179: 3 | DU179: 4 | EK179: 1
A180: 100100378609 | B180: 1 | C180: 1 | D180: 1 | E180: 誠賀建設（株） | F180: 042-324-3224 | G180: 長岡 | H180: 042-324-3224 | I180: info@seiga-k.co.jp | J180: 2 | K180: 2019-08-02 | L180: 2019-08-02 | O180: 東京都 | P180: 西東京市 | Q180: 泉町４丁目 | W180: 西武池袋線 | X180: ひばりケ丘 | Y180: 17 | AJ180: 1 | AQ180: 1 | AS180: 3 | AU180: 33800000 | AW180: 877000 | AX180: 266000 | BA180: 127.5 | CB180: 1 | CE180: 1 | CH180: 40 | CI180: 80 | CJ180: 102 | CK180: 3.4 | CL180: 3 | CM180: 5 | CN180: 180 | CO180: 30.90909091 | CP180: 1236.363636 | CQ180: 4616.363636 | CR180: 0.03899172903 | CS180: 51 | CT180: 1 | CU180: 90 | CV180: 12 | CW180: ! | DP180: 1 | DQ180: 2 | DT180: 7 | DU180: 5 | GU180: 西東京１８５期 １号地 | GV180: 私道持分あり ３４５２／４０９００
A181: 100100378854 | B181: 1 | C181: 1 | D181: 1 | E181: ダイエーハウス工業（株） | F181: 03-3977-5555 | J181: 2 | K181: 2019-08-02 | L181: 2019-08-02 | O181: 東京都 | P181: 板橋区 | Q181: 高島平８丁目 | W181: 都営三田線 | X181: 高島平 | Y181: 4 | AQ181: 1 | AU181: 150000000 | AW181: 1494000 | AX181: 452000 | AZ181: 1 | BA181: 332 | BG181: 2 | BK181: 0 | CA181: 3 | CB181: 1 | CD181: 1 | CE181: 11 | CG181: 1 | CH181: 60 | CI181: 200 | CJ181: 664 | CK181: 22.13333333 | CL181: 22 | CM181: 5 | CN181: 1320 | CO181: 201.2121212 | CP181: 8048.484848 | CQ181: 23048.48485 | CR181: 0.05727057586 | CS181: 199.2 | CT181: 6 | CU181: 540 | CV181: 124 | CW181: ! | CZ181: 1 | DA181: 2 | DP181: 2 | DQ181: 1 | DU181: 6 | EK181: 1 | GX181: 1
A182: 100100379007 | B182: 1 | C182: 1 | D182: 1 | E182: （株）アイビーアイ | F182: 03-3864-1288 | J182: 2 | K182: 2019-08-02 | O182: 東京都 | P182: 江戸川区 | Q182: 中央２丁目 | R182: 14 | W182: 総武線 | X182: 新小岩 | Y182: 28 | AA182: 18 | AD182: 3 | AJ182: 1 | AL182: 2 | AQ182: 1 | AU182: 52800000 | AW182: 1467000 | AX182: 444000 | AZ182: 2 | BA182: 119 | BG182: 1 | BH182: 20.02 | BK182: 2 | CB182: 1 | CD182: 1 | CE182: 4 | CH182: 80 | CI182: 300 | CJ182: 357 | CK182: 11.9 | CL182: 12 | CM182: 5 | CN182: 720 | CO182: 108.1818182 | CP182: 4327.272727 | CQ182: 9607.272727 | CR182: 0.07494322483 | CS182: 95.2 | CT182: 3 | CU182: 270 | CV182: 87 | CW182: ! | CZ182: 1 | DP182: 2 | DQ182: 1 | DU182: 10.7
A183: 100100379363 | B183: 1 | C183: 1 | D183: 1 | E183: （株）ユタカホームプラス | F183: 042-535-3232 | J183: 2 | K183: 2019-08-02 | O183: 東京都 | P183: 立川市 | Q183: 高松町１丁目 | W183: 中央線 | X183: 立川 | Y183: 18 | AJ183: 1 | AL183: 1 | AQ183: 1 | AU183: 59600000 | AW183: 1280000 | AX183: 388000 | BA183: 153.95 | BG183: 1 | CB183: 1 | CD183: 1 | CE183: 11 | CH183: 60 | CI183: 200 | CJ183: 307.9 | CK183: 10.26333333 | CL183: 10 | CM183: 5 | CN183: 600 | CO183: 93.3030303 | CP183: 3732.121212 | CQ183: 9692.121212 | CR183: 0.06190595298 | CS183: 92.37 | CT183: 3 | CU183: 270 | CV183: 37.9 | CW183: ! | CZ183: 1 | DP183: 1 | DU183: 5
A184: 100100379406 | B184: 1 | C184: 1 | D184: 1 | E184: （株）ユタカホームプラス | F184: 042-535-3232 | J184: 2 | K184: 2019-08-02 | O184: 東京都 | P184: 立川市 | Q184: 高松町１丁目 | W184: 多摩モノレ | X184: 高松 | Y184: 9 | AJ184: 1 | AL184: 1 | AQ184: 1 | AU184: 59600000 | AW184: 1280000 | AX184: 388000 | BA184: 153.95 | BG184: 1 | CB184: 1 | CD184: 1 | CE184: 11 | CH184: 60 | CI184: 200 | CJ184: 307.9 | CK184: 10.26333333 | CL184: 10 | CM184: 5 | CN184: 600 | CO184: 93.3030303 | CP184: 3732.121212 | CQ184: 9692.121212 | CR184: 0.06190595298 | CS184: 92.37 | CT184: 3 | CU184: 270 | CV184: 37.9 | CW184: ! | CZ184: 1 | DP184: 1 | DU184: 5
A185: 100100379958 | B185: 1 | C185: 1 | D185: 1 | E185: 二大ハウジング（株） | F185: 042-622-5333 | J185: 2 | K185: 2019-08-02 | O185: 東京都 | P185: 八王子市 | Q185: 大楽寺町 | U185: ５４５－９ | W185: 中央線 | X185: 西八王子 | AA185: 12 | AD185: 3 | AJ185: 1 | AL185: 2 | AQ185: 4 | AR185: 1 | AU185: 10000000 | AW185: 281000 | AX185: 85000 | AZ185: 1 | BA185: 117.86 | BG185: 1 | BK185: 1 | BM185: 6.21 | CB185: 1 | CC185: 1 | CD185: 1 | CE185: 1 | CG185: 1 | CH185: 40 | CI185: 80 | CJ185: 94.288 | CK185: 3.142933333 | CL185: 3 | CM185: 5 | CN185: 180 | CO185: 28.57212121 | CP185: 1142.884848 | CQ185: 2142.884848 | CR185: 0.08399891395 | CS185: 47.144 | CT185: 1 | CU185: 90 | CV185: 4.288 | CW185: ! | CZ185: 1 | DA185: 2 | DP185: 2 | DQ185: 1 | DR185: 5.9 | DS185: 2 | DT185: 5 | DU185: 4.2 | EK185: 1
A186: 100100380177 | B186: 1 | C186: 1 | D186: 1 | E186: （株）カンシン | F186: 047-711-3441 | G186: 岡内 | J186: 2 | K186: 2019-08-02 | O186: 東京都 | P186: 足立区 | Q186: 神明南１丁目 | W186: つくばＥＸ | X186: 六町 | Y186: 19 | Z186: 1500 | AJ186: 1 | AL186: 1 | AQ186: 4 | AU186: 32500000 | AW186: 1084000 | AX186: 328000 | AZ186: 1 | BA186: 99.17 | BG186: 2 | BK186: 0 | CB186: 1 | CD186: 1 | CE186: 1 | CG186: 1 | CH186: 50 | CI186: 150 | CJ186: 148.755 | CK186: 4.9585 | CL186: 5 | CM186: 5 | CN186: 300 | CO186: 45.07727273 | CP186: 1803.090909 | CQ186: 5053.090909 | CR186: 0.05936960276 | CS186: 49.585 | CT186: 1 | CU186: 90 | CV186: 58.755 | CW186: ! | CZ186: 1 | DP186: 1 | DQ186: 1 | DR186: 8 | DT186: 7 | DU186: 4 | EK186: 1
A187: 100100381075 | B187: 1 | C187: 1 | D187: 1 | E187: （株）ケイディアイ | F187: 03-6228-7785 | G187: 室屋 | J187: 2 | K187: 2019-08-02 | L187: 2019-08-02 | O187: 東京都 | P187: 杉並区 | Q187: 上荻４丁目 | W187: 中央線 | X187: 西荻窪 | Y187: 9 | AJ187: 1 | AL187: 1 | AQ187: 1 | AS187: 3 | AU187: 59800000 | AW187: 2128000 | AX187: 644000 | BA187: 92.94 | CB187: 1 | CD187: 1 | CE187: 1 | CH187: 60 | CI187: 150 | CJ187: 139.41 | CK187: 4.647 | CL187: 5 | CM187: 5 | CN187: 300 | CO187: 42.24545455 | CP187: 1689.818182 | CQ187: 7669.818182 | CR187: 0.03911435615 | CS187: 55.764 | CT187: 1 | CU187: 90 | CV187: 49.41 | CW187: ! | DP187: 1 | DQ187: 1 | DR187: 6.7 | DT187: 3 | DU187: 6
A188: 100100381311 | B188: 1 | C188: 1 | D188: 1 | E188: （株）ランドハウジング | F188: 03-3324-2271 | J188: 2 | K188: 2019-08-02 | L188: 2019-08-04 | O188: 東京都 | P188: 杉並区 | Q188: 和泉３丁目 | W188: 井の頭線 | X188: 永福町 | Y188: 5 | AJ188: 2 | AL188: 2 | AQ188: 5 | AR188: 1 | AU188: 82000000 | AW188: 2327000 | AX188: 704000 | AZ188: 1 | BA188: 116.53 | BG188: 2 | BK188: 0 | CB188: 1 | CC188: 1 | CD188: 1 | CE188: 1 | CG188: 1 | CH188: 50 | CI188: 100 | CJ188: 116.53 | CK188: 3.884333333 | CL188: 4 | CM188: 5 | CN188: 240 | CO188: 35.31212121 | CP188: 1412.484848 | CQ188: 9612.484848 | CR188: 0.0249675296 | CS188: 58.265 | CT188: 1 | CU188: 90 | CV188: 26.53 | CW188: ! | CZ188: 1 | DP188: 2 | DQ188: 1 | DR188: 5.1 | DT188: 1 | DU188: 5.4 | DV188: 1 | DW188: 16.7 | DY188: 7 | DZ188: 16.7 | EK188: 1
A189: 100100381335 | B189: 1 | C189: 1 | D189: 1 | E189: （株）ランドハウジング | F189: 03-3324-2271 | J189: 2 | K189: 2019-08-02 | L189: 2019-08-04 | O189: 東京都 | P189: 杉並区 | Q189: 荻窪３丁目 | W189: 中央線 | X189: 阿佐ヶ谷 | Y189: 13 | AJ189: 2 | AL189: 2 | AQ189: 5 | AR189: 1 | AU189: 158000000 | AW189: 1801000 | AX189: 545000 | AZ189: 1 | BA189: 290.16 | CJ189: 290.16 | CK189: 9.672 | CL189: 10 | CM189: 5 | CN189: 600 | CO189: 87.92727273 | CP189: 3517.090909 | CQ189: 19317.09091 | CR189: 0.03106057754 | CS189: 174.096 | CT189: 5 | CU189: 450 | CV189: -159.84 | CZ189: 1
A190: 100100381530 | B190: 1 | C190: 1 | D190: 1 | E190: 山口不動産（株） | F190: 042-581-2103 | J190: 2 | K190: 2019-08-02 | O190: 東京都 | P190: 日野市 | Q190: 旭が丘１丁目 | W190: 中央線 | X190: 豊田 | Y190: 11 | AJ190: 2 | AQ190: 1 | AU190: 28800000 | AW190: 762000 | AX190: 231000 | AZ190: 2 | BA190: 125.07 | BG190: 2 | BH190: 141 | CB190: 4 | CD190: 1 | CE190: 1 | CG190: 1 | CH190: 50 | CI190: 100 | CJ190: 125.07 | CK190: 4.169 | CL190: 4 | CM190: 5 | CN190: 240 | CO190: 37.9 | CP190: 1516 | CQ190: 4396 | CR190: 0.05459508644 | CS190: 62.535 | CT190: 2 | CU190: 180 | CV190: -54.93 | CZ190: 4 | DA190: 2 | DP190: 1 | DQ190: 2 | DR190: 11.9 | DT190: 6 | DU190: 4.5 | EK190: 1 | GU190: 更地渡し
A191: 100100381683 | B191: 1 | C191: 1 | D191: 1 | E191: ジェイズホーム（株） | F191: 042-721-1192 | H191: 090-1888-9133 | J191: 2 | K191: 2019-08-02 | O191: 東京都 | P191: 町田市 | Q191: 小山町 | W191: 横浜線 | X191: 橋本 | Y191: 16 | AJ191: 1 | AL191: 2 | AQ191: 1 | AU191: 21800000 | AW191: 721000 | AX191: 218000 | BA191: 100 | BK191: 2 | BM191: 16.38 | CB191: 3 | CC191: 1 | CD191: 1 | CE191: 13 | CF191: 1 | CH191: 60 | CI191: 200 | CJ191: 200 | CK191: 6.666666667 | CL191: 7 | CM191: 5 | CN191: 420 | CO191: 60.60606061 | CP191: 2424.242424 | CQ191: 4604.242424 | CR191: 0.09122021851 | CS191: 60 | CT191: 2 | CU191: 180 | CV191: 20 | CW191: ! | CZ191: 1 | DP191: 5 | DQ191: 1 | DR191: 5.1 | DT191: 1 | DU191: 4 | DW191: 12.6 | DY191: 7 | DZ191: 4 | EK191: 1
A192: 100100381710 | B192: 1 | C192: 1 | D192: 1 | E192: （株）トライアングル | F192: 03-5788-5588 | J192: 2 | K192: 2019-08-02 | O192: 東京都 | P192: 杉並区 | Q192: 永福３丁目 | W192: 井の頭線 | X192: 永福町 | Y192: 5 | AJ192: 1 | AQ192: 1 | AU192: 59800000 | AW192: 2158000 | AX192: 653000 | AZ192: 2 | BA192: 91.62 | CJ192: 91.62 | CK192: 3.054 | CL192: 3 | CM192: 5 | CN192: 180 | CO192: 27.76363636 | CP192: 1110.545455 | CQ192: 7090.545455 | CR192: 0.02538591723 | CS192: 54.972 | CT192: 1 | CU192: 90 | CV192: 1.62 | CW192: ! | DR192: 10.9
A193: 100100381747 | B193: 1 | C193: 1 | D193: 1 | E193: （株）トライアングル | F193: 03-5788-5588 | J193: 2 | K193: 2019-08-02 | O193: 東京都 | P193: 杉並区 | Q193: 永福３丁目 | W193: 井の頭線 | X193: 西永福 | Y193: 6 | AJ193: 1 | AQ193: 1 | AU193: 59800000 | AW193: 2158000 | AX193: 653000 | AZ193: 2 | BA193: 91.62 | CJ193: 91.62 | CK193: 3.054 | CL193: 3 | CM193: 5 | CN193: 180 | CO193: 27.76363636 | CP193: 1110.545455 | CQ193: 7090.545455 | CR193: 0.02538591723 | CS193: 54.972 | CT193: 1 | CU193: 90 | CV193: 1.62 | CW193: ! | DR193: 10.9
A194: 100100381904 | B194: 1 | C194: 1 | D194: 1 | E194: （有）エス・ティー企画 | F194: 048-203-1366 | J194: 2 | K194: 2019-08-02 | O194: 東京都 | P194: 板橋区 | Q194: 西台２丁目 | W194: 都営三田線 | X194: 西台 | Y194: 14 | AJ194: 1 | AL194: 2 | AQ194: 1 | AS194: 3 | AU194: 35800000 | AW194: 1103000 | AX194: 334000 | BA194: 107.35 | BG194: 1 | CB194: 1 | CD194: 1 | CE194: 1 | CH194: 50 | CI194: 150 | CJ194: 161.025 | CK194: 5.3675 | CL194: 5 | CM194: 5 | CN194: 300 | CO194: 48.79545455 | CP194: 1951.818182 | CQ194: 5531.818182 | CR194: 0.05423171734 | CS194: 53.675 | CT194: 1 | CU194: 90 | CV194: 71.025 | CW194: ! | DA194: 2 | DP194: 1 | DQ194: 2 | DS194: 1 | DT194: 4 | DU194: 4
A195: 100100382125 | B195: 1 | C195: 1 | D195: 1 | E195: 京王不動産（株） めじろ台営業所 | F195: 042-661-5210 | G195: 神谷 | H195: 080-7412-9287 | I195: daiki_kamiya@keiofudosan.co.jp | J195: 2 | K195: 2019-08-02 | L195: 2019-08-02 | O195: 東京都 | P195: 八王子市 | Q195: めじろ台１丁目 | W195: 京王高尾線 | X195: めじろ台 | Y195: 8 | AJ195: 2 | AL195: 2 | AQ195: 4 | AR195: 1 | AU195: 29800000 | AW195: 423000 | AX195: 128000 | AZ195: 1 | BA195: 233.17 | BG195: 2 | BK195: 0 | CB195: 1 | CD195: 1 | CE195: 1 | CG195: 1 | CH195: 40 | CI195: 80 | CJ195: =IF(ISBLANK(CI195),100,CI195)/100*BA195 -> 186.536 | CK195: =CJ195/30 -> 6.217866667 | CL195: =ROUND(CK195,0) -> 6 | CM195: 5 | CN195: =CM195*12*CL195 -> 360 | CO195: =CJ195/3.3 -> 56.52606061 | CP195: =CO195*40 -> 2261.042424 | CQ195: =CP195+(AU195/10000) -> 5241.042424 | CR195: =CN195/CQ195 -> 0.06868862544 | CS195: =IF(ISBLANK(CH195),60,CH195)/100*BA195 -> 93.268 | CT195: =ROUNDDOWN((CS195/30),0) -> 3 | CU195: =CT195*30*3 -> 270 | CV195: =CJ195-CU195 -> -83.464 | CW195: =IF(CV195>0, "!","") ->  | DP195: 1
A196: 100100383024 | B196: 1 | C196: 1 | D196: 1 | E196: 一建設（株） 松戸営業所 | F196: 047-388-3150 | J196: 2 | K196: 2019-08-02 | L196: 2019-08-02 | O196: 東京都 | P196: 江戸川区 | Q196: 松本２丁目 | W196: 総武線 | X196: 新小岩 | AA196: 18 | AC196: 松本一丁目 | AD196: 4 | AE196: 320 | AQ196: 1 | AU196: 36800000 | AW196: 1241000 | AX196: 376000 | BA196: 98.08 | CB196: 1 | CD196: 1 | CE196: 11 | CH196: 60 | CI196: 150 | CJ196: 147.12 | CK196: 4.904 | CL196: 5 | CM196: 5 | CN196: 300 | CO196: 44.58181818 | CP196: 1783.272727 | CQ196: 5463.272727 | CR196: 0.05491214058 | CS196: 58.848 | CT196: 1 | CU196: 90 | CV196: 57.12 | CW196: ! | CZ196: 1 | DP196: 1 | DQ196: 2 | DR196: 11 | DU196: 4
A197: 100100383971 | B197: 1 | C197: 1 | D197: 1 | E197: ロイヤルスタイル（株） | F197: 03-3717-0008 | G197: 近藤 | H197: 03-3717-0008 | I197: info@royalstyle.co.jp | J197: 2 | K197: 2019-08-02 | O197: 東京都 | P197: 目黒区 | Q197: 碑文谷１丁目 | W197: 東横線 | X197: 学芸大学 | Y197: 17 | AJ197: 1 | AL197: 2 | AQ197: 1 | AU197: 86800000 | AW197: 2894000 | AX197: 876000 | AZ197: 1 | BA197: 99.17 | BG197: 2 | BK197: 0 | BT197: 2 | CA197: 3 | CB197: 1 | CD197: 1 | CE197: 12 | CG197: 1 | CH197: 60 | CI197: 200 | CJ197: 198.34 | CK197: 6.611333333 | CL197: 7 | CM197: 5 | CN197: 420 | CO197: 60.1030303 | CP197: 2404.121212 | CQ197: 11084.12121 | CR197: 0.03789204322 | CS197: 59.502 | CT197: 1 | CU197: 90 | CV197: 108.34 | CW197: ! | CZ197: 1 | DA197: 2 | DP197: 1 | DQ197: 1 | DR197: 8.7 | DS197: 2 | DT197: 7 | DU197: 6 | EK197: 1
A198: 100100384263 | B198: 1 | C198: 1 | D198: 1 | E198: （株）たすき | F198: 03-6812-9330 | G198: 松波・斉藤 | H198: 03-5315-4791 | I198: matsunami@tasukicorp.co.jp | J198: 2 | K198: 2019-08-02 | L198: 2019-08-02 | O198: 東京都 | P198: 品川区 | Q198: 小山１丁目 | W198: 目黒線 | X198: 武蔵小山 | Y198: 10 | AJ198: 1 | AL198: 1 | AQ198: 1 | AU198: 121800000 | AW198: 4429000 | AX198: 1340000 | AZ198: 2 | BA198: 90.92 | CB198: 1 | CD198: 1 | CE198: 6 | CG198: 2 | CH198: 60 | CI198: 300 | CJ198: 272.76 | CK198: 9.092 | CL198: 9 | CM198: 5 | CN198: 540 | CO198: 82.65454545 | CP198: 3306.181818 | CQ198: 15486.18182 | CR198: 0.03486979595 | CS198: 54.552 | CT198: 1 | CU198: 90 | CV198: 182.76 | CW198: !
A199: 100100384411 | B199: 1 | C199: 1 | D199: 1 | E199: （株）バード | F199: 044-888-2240 | J199: 2 | K199: 2019-08-02 | O199: 東京都 | P199: 三鷹市 | Q199: 牟礼７丁目 | W199: 井の頭線 | X199: 三鷹台 | Y199: 24 | AJ199: 2 | AL199: 2 | AQ199: 4 | AR199: 1 | AU199: 46800000 | AW199: 1216000 | AX199: 368000 | AZ199: 1 | BA199: 127.3 | BG199: 2 | CB199: 1 | CD199: 1 | CE199: 1 | CH199: 40 | CI199: 80 | CJ199: 101.84 | CK199: 3.394666667 | CL199: 3 | CM199: 5 | CN199: 180 | CO199: 30.86060606 | CP199: 1234.424242 | CQ199: 5914.424242 | CR199: 0.03043406976 | CS199: 50.92 | CT199: 1 | CU199: 90 | CV199: 11.84 | CW199: ! | CZ199: 1 | DA199: 1 | DP199: 1 | DQ199: 1 | DR199: 9.4 | DT199: 6 | DU199: 4 | GU199: 更地渡し
A200: 100100384785 | B200: 1 | C200: 1 | D200: 1 | E200: 住友不動産販売（株） つつじヶ丘営業センター | F200: 042-480-8071 | G200: 麻生健 | H200: 042-480-8071 | J200: 2 | K200: 2019-08-02 | L200: 2019-08-03 | O200: 東京都 | P200: 調布市 | Q200: 上石原３丁目 | W200: 京王線 | X200: 西調布 | Y200: 13 | Z200: 1040 | AJ200: 2 | AL200: 3 | AM200: 202004 | AN200: 1 | AQ200: 4 | AR200: 1 | AU200: 63000000 | AW200: 1027000 | AX200: 311000 | AZ200: 1 | BA200: 202.92 | BG200: 2 | CA200: 3 | CB200: 1 | CD200: 1 | CE200: 1 | CH200: 40 | CI200: 80 | CJ200: 162.336 | CK200: 5.4112 | CL200: 5 | CM200: 5 | CN200: 300 | CO200: 49.19272727 | CP200: 1967.709091 | CQ200: 8267.709091 | CR200: 0.03628574696 | CS200: 81.168 | CT200: 2 | CU200: 180 | CV200: -17.664 | CZ200: 1 | DA200: 2 | DP200: 1 | DQ200: 2 | DR200: 10.2 | DS200: 1 | DT200: 6 | DU200: 5.7 | DZ200: 0 | EE200: 0 | EJ200: 0 | EK200: 1
... 301 more rows
